Workbook

Sheet Notes
A1: DetectingFlags.xlsm
A2: Coded beginning 2014-Oct-06 by Ronald McAllister (rpmac_xltt@sprynet.com)
A4: Change Log:
A5: 2014Nov18 R. McAllister
A6: Reader J. Olson found a bug in the data download logic. This traders tip did not lend itself to back testing, so I removed the "Transasction Summary" worksheet.
A7: Unfortunately, I did not properly remove all of the code references to this worksheet. There were three such references.
A9: This Workbook demonstrates an EXCEL version of the ideas presented
A10: by Markos Katsanos in an article titled "Detecting Flags In Intraday Charts"
A11: which appears in the December 2014 issue of
A12: "Technical Analysis of Stocks and Commodities" magazine.
A14: This article is written to explore intraday activity. The techniques can also be applied to daily, weekly, and longer bar sizes with no material changes to the code.
A15: As I have no access to tick level data, I have chosen to explore American Airlines (AAL) end of day data using Mr. Katsanos approach.
A17: CalculationsAndCharts construction Notes:
B18: For this Traders Tip there are quite a number of User Specified Control values.
B19: Too many to comfortably fit on the left of the worksheet under the more generalized chart windowing controls of the chart.
B21: So I have placed them in a column to the right of the chart.
B23: I have also added some VBA code so that when you change any of these controls. The chart will automatically resize as necessary to reflect the result of your changes.
B24: The control that seems to make the most use of this feature is "K", which is the multiple of the Pole height added to the entry price to set the target price.
B26: Mr. Katsanos code has more complexity than I was able to express in cell based formulas within the time constraints of Traders Tips publication deadlines.
B27: So once again I have employed a VBA user defined function (UDF). KatsanosFlagFinder must be "Array Entered" (ctrl + shift+enter) to function properly. See cells H33:R873.
B29: To delineate the bars on the chart that have been selected as poles and flags, I have used stacked bars to create "floating" highlights behind the price bars.
B30: The trick used here is to plot a lower bar as "no fill and noline" (and therefore invisible on the chart) that is tall enough to reach, and thus support, the bottom of the highlight bar.
B32: However, as coded, only Poles and Flags that lead to a price breakout and trade initiation have been highlighted in this manner.
B34: Scatter plots are used to place the appropriate buy and sell markers on the chart along with the sell type.
B35: Data labels for these add the prices and sell types to these markers.
A37: Development Notes:
A38: 1 | C38: This workbook contains and uses VBA macros.
A39: 2 | C39: Input Data
C40: The data in this workbook is sorted date descending (most recent date at the top). All formulas and
C41: VBA routines are built accordingly.
A42: Calculation and Chart Worksheet Usage Comments:
A43: 1 | C43: In General, Items in Bolded BLUE are items you may freely change to play what-if games.
C44: Be sure to have a backup copy of the spreadsheet before you alter anything else.

Sheet InputPriceData
A1: American Airlines (AAL) -NasdaqNM (Daily)
A2: Last Trade: | B2: 2014-11-18 | C2: 43.8 | D2: 45 | E2: 43.755 | F2: 44.955 | G2: 5940801 | H2: 1:02pm | L2: Notes: | M2: Online Yahoo Finance Query Interfaces used in the VBA code to obtain this data:
A3: Request Online Yahoo History for: | M3: A.) Price History Only: "http://ichart.finance.yahoo.com/table.csv"
A4: Symbol | B4: AAL | D4: Valid | M4: B.) Price History w/ imbedded divs n splits: "http://ichart.finance.yahoo.com/x"
A5: From | B5: 1977-01-07 | D5: Data | AF5: Trailing 12 Div return (Cur Close)
A6: To | B6: =TODAY() -> 2014-11-18 | D6: Types | E6: =VLOOKUP(B7,D7:E10,2,FALSE) -> d | M6: C.) Fundamentals (in this case name and exchange):
A7: Data Type | B7: Daily | D7: Daily | E7: d | M7: "http://download.finance.yahoo.com/d/quotes.csv?"
D8: Weekly | E8: w | M8: For some how-to doc regarding this particular interface, including a list of the
A9: Available Data | D9: Monthly | E9: m | M9: specific fields you can include in a request to this interface see:
A10: Bar Count: | B10: =COUNTA(B15:B70000)-1 -> 2303 | M10: http://www.gummy-stuff.org/Yahoo-data.htm | AF10: =OFFSET(AC15,1,0,1,1)/OFFSET(N15,1,0,1,1) -> 0.004448398577
A11: From: | B11: =IF(B10<=0,"",OFFSET(B15,B10,IF(HistReqDataType="v",1,0),1,1)) -> 2005-09-27 | M11: This web site includes a downloadable working EXCEL/VBA example | W11: Trailing 12 Month Dividend Returns
A12: To: | B12: =IF(B10<=0,"",IF(HistReqDataType="v",OFFSET(B15,2,1,1,1),OFFSET(B15,1,0,1,1))) -> 2014-11-18 | M12: of the capabilities of this interface. | W12: Raw Close price on Dividend date | X12: Div Year and Month | Y12: Looking for year ago Div Year and Month | Z12: Year ago Div Date we found | AA12: row offset to year ago div Date | AB12: Same month flag | AC12: Trailing 12 Div Total | AD12: Trailing 12 Div return
Q13: Split History | S13: =COUNT(Q16:Q20000) -> 0 | T13: Running | U13: Dividend History
B14: Raw Data Values | H14: Adjusted | I14: Price Adjust | J14: Vol Adjust | K14: Adjusted Values | P14: Last | Q14: Effective | R14: Shares | T14: Vol Adjust | V14: =COUNT(U16:U20000) -> 2
A15: RelRow | B15: Date | C15: Open | D15: High | E15: Low | F15: Close | G15: Volume | H15: Close | I15: Factor | J15: Factor | K15: Open | L15: High | M15: Low | N15: Close | O15: Volume | P15: Trade | Q15: 41962 | R15: New | S15: Old | T15: 1 | U15: Date | V15: $ / Share
A16: 1 | B16: 2014-11-18 | C16: 43.8 | D16: 45 | E16: 43.755 | F16: 44.955 | G16: 5940801 | H16: 44.955 | I16: =H16/F16 -> 1 | J16: =INDEX(OFFSET($T$15,0,0,$S$13+1,1),MATCH(B16,OFFSET($Q$15,0,0,$S$13+1,1),-1)) -> 1 | K16: =ROUND($I16*C16,2) -> 43.8 | L16: =ROUND($I16*D16,2) -> 45 | M16: =ROUND($I16*E16,2) -> 43.76 | N16: =ROUND($I16*F16,2) -> 44.96 | O16: =G16*J16 -> 5940801 | P16: 1:02pm | U16: 2014-10-30 | V16: 0.1 | W16: =(INDEX(OFFSET($F$15,1,0,$B$10,1),MATCH(U16,OFFSET($B$15,1,0,$B$10,1),-1))) -> 40.3 | X16: =YEAR(U16)&RIGHT("0"&MONTH(U16),2) -> 201410 | Y16: =YEAR(U16)-1&RIGHT("0"&MONTH(U16),2) -> 201310 | Z16: =OFFSET(U15,AA16,0,1,1) -> 2014-07-31 | AA16: =MATCH(Y16,OFFSET($X$15,A16,0,$V$14+1-A16,1),-1) -> 2 | AB16: =IF(OR(AND(YEAR(U16)=YEAR(Z16),MONTH(U16)=MONTH(Z16)),MONTH(U16)=MONTH(Z16)),1,0) -> 0 | AC16: =(V16+IF(AA16-AB16=0,0,IFERROR(SUM(OFFSET(V16,1,0,AA16-AB16-1,1)),0))) -> 0.2 | AD16: =AC16/(INDEX(OFFSET($F$15,1,0,$B$10,1),MATCH(U16,OFFSET($B$15,1,0,$B$10,1),-1))) -> 0.004962779156
A17: 2 | B17: 2014-11-17 | C17: 43.97 | D17: 44.58 | E17: 43.63 | F17: 43.69 | G17: 8689100 | H17: 43.69 | I17: =H17/F17 -> 1 | J17: =INDEX(OFFSET($T$15,0,0,$S$13+1,1),MATCH(B17,OFFSET($Q$15,0,0,$S$13+1,1),-1)) -> 1 | K17: =ROUND($I17*C17,2) -> 43.97 | L17: =ROUND($I17*D17,2) -> 44.58 | M17: =ROUND($I17*E17,2) -> 43.63 | N17: =ROUND($I17*F17,2) -> 43.69 | O17: =G17*J17 -> 8689100 | U17: 2014-07-31 | V17: 0.1 | W17: =(INDEX(OFFSET($F$15,1,0,$B$10,1),MATCH(U17,OFFSET($B$15,1,0,$B$10,1),-1))) -> 38.85 | X17: =YEAR(U17)&RIGHT("0"&MONTH(U17),2) -> 201407 | Y17: =YEAR(U17)-1&RIGHT("0"&MONTH(U17),2) -> 201307 | Z17: =OFFSET(U16,AA17,0,1,1) -> 2014-07-31 | AA17: =MATCH(Y17,OFFSET($X$15,A17,0,$V$14+1-A17,1),-1) -> 1 | AB17: =IF(OR(AND(YEAR(U17)=YEAR(Z17),MONTH(U17)=MONTH(Z17)),MONTH(U17)=MONTH(Z17)),1,0) -> 1 | AC17: =(V17+IF(AA17-AB17=0,0,IFERROR(SUM(OFFSET(V17,1,0,AA17-AB17-1,1)),0))) -> 0.1 | AD17: =AC17/(INDEX(OFFSET($F$15,1,0,$B$10,1),MATCH(U17,OFFSET($B$15,1,0,$B$10,1),-1))) -> 0.002574002574
A18: 3 | B18: 2014-11-14 | C18: 44 | D18: 44.54 | E18: 43.67 | F18: 44.01 | G18: 8745100 | H18: 44.01 | I18: =H18/F18 -> 1 | J18: =INDEX(OFFSET($T$15,0,0,$S$13+1,1),MATCH(B18,OFFSET($Q$15,0,0,$S$13+1,1),-1)) -> 1 | K18: =ROUND($I18*C18,2) -> 44 | L18: =ROUND($I18*D18,2) -> 44.54 | M18: =ROUND($I18*E18,2) -> 43.67 | N18: =ROUND($I18*F18,2) -> 44.01 | O18: =G18*J18 -> 8745100
A19: 4 | B19: 2014-11-13 | C19: 43.54 | D19: 44.46 | E19: 43.49 | F19: 44.12 | G19: 11134500 | H19: 44.12 | I19: 1 | J19: 1 | K19: =ROUND($I19*C19,2) -> 43.54 | L19: =ROUND($I19*D19,2) -> 44.46 | M19: =ROUND($I19*E19,2) -> 43.49 | N19: =ROUND($I19*F19,2) -> 44.12 | O19: 11134500
A20: 5 | B20: 2014-11-12 | C20: 43.25 | D20: 43.63 | E20: 42.84 | F20: 43.43 | G20: 7705100 | H20: 43.43 | I20: 1 | J20: 1 | K20: =ROUND($I20*C20,2) -> 43.25 | L20: =ROUND($I20*D20,2) -> 43.63 | M20: =ROUND($I20*E20,2) -> 42.84 | N20: =ROUND($I20*F20,2) -> 43.43 | O20: 7705100
A21: 6 | B21: 2014-11-11 | C21: 44 | D21: 44.47 | E21: 43.32 | F21: 43.44 | G21: 11048700 | H21: 43.44 | I21: 1 | J21: 1 | K21: =ROUND($I21*C21,2) -> 44 | L21: =ROUND($I21*D21,2) -> 44.47 | M21: =ROUND($I21*E21,2) -> 43.32 | N21: =ROUND($I21*F21,2) -> 43.44 | O21: 11048700
A22: 7 | B22: 2014-11-10 | C22: 42.5 | D22: 43.94 | E22: 41.68 | F22: 43.83 | G22: 13171000 | H22: 43.83 | I22: 1 | J22: 1 | K22: =ROUND($I22*C22,2) -> 42.5 | L22: =ROUND($I22*D22,2) -> 43.94 | M22: =ROUND($I22*E22,2) -> 41.68 | N22: =ROUND($I22*F22,2) -> 43.83 | O22: 13171000
A23: 8 | B23: 2014-11-07 | C23: 43.14 | D23: 43.49 | E23: 42.63 | F23: 43.2 | G23: 9022600 | H23: 43.2 | I23: 1 | J23: 1 | K23: =ROUND($I23*C23,2) -> 43.14 | L23: =ROUND($I23*D23,2) -> 43.49 | M23: =ROUND($I23*E23,2) -> 42.63 | N23: =ROUND($I23*F23,2) -> 43.2 | O23: 9022600
A24: 9 | B24: 2014-11-06 | C24: 42.59 | D24: 44.13 | E24: 42.59 | F24: 43.14 | G24: 14477200 | H24: 43.14 | I24: 1 | J24: 1 | K24: =ROUND($I24*C24,2) -> 42.59 | L24: =ROUND($I24*D24,2) -> 44.13 | M24: =ROUND($I24*E24,2) -> 42.59 | N24: =ROUND($I24*F24,2) -> 43.14 | O24: 14477200
A25: 10 | B25: 2014-11-05 | C25: 43.32 | D25: 43.35 | E25: 42.09 | F25: 42.25 | G25: 11528800 | H25: 42.25 | I25: 1 | J25: 1 | K25: =ROUND($I25*C25,2) -> 43.32 | L25: =ROUND($I25*D25,2) -> 43.35 | M25: =ROUND($I25*E25,2) -> 42.09 | N25: =ROUND($I25*F25,2) -> 42.25 | O25: 11528800
A26: 11 | B26: 2014-11-04 | C26: 42.83 | D26: 43.7 | E26: 42.5 | F26: 42.7 | G26: 17421200 | H26: 42.7 | I26: 1 | J26: 1 | K26: =ROUND($I26*C26,2) -> 42.83 | L26: =ROUND($I26*D26,2) -> 43.7 | M26: =ROUND($I26*E26,2) -> 42.5 | N26: =ROUND($I26*F26,2) -> 42.7 | O26: 17421200
A27: 12 | B27: 2014-11-03 | C27: 41.44 | D27: 42.1 | E27: 41.43 | F27: 42 | G27: 8441400 | H27: 42 | I27: 1 | J27: 1 | K27: =ROUND($I27*C27,2) -> 41.44 | L27: =ROUND($I27*D27,2) -> 42.1 | M27: =ROUND($I27*E27,2) -> 41.43 | N27: =ROUND($I27*F27,2) -> 42 | O27: 8441400
A28: 13 | B28: 2014-10-31 | C28: 41.1 | D28: 41.75 | E28: 40.8 | F28: 41.35 | G28: 13008200 | H28: 41.35 | I28: 1 | J28: 1 | K28: =ROUND($I28*C28,2) -> 41.1 | L28: =ROUND($I28*D28,2) -> 41.75 | M28: =ROUND($I28*E28,2) -> 40.8 | N28: =ROUND($I28*F28,2) -> 41.35 | O28: 13008200
A29: 14 | B29: 2014-10-30 | C29: 39.91 | D29: 40.69 | E29: 39.62 | F29: 40.3 | G29: 10565200 | H29: 40.3 | I29: 1 | J29: 1 | K29: =ROUND($I29*C29,2) -> 39.91 | L29: =ROUND($I29*D29,2) -> 40.69 | M29: =ROUND($I29*E29,2) -> 39.62 | N29: =ROUND($I29*F29,2) -> 40.3 | O29: 10565200
A30: 15 | B30: 2014-10-29 | C30: 40.07 | D30: 40.4 | E30: 39.24 | F30: 39.94 | G30: 15782400 | H30: 39.84 | I30: 0.9974962444 | J30: 1 | K30: =ROUND($I30*C30,2) -> 39.97 | L30: =ROUND($I30*D30,2) -> 40.3 | M30: =ROUND($I30*E30,2) -> 39.14 | N30: =ROUND($I30*F30,2) -> 39.84 | O30: 15782400
A31: 16 | B31: 2014-10-28 | C31: 40.11 | D31: 40.76 | E31: 39.75 | F31: 40.24 | G31: 12185300 | H31: 40.14 | I31: 0.9975149105 | J31: 1 | K31: =ROUND($I31*C31,2) -> 40.01 | L31: =ROUND($I31*D31,2) -> 40.66 | M31: =ROUND($I31*E31,2) -> 39.65 | N31: =ROUND($I31*F31,2) -> 40.14 | O31: 12185300
A32: 17 | B32: 2014-10-27 | C32: 39.6 | D32: 40.4 | E32: 39.29 | F32: 39.91 | G32: 13353100 | H32: 39.81 | I32: 0.9974943623 | J32: 1 | K32: =ROUND($I32*C32,2) -> 39.5 | L32: =ROUND($I32*D32,2) -> 40.3 | M32: =ROUND($I32*E32,2) -> 39.19 | N32: =ROUND($I32*F32,2) -> 39.81 | O32: 13353100
A33: 18 | B33: 2014-10-24 | C33: 38.6 | D33: 39.95 | E33: 38.58 | F33: 39.82 | G33: 17834100 | H33: 39.72 | I33: 0.9974886991 | J33: 1 | K33: =ROUND($I33*C33,2) -> 38.5 | L33: =ROUND($I33*D33,2) -> 39.85 | M33: =ROUND($I33*E33,2) -> 38.48 | N33: =ROUND($I33*F33,2) -> 39.72 | O33: 17834100
A34: 19 | B34: 2014-10-23 | C34: 37.43 | D34: 40.18 | E34: 36.8 | F34: 38.48 | G34: 33292000 | H34: 38.38 | I34: 0.9974012474 | J34: 1 | K34: =ROUND($I34*C34,2) -> 37.33 | L34: =ROUND($I34*D34,2) -> 40.08 | M34: =ROUND($I34*E34,2) -> 36.7 | N34: =ROUND($I34*F34,2) -> 38.38 | O34: 33292000
A35: 20 | B35: 2014-10-22 | C35: 38.05 | D35: 38.22 | E35: 36.94 | F35: 37.04 | G35: 18958400 | H35: 36.95 | I35: 0.9975701944 | J35: 1 | K35: =ROUND($I35*C35,2) -> 37.96 | L35: =ROUND($I35*D35,2) -> 38.13 | M35: =ROUND($I35*E35,2) -> 36.85 | N35: =ROUND($I35*F35,2) -> 36.95 | O35: 18958400
A36: 21 | B36: 2014-10-21 | C36: 36.14 | D36: 37.88 | E36: 36.02 | F36: 37.85 | G36: 26347700 | H36: 37.76 | I36: 0.9976221929 | J36: 1 | K36: =ROUND($I36*C36,2) -> 36.05 | L36: =ROUND($I36*D36,2) -> 37.79 | M36: =ROUND($I36*E36,2) -> 35.93 | N36: =ROUND($I36*F36,2) -> 37.76 | O36: 26347700
A37: 22 | B37: 2014-10-20 | C37: 34.19 | D37: 35.39 | E37: 34 | F37: 35.22 | G37: 13532700 | H37: 35.13 | I37: 0.9974446337 | J37: 1 | K37: =ROUND($I37*C37,2) -> 34.1 | L37: =ROUND($I37*D37,2) -> 35.3 | M37: =ROUND($I37*E37,2) -> 33.91 | N37: =ROUND($I37*F37,2) -> 35.13 | O37: 13532700
A38: 23 | B38: 2014-10-17 | C38: 33.88 | D38: 34.34 | E38: 32.81 | F38: 33.38 | G38: 16001100 | H38: 33.3 | I38: 0.9976033553 | J38: 1 | K38: =ROUND($I38*C38,2) -> 33.8 | L38: =ROUND($I38*D38,2) -> 34.26 | M38: =ROUND($I38*E38,2) -> 32.73 | N38: =ROUND($I38*F38,2) -> 33.3 | O38: 16001100
A39: 24 | B39: 2014-10-16 | C39: 30.63 | D39: 33.4 | E39: 30 | F39: 32.97 | G39: 24983100 | H39: 32.89 | I39: 0.9975735517 | J39: 1 | K39: =ROUND($I39*C39,2) -> 30.56 | L39: =ROUND($I39*D39,2) -> 33.32 | M39: =ROUND($I39*E39,2) -> 29.93 | N39: =ROUND($I39*F39,2) -> 32.89 | O39: 24983100
A40: 25 | B40: 2014-10-15 | C40: 30.22 | D40: 32.62 | E40: 29.49 | F40: 31.69 | G40: 39941300 | H40: 31.61 | I40: 0.9974755443 | J40: 1 | K40: =ROUND($I40*C40,2) -> 30.14 | L40: =ROUND($I40*D40,2) -> 32.54 | M40: =ROUND($I40*E40,2) -> 29.42 | N40: =ROUND($I40*F40,2) -> 31.61 | O40: 39941300
A41: 26 | B41: 2014-10-14 | C41: 29.29 | D41: 32.18 | E41: 29.28 | F41: 31.51 | G41: 28136800 | H41: 31.43 | I41: 0.9974611235 | J41: 1 | K41: =ROUND($I41*C41,2) -> 29.22 | L41: =ROUND($I41*D41,2) -> 32.1 | M41: =ROUND($I41*E41,2) -> 29.21 | N41: =ROUND($I41*F41,2) -> 31.43 | O41: 28136800
A42: 27 | B42: 2014-10-13 | C42: 31.07 | D42: 31.39 | E42: 28.1 | F42: 28.58 | G42: 34532900 | H42: 28.51 | I42: 0.9975507348 | J42: 1 | K42: =ROUND($I42*C42,2) -> 30.99 | L42: =ROUND($I42*D42,2) -> 31.31 | M42: =ROUND($I42*E42,2) -> 28.03 | N42: =ROUND($I42*F42,2) -> 28.51 | O42: 34532900
A43: 28 | B43: 2014-10-10 | C43: 31.55 | D43: 32.25 | E43: 29.78 | F43: 30.78 | G43: 31018700 | H43: 30.7 | I43: 0.9974009097 | J43: 1 | K43: =ROUND($I43*C43,2) -> 31.47 | L43: =ROUND($I43*D43,2) -> 32.17 | M43: =ROUND($I43*E43,2) -> 29.7 | N43: =ROUND($I43*F43,2) -> 30.7 | O43: 31018700
A44: 29 | B44: 2014-10-09 | C44: 33.5 | D44: 33.7 | E44: 31.94 | F44: 31.98 | G44: 22634100 | H44: 31.9 | I44: 0.9974984365 | J44: 1 | K44: =ROUND($I44*C44,2) -> 33.42 | L44: =ROUND($I44*D44,2) -> 33.62 | M44: =ROUND($I44*E44,2) -> 31.86 | N44: =ROUND($I44*F44,2) -> 31.9 | O44: 22634100
A45: 30 | B45: 2014-10-08 | C45: 34.53 | D45: 34.55 | E45: 32.6 | F45: 33 | G45: 22753600 | H45: 32.92 | I45: 0.9975757576 | J45: 1 | K45: =ROUND($I45*C45,2) -> 34.45 | L45: =ROUND($I45*D45,2) -> 34.47 | M45: =ROUND($I45*E45,2) -> 32.52 | N45: =ROUND($I45*F45,2) -> 32.92 | O45: 22753600
A46: 31 | B46: 2014-10-07 | C46: 34.75 | D46: 35.02 | E46: 34.06 | F46: 34.09 | G46: 10030100 | H46: 34 | I46: 0.9973599296 | J46: 1 | K46: =ROUND($I46*C46,2) -> 34.66 | L46: =ROUND($I46*D46,2) -> 34.93 | M46: =ROUND($I46*E46,2) -> 33.97 | N46: =ROUND($I46*F46,2) -> 34 | O46: 10030100
A47: 32 | B47: 2014-10-06 | C47: 36.31 | D47: 36.5 | E47: 34.86 | F47: 34.93 | G47: 12789300 | H47: 34.84 | I47: 0.9974234183 | J47: 1 | K47: =ROUND($I47*C47,2) -> 36.22 | L47: =ROUND($I47*D47,2) -> 36.41 | M47: =ROUND($I47*E47,2) -> 34.77 | N47: =ROUND($I47*F47,2) -> 34.84 | O47: 12789300
A48: 33 | B48: 2014-10-03 | C48: 34.66 | D48: 36.32 | E48: 34.61 | F48: 36.23 | G48: 15076600 | H48: 36.14 | I48: 0.9975158708 | J48: 1 | K48: =ROUND($I48*C48,2) -> 34.57 | L48: =ROUND($I48*D48,2) -> 36.23 | M48: =ROUND($I48*E48,2) -> 34.52 | N48: =ROUND($I48*F48,2) -> 36.14 | O48: 15076600
A49: 34 | B49: 2014-10-02 | C49: 34.47 | D49: 35.38 | E49: 33.51 | F49: 33.93 | G49: 21476300 | H49: 33.85 | I49: 0.9976422045 | J49: 1 | K49: =ROUND($I49*C49,2) -> 34.39 | L49: =ROUND($I49*D49,2) -> 35.3 | M49: =ROUND($I49*E49,2) -> 33.43 | N49: =ROUND($I49*F49,2) -> 33.85 | O49: 21476300
A50: 35 | B50: 2014-10-01 | C50: 34.72 | D50: 34.94 | E50: 33.85 | F50: 34.39 | G50: 19443300 | H50: 34.3 | I50: 0.9973829602 | J50: 1 | K50: =ROUND($I50*C50,2) -> 34.63 | L50: =ROUND($I50*D50,2) -> 34.85 | M50: =ROUND($I50*E50,2) -> 33.76 | N50: =ROUND($I50*F50,2) -> 34.3 | O50: 19443300
A51: 36 | B51: 2014-09-30 | C51: 35.05 | D51: 35.85 | E51: 34.34 | F51: 35.48 | G51: 10657900 | H51: 35.39 | I51: 0.9974633596 | J51: 1 | K51: =ROUND($I51*C51,2) -> 34.96 | L51: =ROUND($I51*D51,2) -> 35.76 | M51: =ROUND($I51*E51,2) -> 34.25 | N51: =ROUND($I51*F51,2) -> 35.39 | O51: 10657900
A52: 37 | B52: 2014-09-29 | C52: 35.35 | D52: 35.75 | E52: 34.94 | F52: 35.03 | G52: 7485000 | H52: 34.94 | I52: 0.9974307736 | J52: 1 | K52: =ROUND($I52*C52,2) -> 35.26 | L52: =ROUND($I52*D52,2) -> 35.66 | M52: =ROUND($I52*E52,2) -> 34.85 | N52: =ROUND($I52*F52,2) -> 34.94 | O52: 7485000
A53: 38 | B53: 2014-09-26 | C53: 35.25 | D53: 36.12 | E53: 35.02 | F53: 35.93 | G53: 8514800 | H53: 35.84 | I53: 0.9974951294 | J53: 1 | K53: =ROUND($I53*C53,2) -> 35.16 | L53: =ROUND($I53*D53,2) -> 36.03 | M53: =ROUND($I53*E53,2) -> 34.93 | N53: =ROUND($I53*F53,2) -> 35.84 | O53: 8514800
A54: 39 | B54: 2014-09-25 | C54: 35.88 | D54: 35.98 | E54: 34.87 | F54: 35.21 | G54: 10931800 | H54: 35.12 | I54: 0.997443908 | J54: 1 | K54: =ROUND($I54*C54,2) -> 35.79 | L54: =ROUND($I54*D54,2) -> 35.89 | M54: =ROUND($I54*E54,2) -> 34.78 | N54: =ROUND($I54*F54,2) -> 35.12 | O54: 10931800
A55: 40 | B55: 2014-09-24 | C55: 35.47 | D55: 36.34 | E55: 35.18 | F55: 36.12 | G55: 8487700 | H55: 36.03 | I55: 0.9975083056 | J55: 1 | K55: =ROUND($I55*C55,2) -> 35.38 | L55: =ROUND($I55*D55,2) -> 36.25 | M55: =ROUND($I55*E55,2) -> 35.09 | N55: =ROUND($I55*F55,2) -> 36.03 | O55: 8487700
A56: 41 | B56: 2014-09-23 | C56: 35.04 | D56: 35.77 | E56: 34.64 | F56: 35.33 | G56: 12146800 | H56: 35.24 | I56: 0.9974525899 | J56: 1 | K56: =ROUND($I56*C56,2) -> 34.95 | L56: =ROUND($I56*D56,2) -> 35.68 | M56: =ROUND($I56*E56,2) -> 34.55 | N56: =ROUND($I56*F56,2) -> 35.24 | O56: 12146800
A57: 42 | B57: 2014-09-22 | C57: 37 | D57: 37 | E57: 35.44 | F57: 35.58 | G57: 10964300 | H57: 35.49 | I57: 0.997470489 | J57: 1 | K57: =ROUND($I57*C57,2) -> 36.91 | L57: =ROUND($I57*D57,2) -> 36.91 | M57: =ROUND($I57*E57,2) -> 35.35 | N57: =ROUND($I57*F57,2) -> 35.49 | O57: 10964300
A58: 43 | B58: 2014-09-19 | C58: 38.06 | D58: 38.25 | E58: 36.63 | F58: 36.63 | G58: 17589900 | H58: 36.54 | I58: 0.9975429975 | J58: 1 | K58: =ROUND($I58*C58,2) -> 37.97 | L58: =ROUND($I58*D58,2) -> 38.16 | M58: =ROUND($I58*E58,2) -> 36.54 | N58: =ROUND($I58*F58,2) -> 36.54 | O58: 17589900
A59: 44 | B59: 2014-09-18 | C59: 37.7 | D59: 38.11 | E59: 37.6 | F59: 38.05 | G59: 4553800 | H59: 37.95 | I59: 0.9973718791 | J59: 1 | K59: =ROUND($I59*C59,2) -> 37.6 | L59: =ROUND($I59*D59,2) -> 38.01 | M59: =ROUND($I59*E59,2) -> 37.5 | N59: =ROUND($I59*F59,2) -> 37.95 | O59: 4553800
A60: 45 | B60: 2014-09-17 | C60: 37.92 | D60: 38.24 | E60: 37.04 | F60: 37.46 | G60: 6682700 | H60: 37.37 | I60: 0.9975974373 | J60: 1 | K60: =ROUND($I60*C60,2) -> 37.83 | L60: =ROUND($I60*D60,2) -> 38.15 | M60: =ROUND($I60*E60,2) -> 36.95 | N60: =ROUND($I60*F60,2) -> 37.37 | O60: 6682700
A61: 46 | B61: 2014-09-16 | C61: 37 | D61: 38.01 | E61: 36.81 | F61: 37.98 | G61: 6723000 | H61: 37.88 | I61: 0.9973670353 | J61: 1 | K61: =ROUND($I61*C61,2) -> 36.9 | L61: =ROUND($I61*D61,2) -> 37.91 | M61: =ROUND($I61*E61,2) -> 36.71 | N61: =ROUND($I61*F61,2) -> 37.88 | O61: 6723000
A62: 47 | B62: 2014-09-15 | C62: 37.6 | D62: 37.8 | E62: 36.84 | F62: 37.07 | G62: 7954200 | H62: 36.98 | I62: 0.9975721608 | J62: 1 | K62: =ROUND($I62*C62,2) -> 37.51 | L62: =ROUND($I62*D62,2) -> 37.71 | M62: =ROUND($I62*E62,2) -> 36.75 | N62: =ROUND($I62*F62,2) -> 36.98 | O62: 7954200
A63: 48 | B63: 2014-09-12 | C63: 38.09 | D63: 38.51 | E63: 37.63 | F63: 37.65 | G63: 8229200 | H63: 37.56 | I63: 0.9976095618 | J63: 1 | K63: =ROUND($I63*C63,2) -> 38 | L63: =ROUND($I63*D63,2) -> 38.42 | M63: =ROUND($I63*E63,2) -> 37.54 | N63: =ROUND($I63*F63,2) -> 37.56 | O63: 8229200
A64: 49 | B64: 2014-09-11 | C64: 38.73 | D64: 39.04 | E64: 37.93 | F64: 38.09 | G64: 10066700 | H64: 37.99 | I64: 0.997374639 | J64: 1 | K64: =ROUND($I64*C64,2) -> 38.63 | L64: =ROUND($I64*D64,2) -> 38.94 | M64: =ROUND($I64*E64,2) -> 37.83 | N64: =ROUND($I64*F64,2) -> 37.99 | O64: 10066700
A65: 50 | B65: 2014-09-10 | C65: 37.93 | D65: 38.87 | E65: 37.91 | F65: 38.58 | G65: 8107500 | H65: 38.48 | I65: 0.9974079834 | J65: 1 | K65: =ROUND($I65*C65,2) -> 37.83 | L65: =ROUND($I65*D65,2) -> 38.77 | M65: =ROUND($I65*E65,2) -> 37.81 | N65: =ROUND($I65*F65,2) -> 38.48 | O65: 8107500
A66: 51 | B66: 2014-09-09 | C66: 37.63 | D66: 38.68 | E66: 37.38 | F66: 37.96 | G66: 9101100 | H66: 37.86 | I66: 0.9973656481 | J66: 1 | K66: =ROUND($I66*C66,2) -> 37.53 | L66: =ROUND($I66*D66,2) -> 38.58 | M66: =ROUND($I66*E66,2) -> 37.28 | N66: =ROUND($I66*F66,2) -> 37.86 | O66: 9101100
A67: 52 | B67: 2014-09-08 | C67: 37.96 | D67: 38.4 | E67: 37.96 | F67: 38.23 | G67: 7345800 | H67: 38.13 | I67: 0.9973842532 | J67: 1 | K67: =ROUND($I67*C67,2) -> 37.86 | L67: =ROUND($I67*D67,2) -> 38.3 | M67: =ROUND($I67*E67,2) -> 37.86 | N67: =ROUND($I67*F67,2) -> 38.13 | O67: 7345800
A68: 53 | B68: 2014-09-05 | C68: 38.51 | D68: 38.71 | E68: 37.71 | F68: 37.85 | G68: 12067600 | H68: 37.76 | I68: 0.9976221929 | J68: 1 | K68: =ROUND($I68*C68,2) -> 38.42 | L68: =ROUND($I68*D68,2) -> 38.62 | M68: =ROUND($I68*E68,2) -> 37.62 | N68: =ROUND($I68*F68,2) -> 37.76 | O68: 12067600
A69: 54 | B69: 2014-09-04 | C69: 39.37 | D69: 39.98 | E69: 38.36 | F69: 38.47 | G69: 12004000 | H69: 38.37 | I69: 0.9974005719 | J69: 1 | K69: =ROUND($I69*C69,2) -> 39.27 | L69: =ROUND($I69*D69,2) -> 39.88 | M69: =ROUND($I69*E69,2) -> 38.26 | N69: =ROUND($I69*F69,2) -> 38.37 | O69: 12004000
A70: 55 | B70: 2014-09-03 | C70: 39.73 | D70: 39.9 | E70: 38.67 | F70: 39.14 | G70: 9995100 | H70: 39.04 | I70: 0.997445069 | J70: 1 | K70: =ROUND($I70*C70,2) -> 39.63 | L70: =ROUND($I70*D70,2) -> 39.8 | M70: =ROUND($I70*E70,2) -> 38.57 | N70: =ROUND($I70*F70,2) -> 39.04 | O70: 9995100
A71: 56 | B71: 2014-09-02 | C71: 39 | D71: 40.54 | E71: 38.89 | F71: 40.5 | G71: 10932800 | H71: 40.4 | I71: 0.9975308642 | J71: 1 | K71: =ROUND($I71*C71,2) -> 38.9 | L71: =ROUND($I71*D71,2) -> 40.44 | M71: =ROUND($I71*E71,2) -> 38.79 | N71: =ROUND($I71*F71,2) -> 40.4 | O71: 10932800
A72: 57 | B72: 2014-08-29 | C72: 39.1 | D72: 39.35 | E72: 38.36 | F72: 38.88 | G72: 6644600 | H72: 38.78 | I72: 0.9974279835 | J72: 1 | K72: =ROUND($I72*C72,2) -> 39 | L72: =ROUND($I72*D72,2) -> 39.25 | M72: =ROUND($I72*E72,2) -> 38.26 | N72: =ROUND($I72*F72,2) -> 38.78 | O72: 6644600
A73: 58 | B73: 2014-08-28 | C73: 38.71 | D73: 39.4 | E73: 38.7 | F73: 39.17 | G73: 3888100 | H73: 39.07 | I73: 0.9974470258 | J73: 1 | K73: =ROUND($I73*C73,2) -> 38.61 | L73: =ROUND($I73*D73,2) -> 39.3 | M73: =ROUND($I73*E73,2) -> 38.6 | N73: =ROUND($I73*F73,2) -> 39.07 | O73: 3888100
A74: 59 | B74: 2014-08-27 | C74: 39.36 | D74: 39.4 | E74: 38.68 | F74: 38.99 | G74: 6457300 | H74: 38.89 | I74: 0.9974352398 | J74: 1 | K74: =ROUND($I74*C74,2) -> 39.26 | L74: =ROUND($I74*D74,2) -> 39.3 | M74: =ROUND($I74*E74,2) -> 38.58 | N74: =ROUND($I74*F74,2) -> 38.89 | O74: 6457300
A75: 60 | B75: 2014-08-26 | C75: 39.55 | D75: 39.75 | E75: 39.07 | F75: 39.09 | G75: 5732600 | H75: 38.99 | I75: 0.997441801 | J75: 1 | K75: =ROUND($I75*C75,2) -> 39.45 | L75: =ROUND($I75*D75,2) -> 39.65 | M75: =ROUND($I75*E75,2) -> 38.97 | N75: =ROUND($I75*F75,2) -> 38.99 | O75: 5732600
A76: 61 | B76: 2014-08-25 | C76: 40.23 | D76: 40.28 | E76: 39.4 | F76: 39.42 | G76: 7071800 | H76: 39.32 | I76: 0.9974632166 | J76: 1 | K76: =ROUND($I76*C76,2) -> 40.13 | L76: =ROUND($I76*D76,2) -> 40.18 | M76: =ROUND($I76*E76,2) -> 39.3 | N76: =ROUND($I76*F76,2) -> 39.32 | O76: 7071800
A77: 62 | B77: 2014-08-22 | C77: 39.6 | D77: 40.21 | E77: 39.55 | F77: 39.85 | G77: 5771400 | H77: 39.75 | I77: 0.9974905897 | J77: 1 | K77: =ROUND($I77*C77,2) -> 39.5 | L77: =ROUND($I77*D77,2) -> 40.11 | M77: =ROUND($I77*E77,2) -> 39.45 | N77: =ROUND($I77*F77,2) -> 39.75 | O77: 5771400
A78: 63 | B78: 2014-08-21 | C78: 40.75 | D78: 40.85 | E78: 39.45 | F78: 39.51 | G78: 8152000 | H78: 39.41 | I78: 0.9974689952 | J78: 1 | K78: =ROUND($I78*C78,2) -> 40.65 | L78: =ROUND($I78*D78,2) -> 40.75 | M78: =ROUND($I78*E78,2) -> 39.35 | N78: =ROUND($I78*F78,2) -> 39.41 | O78: 8152000
A79: 64 | B79: 2014-08-20 | C79: 40.4 | D79: 40.8 | E79: 40.03 | F79: 40.6 | G79: 6504500 | H79: 40.5 | I79: 0.9975369458 | J79: 1 | K79: =ROUND($I79*C79,2) -> 40.3 | L79: =ROUND($I79*D79,2) -> 40.7 | M79: =ROUND($I79*E79,2) -> 39.93 | N79: =ROUND($I79*F79,2) -> 40.5 | O79: 6504500
A80: 65 | B80: 2014-08-19 | C80: 40.96 | D80: 41 | E80: 40.26 | F80: 40.43 | G80: 5819600 | H80: 40.33 | I80: 0.9975265892 | J80: 1 | K80: =ROUND($I80*C80,2) -> 40.86 | L80: =ROUND($I80*D80,2) -> 40.9 | M80: =ROUND($I80*E80,2) -> 40.16 | N80: =ROUND($I80*F80,2) -> 40.33 | O80: 5819600
A81: 66 | B81: 2014-08-18 | C81: 39.6 | D81: 40.9 | E81: 39.6 | F81: 40.66 | G81: 10900700 | H81: 40.56 | I81: 0.9975405804 | J81: 1 | K81: =ROUND($I81*C81,2) -> 39.5 | L81: =ROUND($I81*D81,2) -> 40.8 | M81: =ROUND($I81*E81,2) -> 39.5 | N81: =ROUND($I81*F81,2) -> 40.56 | O81: 10900700
A82: 67 | B82: 2014-08-15 | C82: 39.98 | D82: 40.08 | E82: 38.79 | F82: 39.19 | G82: 9806500 | H82: 39.09 | I82: =H82/F82 -> 0.9974483287 | J82: =INDEX(OFFSET($T$15,0,0,$S$13+1,1),MATCH(B82,OFFSET($Q$15,0,0,$S$13+1,1),-1)) -> 1 | K82: =ROUND($I82*C82,2) -> 39.88 | L82: =ROUND($I82*D82,2) -> 39.98 | M82: =ROUND($I82*E82,2) -> 38.69 | N82: =ROUND($I82*F82,2) -> 39.09 | O82: =G82*J82 -> 9806500
A83: 68 | B83: 2014-08-14 | C83: 38.5 | D83: 39.61 | E83: 38.46 | F83: 39.57 | G83: 10132500 | H83: 39.47 | I83: 0.997472833 | J83: 1 | K83: =ROUND($I83*C83,2) -> 38.4 | L83: =ROUND($I83*D83,2) -> 39.51 | M83: =ROUND($I83*E83,2) -> 38.36 | N83: =ROUND($I83*F83,2) -> 39.47 | O83: 10132500
A84: 69 | B84: 2014-08-13 | C84: 37.64 | D84: 38.46 | E84: 37.44 | F84: 38.12 | G84: 6177000 | H84: 38.02 | I84: 0.9973767051 | J84: 1 | K84: =ROUND($I84*C84,2) -> 37.54 | L84: =ROUND($I84*D84,2) -> 38.36 | M84: =ROUND($I84*E84,2) -> 37.34 | N84: =ROUND($I84*F84,2) -> 38.02 | O84: 6177000
A85: 70 | B85: 2014-08-12 | C85: 38.14 | D85: 38.14 | E85: 37.27 | F85: 37.52 | G85: 6223700 | H85: 37.43 | I85: 0.9976012793 | J85: 1 | K85: =ROUND($I85*C85,2) -> 38.05 | L85: =ROUND($I85*D85,2) -> 38.05 | M85: =ROUND($I85*E85,2) -> 37.18 | N85: =ROUND($I85*F85,2) -> 37.43 | O85: 6223700
A86: 71 | B86: 2014-08-11 | C86: 37.79 | D86: 38.37 | E86: 37.35 | F86: 37.97 | G86: 9015800 | H86: 37.87 | I86: 0.9973663418 | J86: 1 | K86: =ROUND($I86*C86,2) -> 37.69 | L86: =ROUND($I86*D86,2) -> 38.27 | M86: =ROUND($I86*E86,2) -> 37.25 | N86: =ROUND($I86*F86,2) -> 37.87 | O86: 9015800
A87: 72 | B87: 2014-08-08 | C87: 36.56 | D87: 37.38 | E87: 35.23 | F87: 37.18 | G87: 20753800 | H87: 37.09 | I87: 0.9975793437 | J87: 1 | K87: =ROUND($I87*C87,2) -> 36.47 | L87: =ROUND($I87*D87,2) -> 37.29 | M87: =ROUND($I87*E87,2) -> 35.14 | N87: =ROUND($I87*F87,2) -> 37.09 | O87: 20753800
A88: 73 | B88: 2014-08-07 | C88: 37.7 | D88: 38.41 | E88: 36.5 | F88: 36.86 | G88: 9886800 | H88: 36.77 | I88: 0.9975583288 | J88: 1 | K88: =ROUND($I88*C88,2) -> 37.61 | L88: =ROUND($I88*D88,2) -> 38.32 | M88: =ROUND($I88*E88,2) -> 36.41 | N88: =ROUND($I88*F88,2) -> 36.77 | O88: 9886800
A89: 74 | B89: 2014-08-06 | C89: 36.56 | D89: 38 | E89: 36.14 | F89: 37.46 | G89: 9501300 | H89: 37.37 | I89: 0.9975974373 | J89: 1 | K89: =ROUND($I89*C89,2) -> 36.47 | L89: =ROUND($I89*D89,2) -> 37.91 | M89: =ROUND($I89*E89,2) -> 36.05 | N89: =ROUND($I89*F89,2) -> 37.37 | O89: 9501300
A90: 75 | B90: 2014-08-05 | C90: 37.89 | D90: 38.45 | E90: 36.74 | F90: 37.18 | G90: 10423000 | H90: 37.09 | I90: 0.9975793437 | J90: 1 | K90: =ROUND($I90*C90,2) -> 37.8 | L90: =ROUND($I90*D90,2) -> 38.36 | M90: =ROUND($I90*E90,2) -> 36.65 | N90: =ROUND($I90*F90,2) -> 37.09 | O90: 10423000
A91: 76 | B91: 2014-08-04 | C91: 39.49 | D91: 39.85 | E91: 37.63 | F91: 38.14 | G91: 11090100 | H91: 38.04 | I91: 0.9973780808 | J91: 1 | K91: =ROUND($I91*C91,2) -> 39.39 | L91: =ROUND($I91*D91,2) -> 39.75 | M91: =ROUND($I91*E91,2) -> 37.53 | N91: =ROUND($I91*F91,2) -> 38.04 | O91: 11090100
A92: 77 | B92: 2014-08-01 | C92: 38.75 | D92: 39.53 | E92: 38.43 | F92: 39.43 | G92: 8975900 | H92: 39.33 | I92: 0.99746386 | J92: 1 | K92: =ROUND($I92*C92,2) -> 38.65 | L92: =ROUND($I92*D92,2) -> 39.43 | M92: =ROUND($I92*E92,2) -> 38.33 | N92: =ROUND($I92*F92,2) -> 39.33 | O92: 8975900
A93: 78 | B93: 2014-07-31 | C93: 38.9 | D93: 39.4 | E93: 38.05 | F93: 38.85 | G93: 13532100 | H93: 38.75 | I93: 0.9974259974 | J93: 1 | K93: =ROUND($I93*C93,2) -> 38.8 | L93: =ROUND($I93*D93,2) -> 39.3 | M93: =ROUND($I93*E93,2) -> 37.95 | N93: =ROUND($I93*F93,2) -> 38.75 | O93: 13532100
A94: 79 | B94: 2014-07-30 | C94: 39.9 | D94: 40.26 | E94: 39.3 | F94: 39.55 | G94: 10757600 | H94: 39.35 | I94: 0.99494311 | J94: 1 | K94: =ROUND($I94*C94,2) -> 39.7 | L94: =ROUND($I94*D94,2) -> 40.06 | M94: =ROUND($I94*E94,2) -> 39.1 | N94: =ROUND($I94*F94,2) -> 39.35 | O94: 10757600
A95: 80 | B95: 2014-07-29 | C95: 40.65 | D95: 40.85 | E95: 39.39 | F95: 39.53 | G95: 10713400 | H95: 39.33 | I95: 0.9949405515 | J95: 1 | K95: =ROUND($I95*C95,2) -> 40.44 | L95: =ROUND($I95*D95,2) -> 40.64 | M95: =ROUND($I95*E95,2) -> 39.19 | N95: =ROUND($I95*F95,2) -> 39.33 | O95: 10713400
A96: 81 | B96: 2014-07-28 | C96: 41.87 | D96: 41.95 | E96: 39.81 | F96: 40.29 | G96: 15941300 | H96: 40.09 | I96: 0.9950359891 | J96: 1 | K96: =ROUND($I96*C96,2) -> 41.66 | L96: =ROUND($I96*D96,2) -> 41.74 | M96: =ROUND($I96*E96,2) -> 39.61 | N96: =ROUND($I96*F96,2) -> 40.09 | O96: 15941300
A97: 82 | B97: 2014-07-25 | C97: 42.25 | D97: 42.68 | E97: 41.34 | F97: 41.68 | G97: 10986700 | H97: 41.47 | I97: 0.9949616123 | J97: 1 | K97: =ROUND($I97*C97,2) -> 42.04 | L97: =ROUND($I97*D97,2) -> 42.46 | M97: =ROUND($I97*E97,2) -> 41.13 | N97: =ROUND($I97*F97,2) -> 41.47 | O97: 10986700
A98: 83 | B98: 2014-07-24 | C98: 42.5 | D98: 43.95 | E98: 41.7 | F98: 42.16 | G98: 18015200 | H98: 41.95 | I98: 0.9950189753 | J98: 1 | K98: =ROUND($I98*C98,2) -> 42.29 | L98: =ROUND($I98*D98,2) -> 43.73 | M98: =ROUND($I98*E98,2) -> 41.49 | N98: =ROUND($I98*F98,2) -> 41.95 | O98: 18015200
A99: 84 | B99: 2014-07-23 | C99: 42.72 | D99: 43.66 | E99: 42.65 | F99: 43.33 | G99: 10166700 | H99: 43.11 | I99: 0.9949226864 | J99: 1 | K99: =ROUND($I99*C99,2) -> 42.5 | L99: =ROUND($I99*D99,2) -> 43.44 | M99: =ROUND($I99*E99,2) -> 42.43 | N99: =ROUND($I99*F99,2) -> 43.11 | O99: 10166700
A100: 85 | B100: 2014-07-22 | C100: 42.7 | D100: 42.89 | E100: 42.15 | F100: 42.38 | G100: 6456900 | H100: 42.17 | I100: 0.9950448325 | J100: 1 | K100: =ROUND($I100*C100,2) -> 42.49 | L100: =ROUND($I100*D100,2) -> 42.68 | M100: =ROUND($I100*E100,2) -> 41.94 | N100: =ROUND($I100*F100,2) -> 42.17 | O100: 6456900
A101: 86 | B101: 2014-07-21 | C101: 42.91 | D101: 42.95 | E101: 42.25 | F101: 42.48 | G101: 5679500 | H101: 42.27 | I101: 0.9950564972 | J101: 1 | K101: =ROUND($I101*C101,2) -> 42.7 | L101: =ROUND($I101*D101,2) -> 42.74 | M101: =ROUND($I101*E101,2) -> 42.04 | N101: =ROUND($I101*F101,2) -> 42.27 | O101: 5679500
A102: 87 | B102: 2014-07-18 | C102: 42.23 | D102: 43.22 | E102: 42.15 | F102: 42.92 | G102: 8869000 | H102: 42.7 | I102: 0.9948741845 | J102: 1 | K102: =ROUND($I102*C102,2) -> 42.01 | L102: =ROUND($I102*D102,2) -> 43 | M102: =ROUND($I102*E102,2) -> 41.93 | N102: =ROUND($I102*F102,2) -> 42.7 | O102: 8869000
A103: 88 | B103: 2014-07-17 | C103: 43.04 | D103: 43.44 | E103: 41.65 | F103: 41.7 | G103: 13919700 | H103: 41.49 | I103: 0.9949640288 | J103: 1 | K103: =ROUND($I103*C103,2) -> 42.82 | L103: =ROUND($I103*D103,2) -> 43.22 | M103: =ROUND($I103*E103,2) -> 41.44 | N103: =ROUND($I103*F103,2) -> 41.49 | O103: 13919700
A104: 89 | B104: 2014-07-16 | C104: 44 | D104: 44 | E104: 43.3 | F104: 43.48 | G104: 6371100 | H104: 43.26 | I104: 0.9949402024 | J104: 1 | K104: =ROUND($I104*C104,2) -> 43.78 | L104: =ROUND($I104*D104,2) -> 43.78 | M104: =ROUND($I104*E104,2) -> 43.08 | N104: =ROUND($I104*F104,2) -> 43.26 | O104: 6371100
A105: 90 | B105: 2014-07-15 | C105: 43.33 | D105: 43.73 | E105: 42.78 | F105: 43.7 | G105: 8358400 | H105: 43.48 | I105: 0.9949656751 | J105: 1 | K105: =ROUND($I105*C105,2) -> 43.11 | L105: =ROUND($I105*D105,2) -> 43.51 | M105: =ROUND($I105*E105,2) -> 42.56 | N105: =ROUND($I105*F105,2) -> 43.48 | O105: 8358400
A106: 91 | B106: 2014-07-14 | C106: 43.26 | D106: 43.59 | E106: 42.73 | F106: 42.98 | G106: 7214700 | H106: 42.76 | I106: 0.9948813402 | J106: 1 | K106: =ROUND($I106*C106,2) -> 43.04 | L106: =ROUND($I106*D106,2) -> 43.37 | M106: =ROUND($I106*E106,2) -> 42.51 | N106: =ROUND($I106*F106,2) -> 42.76 | O106: 7214700
A107: 92 | B107: 2014-07-11 | C107: 42.91 | D107: 43.23 | E107: 42.52 | F107: 42.88 | G107: 8135500 | H107: 42.66 | I107: 0.994869403 | J107: 1 | K107: =ROUND($I107*C107,2) -> 42.69 | L107: =ROUND($I107*D107,2) -> 43.01 | M107: =ROUND($I107*E107,2) -> 42.3 | N107: =ROUND($I107*F107,2) -> 42.66 | O107: 8135500
A108: 93 | B108: 2014-07-10 | C108: 41 | D108: 42.98 | E108: 40.77 | F108: 42.82 | G108: 11827200 | H108: 42.6 | I108: 0.9948622139 | J108: 1 | K108: =ROUND($I108*C108,2) -> 40.79 | L108: =ROUND($I108*D108,2) -> 42.76 | M108: =ROUND($I108*E108,2) -> 40.56 | N108: =ROUND($I108*F108,2) -> 42.6 | O108: 11827200
A109: 94 | B109: 2014-07-09 | C109: 42.08 | D109: 42.35 | E109: 40.51 | F109: 41.99 | G109: 20468300 | H109: 41.78 | I109: 0.9949988092 | J109: 1 | K109: =ROUND($I109*C109,2) -> 41.87 | L109: =ROUND($I109*D109,2) -> 42.14 | M109: =ROUND($I109*E109,2) -> 40.31 | N109: =ROUND($I109*F109,2) -> 41.78 | O109: 20468300
A110: 95 | B110: 2014-07-08 | C110: 39.14 | D110: 40.33 | E110: 37.9 | F110: 40.26 | G110: 26399400 | H110: 40.06 | I110: 0.9950322901 | J110: 1 | K110: =ROUND($I110*C110,2) -> 38.95 | L110: =ROUND($I110*D110,2) -> 40.13 | M110: =ROUND($I110*E110,2) -> 37.71 | N110: =ROUND($I110*F110,2) -> 40.06 | O110: 26399400
A111: 96 | B111: 2014-07-07 | C111: 41.72 | D111: 41.72 | E111: 39.92 | F111: 40.1 | G111: 14223500 | H111: 39.9 | I111: 0.9950124688 | J111: 1 | K111: =ROUND($I111*C111,2) -> 41.51 | L111: =ROUND($I111*D111,2) -> 41.51 | M111: =ROUND($I111*E111,2) -> 39.72 | N111: =ROUND($I111*F111,2) -> 39.9 | O111: 14223500
A112: 97 | B112: 2014-07-03 | C112: 42.61 | D112: 42.94 | E112: 41.4 | F112: 41.62 | G112: 8258000 | H112: 41.41 | I112: 0.9949543489 | J112: 1 | K112: =ROUND($I112*C112,2) -> 42.4 | L112: =ROUND($I112*D112,2) -> 42.72 | M112: =ROUND($I112*E112,2) -> 41.19 | N112: =ROUND($I112*F112,2) -> 41.41 | O112: 8258000
A113: 98 | B113: 2014-07-02 | C113: 42.89 | D113: 42.95 | E113: 41.42 | F113: 41.95 | G113: 19744600 | H113: 41.74 | I113: 0.9949940405 | J113: 1 | K113: =ROUND($I113*C113,2) -> 42.68 | L113: =ROUND($I113*D113,2) -> 42.73 | M113: =ROUND($I113*E113,2) -> 41.21 | N113: =ROUND($I113*F113,2) -> 41.74 | O113: 19744600
A114: 99 | B114: 2014-07-01 | C114: 43.44 | D114: 43.9 | E114: 43.05 | F114: 43.86 | G114: 9162600 | H114: 43.64 | I114: 0.9949840401 | J114: 1 | K114: =ROUND($I114*C114,2) -> 43.22 | L114: =ROUND($I114*D114,2) -> 43.68 | M114: =ROUND($I114*E114,2) -> 42.83 | N114: =ROUND($I114*F114,2) -> 43.64 | O114: 9162600
A115: 100 | B115: 2014-06-30 | C115: 44.04 | D115: 44.08 | E115: 42.83 | F115: 42.96 | G115: 10456600 | H115: 42.74 | I115: 0.9948789572 | J115: 1 | K115: =ROUND($I115*C115,2) -> 43.81 | L115: =ROUND($I115*D115,2) -> 43.85 | M115: =ROUND($I115*E115,2) -> 42.61 | N115: =ROUND($I115*F115,2) -> 42.74 | O115: 10456600
A116: 101 | B116: 2014-06-27 | C116: 44.3 | D116: 44.75 | E116: 43.91 | F116: 44 | G116: 41468300 | H116: 43.78 | I116: 0.995 | J116: 1 | K116: =ROUND($I116*C116,2) -> 44.08 | L116: =ROUND($I116*D116,2) -> 44.53 | M116: =ROUND($I116*E116,2) -> 43.69 | N116: =ROUND($I116*F116,2) -> 43.78 | O116: 41468300
A117: 102 | B117: 2014-06-26 | C117: 43.96 | D117: 44.6 | E117: 43.5 | F117: 44.55 | G117: 11174300 | H117: 44.33 | I117: 0.9950617284 | J117: 1 | K117: =ROUND($I117*C117,2) -> 43.74 | L117: =ROUND($I117*D117,2) -> 44.38 | M117: =ROUND($I117*E117,2) -> 43.29 | N117: =ROUND($I117*F117,2) -> 44.33 | O117: 11174300
A118: 103 | B118: 2014-06-25 | C118: 42.9 | D118: 44 | E118: 42.3 | F118: 43.91 | G118: 10944400 | H118: 43.69 | I118: 0.9949897518 | J118: 1 | K118: =ROUND($I118*C118,2) -> 42.69 | L118: =ROUND($I118*D118,2) -> 43.78 | M118: =ROUND($I118*E118,2) -> 42.09 | N118: =ROUND($I118*F118,2) -> 43.69 | O118: 10944400
A119: 104 | B119: 2014-06-24 | C119: 44.14 | D119: 44.61 | E119: 42.76 | F119: 43.18 | G119: 13248100 | H119: 42.96 | I119: 0.9949050486 | J119: 1 | K119: =ROUND($I119*C119,2) -> 43.92 | L119: =ROUND($I119*D119,2) -> 44.38 | M119: =ROUND($I119*E119,2) -> 42.54 | N119: =ROUND($I119*F119,2) -> 42.96 | O119: 13248100
A120: 105 | B120: 2014-06-23 | C120: 44.3 | D120: 44.88 | E120: 43.8 | F120: 44.36 | G120: 18454500 | H120: 44.14 | I120: 0.9950405771 | J120: 1 | K120: =ROUND($I120*C120,2) -> 44.08 | L120: =ROUND($I120*D120,2) -> 44.66 | M120: =ROUND($I120*E120,2) -> 43.58 | N120: =ROUND($I120*F120,2) -> 44.14 | O120: 18454500
A121: 106 | B121: 2014-06-20 | C121: 43.04 | D121: 44.55 | E121: 43.03 | F121: 44.55 | G121: 40641900 | H121: 44.33 | I121: 0.9950617284 | J121: 1 | K121: =ROUND($I121*C121,2) -> 42.83 | L121: =ROUND($I121*D121,2) -> 44.33 | M121: =ROUND($I121*E121,2) -> 42.82 | N121: =ROUND($I121*F121,2) -> 44.33 | O121: 40641900
A122: 107 | B122: 2014-06-19 | C122: 42.82 | D122: 43.49 | E122: 42.66 | F122: 43.06 | G122: 14116000 | H122: 42.84 | I122: 0.99489085 | J122: 1 | K122: =ROUND($I122*C122,2) -> 42.6 | L122: =ROUND($I122*D122,2) -> 43.27 | M122: =ROUND($I122*E122,2) -> 42.44 | N122: =ROUND($I122*F122,2) -> 42.84 | O122: 14116000
A123: 108 | B123: 2014-06-18 | C123: 41.93 | D123: 42.82 | E123: 41.57 | F123: 42.66 | G123: 11249400 | H123: 42.45 | I123: 0.9950773558 | J123: 1 | K123: =ROUND($I123*C123,2) -> 41.72 | L123: =ROUND($I123*D123,2) -> 42.61 | M123: =ROUND($I123*E123,2) -> 41.37 | N123: =ROUND($I123*F123,2) -> 42.45 | O123: 11249400
A124: 109 | B124: 2014-06-17 | C124: 41.08 | D124: 42.19 | E124: 40.76 | F124: 41.87 | G124: 12523400 | H124: 41.66 | I124: 0.9949844758 | J124: 1 | K124: =ROUND($I124*C124,2) -> 40.87 | L124: =ROUND($I124*D124,2) -> 41.98 | M124: =ROUND($I124*E124,2) -> 40.56 | N124: =ROUND($I124*F124,2) -> 41.66 | O124: 12523400
A125: 110 | B125: 2014-06-16 | C125: 39.68 | D125: 41.29 | E125: 39.67 | F125: 41.06 | G125: 13633600 | H125: 40.85 | I125: 0.9948855334 | J125: 1 | K125: =ROUND($I125*C125,2) -> 39.48 | L125: =ROUND($I125*D125,2) -> 41.08 | M125: =ROUND($I125*E125,2) -> 39.47 | N125: =ROUND($I125*F125,2) -> 40.85 | O125: 13633600
A126: 111 | B126: 2014-06-13 | C126: 40.25 | D126: 40.92 | E126: 39.55 | F126: 40.38 | G126: 13586100 | H126: 40.18 | I126: 0.995047053 | J126: 1 | K126: =ROUND($I126*C126,2) -> 40.05 | L126: =ROUND($I126*D126,2) -> 40.72 | M126: =ROUND($I126*E126,2) -> 39.35 | N126: =ROUND($I126*F126,2) -> 40.18 | O126: 13586100
A127: 112 | B127: 2014-06-12 | C127: 41.27 | D127: 41.41 | E127: 38.85 | F127: 40.2 | G127: 37320100 | H127: 40 | I127: 0.9950248756 | J127: 1 | K127: =ROUND($I127*C127,2) -> 41.06 | L127: =ROUND($I127*D127,2) -> 41.2 | M127: =ROUND($I127*E127,2) -> 38.66 | N127: =ROUND($I127*F127,2) -> 40 | O127: 37320100
A128: 113 | B128: 2014-06-11 | C128: 42.9 | D128: 43.29 | E128: 42.03 | F128: 42.29 | G128: 13184000 | H128: 42.08 | I128: 0.9950342871 | J128: 1 | K128: =ROUND($I128*C128,2) -> 42.69 | L128: =ROUND($I128*D128,2) -> 43.08 | M128: =ROUND($I128*E128,2) -> 41.82 | N128: =ROUND($I128*F128,2) -> 42.08 | O128: 13184000
A129: 114 | B129: 2014-06-10 | C129: 43.5 | D129: 43.86 | E129: 42.93 | F129: 43.66 | G129: 8384400 | H129: 43.44 | I129: 0.9949610628 | J129: 1 | K129: =ROUND($I129*C129,2) -> 43.28 | L129: =ROUND($I129*D129,2) -> 43.64 | M129: =ROUND($I129*E129,2) -> 42.71 | N129: =ROUND($I129*F129,2) -> 43.44 | O129: 8384400
A130: 115 | B130: 2014-06-09 | C130: 44 | D130: 44.43 | E130: 43.07 | F130: 43.59 | G130: 11689500 | H130: 43.37 | I130: 0.9949529709 | J130: 1 | K130: =ROUND($I130*C130,2) -> 43.78 | L130: =ROUND($I130*D130,2) -> 44.21 | M130: =ROUND($I130*E130,2) -> 42.85 | N130: =ROUND($I130*F130,2) -> 43.37 | O130: 11689500
A131: 116 | B131: 2014-06-06 | C131: 42.45 | D131: 43.92 | E131: 42.42 | F131: 43.88 | G131: 13615400 | H131: 43.66 | I131: 0.9949863263 | J131: 1 | K131: =ROUND($I131*C131,2) -> 42.24 | L131: =ROUND($I131*D131,2) -> 43.7 | M131: =ROUND($I131*E131,2) -> 42.21 | N131: =ROUND($I131*F131,2) -> 43.66 | O131: 13615400
A132: 117 | B132: 2014-06-05 | C132: 43 | D132: 43.49 | E132: 42.27 | F132: 42.41 | G132: 8539600 | H132: 42.2 | I132: 0.9950483377 | J132: 1 | K132: =ROUND($I132*C132,2) -> 42.79 | L132: =ROUND($I132*D132,2) -> 43.27 | M132: =ROUND($I132*E132,2) -> 42.06 | N132: =ROUND($I132*F132,2) -> 42.2 | O132: 8539600
A133: 118 | B133: 2014-06-04 | C133: 41.36 | D133: 42.9 | E133: 41.2 | F133: 42.82 | G133: 11931500 | H133: 42.6 | I133: 0.9948622139 | J133: 1 | K133: =ROUND($I133*C133,2) -> 41.15 | L133: =ROUND($I133*D133,2) -> 42.68 | M133: =ROUND($I133*E133,2) -> 40.99 | N133: =ROUND($I133*F133,2) -> 42.6 | O133: 11931500
A134: 119 | B134: 2014-06-03 | C134: 41.13 | D134: 42.09 | E134: 41.11 | F134: 41.44 | G134: 9456200 | H134: 41.23 | I134: 0.9949324324 | J134: 1 | K134: =ROUND($I134*C134,2) -> 40.92 | L134: =ROUND($I134*D134,2) -> 41.88 | M134: =ROUND($I134*E134,2) -> 40.9 | N134: =ROUND($I134*F134,2) -> 41.23 | O134: 9456200
A135: 120 | B135: 2014-06-02 | C135: 40 | D135: 41.25 | E135: 40 | F135: 41.22 | G135: 9902100 | H135: 41.01 | I135: 0.9949053857 | J135: 1 | K135: =ROUND($I135*C135,2) -> 39.8 | L135: =ROUND($I135*D135,2) -> 41.04 | M135: =ROUND($I135*E135,2) -> 39.8 | N135: =ROUND($I135*F135,2) -> 41.01 | O135: 9902100
A136: 121 | B136: 2014-05-30 | C136: 39.83 | D136: 40.17 | E136: 39.68 | F136: 40.16 | G136: 13888300 | H136: 39.96 | I136: 0.9950199203 | J136: 1 | K136: =ROUND($I136*C136,2) -> 39.63 | L136: =ROUND($I136*D136,2) -> 39.97 | M136: =ROUND($I136*E136,2) -> 39.48 | N136: =ROUND($I136*F136,2) -> 39.96 | O136: 13888300
A137: 122 | B137: 2014-05-29 | C137: 39.89 | D137: 40.27 | E137: 39.36 | F137: 39.82 | G137: 9667100 | H137: 39.62 | I137: 0.9949773983 | J137: 1 | K137: =ROUND($I137*C137,2) -> 39.69 | L137: =ROUND($I137*D137,2) -> 40.07 | M137: =ROUND($I137*E137,2) -> 39.16 | N137: =ROUND($I137*F137,2) -> 39.62 | O137: 9667100
A138: 123 | B138: 2014-05-28 | C138: 39.4 | D138: 40.33 | E138: 39.19 | F138: 39.8 | G138: 11132400 | H138: 39.6 | I138: 0.9949748744 | J138: 1 | K138: =ROUND($I138*C138,2) -> 39.2 | L138: =ROUND($I138*D138,2) -> 40.13 | M138: =ROUND($I138*E138,2) -> 38.99 | N138: =ROUND($I138*F138,2) -> 39.6 | O138: 11132400
A139: 124 | B139: 2014-05-27 | C139: 39.38 | D139: 39.93 | E139: 39.23 | F139: 39.35 | G139: 9586900 | H139: 39.15 | I139: 0.9949174079 | J139: 1 | K139: =ROUND($I139*C139,2) -> 39.18 | L139: =ROUND($I139*D139,2) -> 39.73 | M139: =ROUND($I139*E139,2) -> 39.03 | N139: =ROUND($I139*F139,2) -> 39.15 | O139: 9586900
A140: 125 | B140: 2014-05-23 | C140: 38.53 | D140: 39.5 | E140: 38.53 | F140: 39.11 | G140: 9864400 | H140: 38.91 | I140: 0.9948862184 | J140: 1 | K140: =ROUND($I140*C140,2) -> 38.33 | L140: =ROUND($I140*D140,2) -> 39.3 | M140: =ROUND($I140*E140,2) -> 38.33 | N140: =ROUND($I140*F140,2) -> 38.91 | O140: 9864400
A141: 126 | B141: 2014-05-22 | C141: 38.3 | D141: 38.88 | E141: 38.3 | F141: 38.72 | G141: 6414500 | H141: 38.53 | I141: 0.9950929752 | J141: 1 | K141: =ROUND($I141*C141,2) -> 38.11 | L141: =ROUND($I141*D141,2) -> 38.69 | M141: =ROUND($I141*E141,2) -> 38.11 | N141: =ROUND($I141*F141,2) -> 38.53 | O141: 6414500
A142: 127 | B142: 2014-05-21 | C142: 38.28 | D142: 38.85 | E142: 38.05 | F142: 38.32 | G142: 6564100 | H142: 38.13 | I142: 0.9950417537 | J142: 1 | K142: =ROUND($I142*C142,2) -> 38.09 | L142: =ROUND($I142*D142,2) -> 38.66 | M142: =ROUND($I142*E142,2) -> 37.86 | N142: =ROUND($I142*F142,2) -> 38.13 | O142: 6564100
A143: 128 | B143: 2014-05-20 | C143: 38.54 | D143: 38.88 | E143: 38.02 | F143: 38.24 | G143: 6285400 | H143: 38.05 | I143: 0.9950313808 | J143: 1 | K143: =ROUND($I143*C143,2) -> 38.35 | L143: =ROUND($I143*D143,2) -> 38.69 | M143: =ROUND($I143*E143,2) -> 37.83 | N143: =ROUND($I143*F143,2) -> 38.05 | O143: 6285400
A144: 129 | B144: 2014-05-19 | C144: 38.49 | D144: 39.16 | E144: 38.1 | F144: 38.57 | G144: 7164500 | H144: 38.38 | I144: 0.9950738916 | J144: 1 | K144: =ROUND($I144*C144,2) -> 38.3 | L144: =ROUND($I144*D144,2) -> 38.97 | M144: =ROUND($I144*E144,2) -> 37.91 | N144: =ROUND($I144*F144,2) -> 38.38 | O144: 7164500
A145: 130 | B145: 2014-05-16 | C145: 38.01 | D145: 38.68 | E145: 37.76 | F145: 38.53 | G145: 7062500 | H145: 38.34 | I145: 0.9950687776 | J145: 1 | K145: =ROUND($I145*C145,2) -> 37.82 | L145: =ROUND($I145*D145,2) -> 38.49 | M145: =ROUND($I145*E145,2) -> 37.57 | N145: =ROUND($I145*F145,2) -> 38.34 | O145: 7062500
A146: 131 | B146: 2014-05-15 | C146: 38.55 | D146: 38.73 | E146: 37.48 | F146: 38.19 | G146: 10673900 | H146: 38 | I146: =H146/F146 -> 0.9950248756 | J146: =INDEX(OFFSET($T$15,0,0,$S$13+1,1),MATCH(B146,OFFSET($Q$15,0,0,$S$13+1,1),-1)) -> 1 | K146: =ROUND($I146*C146,2) -> 38.36 | L146: =ROUND($I146*D146,2) -> 38.54 | M146: =ROUND($I146*E146,2) -> 37.29 | N146: =ROUND($I146*F146,2) -> 38 | O146: =G146*J146 -> 10673900
A147: 132 | B147: 2014-05-14 | C147: 39.08 | D147: 39.24 | E147: 38.56 | F147: 38.84 | G147: 7987700 | H147: 38.64 | I147: 0.9948506694 | J147: 1 | K147: =ROUND($I147*C147,2) -> 38.88 | L147: =ROUND($I147*D147,2) -> 39.04 | M147: =ROUND($I147*E147,2) -> 38.36 | N147: =ROUND($I147*F147,2) -> 38.64 | O147: 7987700
A148: 133 | B148: 2014-05-13 | C148: 38.95 | D148: 39.74 | E148: 38.85 | F148: 39.31 | G148: 8680100 | H148: 39.11 | I148: 0.9949122361 | J148: 1 | K148: =ROUND($I148*C148,2) -> 38.75 | L148: =ROUND($I148*D148,2) -> 39.54 | M148: =ROUND($I148*E148,2) -> 38.65 | N148: =ROUND($I148*F148,2) -> 39.11 | O148: 8680100
A149: 134 | B149: 2014-05-12 | C149: 38.35 | D149: 39.49 | E149: 38.35 | F149: 39.39 | G149: 12438300 | H149: 39.19 | I149: 0.9949225692 | J149: 1 | K149: =ROUND($I149*C149,2) -> 38.16 | L149: =ROUND($I149*D149,2) -> 39.29 | M149: =ROUND($I149*E149,2) -> 38.16 | N149: =ROUND($I149*F149,2) -> 39.19 | O149: 12438300
A150: 135 | B150: 2014-05-09 | C150: 37.96 | D150: 38.7 | E150: 37.91 | F150: 38.26 | G150: 9704400 | H150: 38.07 | I150: 0.995033978 | J150: 1 | K150: =ROUND($I150*C150,2) -> 37.77 | L150: =ROUND($I150*D150,2) -> 38.51 | M150: =ROUND($I150*E150,2) -> 37.72 | N150: =ROUND($I150*F150,2) -> 38.07 | O150: 9704400
A151: 136 | B151: 2014-05-08 | C151: 37.25 | D151: 38.25 | E151: 37.05 | F151: 38.25 | G151: 14450100 | H151: 38.06 | I151: 0.9950326797 | J151: 1 | K151: =ROUND($I151*C151,2) -> 37.06 | L151: =ROUND($I151*D151,2) -> 38.06 | M151: =ROUND($I151*E151,2) -> 36.87 | N151: =ROUND($I151*F151,2) -> 38.06 | O151: 14450100
A152: 137 | B152: 2014-05-07 | C152: 36.53 | D152: 37.31 | E152: 36.31 | F152: 37.22 | G152: 7800000 | H152: 37.03 | I152: 0.9948952176 | J152: 1 | K152: =ROUND($I152*C152,2) -> 36.34 | L152: =ROUND($I152*D152,2) -> 37.12 | M152: =ROUND($I152*E152,2) -> 36.12 | N152: =ROUND($I152*F152,2) -> 37.03 | O152: 7800000
A153: 138 | B153: 2014-05-06 | C153: 37.14 | D153: 37.4 | E153: 36.39 | F153: 36.67 | G153: 9492600 | H153: 36.49 | I153: 0.9950913553 | J153: 1 | K153: =ROUND($I153*C153,2) -> 36.96 | L153: =ROUND($I153*D153,2) -> 37.22 | M153: =ROUND($I153*E153,2) -> 36.21 | N153: =ROUND($I153*F153,2) -> 36.49 | O153: 9492600
A154: 139 | B154: 2014-05-05 | C154: 36.08 | D154: 36.78 | E154: 35.79 | F154: 36.6 | G154: 5818100 | H154: 36.42 | I154: 0.9950819672 | J154: 1 | K154: =ROUND($I154*C154,2) -> 35.9 | L154: =ROUND($I154*D154,2) -> 36.6 | M154: =ROUND($I154*E154,2) -> 35.61 | N154: =ROUND($I154*F154,2) -> 36.42 | O154: 5818100
A155: 140 | B155: 2014-05-02 | C155: 36.27 | D155: 36.72 | E155: 36.06 | F155: 36.49 | G155: 6986300 | H155: 36.31 | I155: 0.9950671417 | J155: 1 | K155: =ROUND($I155*C155,2) -> 36.09 | L155: =ROUND($I155*D155,2) -> 36.54 | M155: =ROUND($I155*E155,2) -> 35.88 | N155: =ROUND($I155*F155,2) -> 36.31 | O155: 6986300
A156: 141 | B156: 2014-05-01 | C156: 35.86 | D156: 36.7 | E156: 35.47 | F156: 36.39 | G156: 11497700 | H156: 36.21 | I156: 0.9950535862 | J156: 1 | K156: =ROUND($I156*C156,2) -> 35.68 | L156: =ROUND($I156*D156,2) -> 36.52 | M156: =ROUND($I156*E156,2) -> 35.29 | N156: =ROUND($I156*F156,2) -> 36.21 | O156: 11497700
A157: 142 | B157: 2014-04-30 | C157: 35.68 | D157: 35.88 | E157: 34.89 | F157: 35.07 | G157: 6944600 | H157: 34.89 | I157: 0.994867408 | J157: 1 | K157: =ROUND($I157*C157,2) -> 35.5 | L157: =ROUND($I157*D157,2) -> 35.7 | M157: =ROUND($I157*E157,2) -> 34.71 | N157: =ROUND($I157*F157,2) -> 34.89 | O157: 6944600
A158: 143 | B158: 2014-04-29 | C158: 35.2 | D158: 35.65 | E158: 34.97 | F158: 35.51 | G158: 8994200 | H158: 35.33 | I158: 0.9949310054 | J158: 1 | K158: =ROUND($I158*C158,2) -> 35.02 | L158: =ROUND($I158*D158,2) -> 35.47 | M158: =ROUND($I158*E158,2) -> 34.79 | N158: =ROUND($I158*F158,2) -> 35.33 | O158: 8994200
A159: 144 | B159: 2014-04-28 | C159: 36.41 | D159: 36.72 | E159: 34.34 | F159: 35.16 | G159: 13149300 | H159: 34.98 | I159: 0.9948805461 | J159: 1 | K159: =ROUND($I159*C159,2) -> 36.22 | L159: =ROUND($I159*D159,2) -> 36.53 | M159: =ROUND($I159*E159,2) -> 34.16 | N159: =ROUND($I159*F159,2) -> 34.98 | O159: 13149300
A160: 145 | B160: 2014-04-25 | C160: 37 | D160: 37.11 | E160: 35.91 | F160: 36 | G160: 9574100 | H160: 35.82 | I160: 0.995 | J160: 1 | K160: =ROUND($I160*C160,2) -> 36.82 | L160: =ROUND($I160*D160,2) -> 36.92 | M160: =ROUND($I160*E160,2) -> 35.73 | N160: =ROUND($I160*F160,2) -> 35.82 | O160: 9574100
A161: 146 | B161: 2014-04-24 | C161: 37.84 | D161: 38.24 | E161: 35.8 | F161: 37.26 | G161: 21038700 | H161: 37.07 | I161: 0.9949006978 | J161: 1 | K161: =ROUND($I161*C161,2) -> 37.65 | L161: =ROUND($I161*D161,2) -> 38.05 | M161: =ROUND($I161*E161,2) -> 35.62 | N161: =ROUND($I161*F161,2) -> 37.07 | O161: 21038700
A162: 147 | B162: 2014-04-23 | C162: 37.14 | D162: 37.6 | E162: 36.4 | F162: 37.09 | G162: 14649500 | H162: 36.9 | I162: 0.9948773254 | J162: 1 | K162: =ROUND($I162*C162,2) -> 36.95 | L162: =ROUND($I162*D162,2) -> 37.41 | M162: =ROUND($I162*E162,2) -> 36.21 | N162: =ROUND($I162*F162,2) -> 36.9 | O162: 14649500
A163: 148 | B163: 2014-04-22 | C163: 35.76 | D163: 36.74 | E163: 35.75 | F163: 36.16 | G163: 8941800 | H163: 35.98 | I163: 0.9950221239 | J163: 1 | K163: =ROUND($I163*C163,2) -> 35.58 | L163: =ROUND($I163*D163,2) -> 36.56 | M163: =ROUND($I163*E163,2) -> 35.57 | N163: =ROUND($I163*F163,2) -> 35.98 | O163: 8941800
A164: 149 | B164: 2014-04-21 | C164: 35.08 | D164: 35.79 | E164: 34.86 | F164: 35.67 | G164: 7189200 | H164: 35.49 | I164: 0.9949537426 | J164: 1 | K164: =ROUND($I164*C164,2) -> 34.9 | L164: =ROUND($I164*D164,2) -> 35.61 | M164: =ROUND($I164*E164,2) -> 34.68 | N164: =ROUND($I164*F164,2) -> 35.49 | O164: 7189200
A165: 150 | B165: 2014-04-17 | C165: 35.5 | D165: 35.87 | E165: 34.82 | F165: 35.4 | G165: 9225000 | H165: 35.22 | I165: 0.9949152542 | J165: 1 | K165: =ROUND($I165*C165,2) -> 35.32 | L165: =ROUND($I165*D165,2) -> 35.69 | M165: =ROUND($I165*E165,2) -> 34.64 | N165: =ROUND($I165*F165,2) -> 35.22 | O165: 9225000
A166: 151 | B166: 2014-04-16 | C166: 34.17 | D166: 35.59 | E166: 33.94 | F166: 35.51 | G166: 15634200 | H166: 35.33 | I166: 0.9949310054 | J166: 1 | K166: =ROUND($I166*C166,2) -> 34 | L166: =ROUND($I166*D166,2) -> 35.41 | M166: =ROUND($I166*E166,2) -> 33.77 | N166: =ROUND($I166*F166,2) -> 35.33 | O166: 15634200
A167: 152 | B167: 2014-04-15 | C167: 33.52 | D167: 34.33 | E167: 31.86 | F167: 33.72 | G167: 15979100 | H167: 33.55 | I167: 0.9949584816 | J167: 1 | K167: =ROUND($I167*C167,2) -> 33.35 | L167: =ROUND($I167*D167,2) -> 34.16 | M167: =ROUND($I167*E167,2) -> 31.7 | N167: =ROUND($I167*F167,2) -> 33.55 | O167: 15979100
A168: 153 | B168: 2014-04-14 | C168: 34 | D168: 34.77 | E168: 32.77 | F168: 33.37 | G168: 13465400 | H168: 33.2 | I168: 0.9949056038 | J168: 1 | K168: =ROUND($I168*C168,2) -> 33.83 | L168: =ROUND($I168*D168,2) -> 34.59 | M168: =ROUND($I168*E168,2) -> 32.6 | N168: =ROUND($I168*F168,2) -> 33.2 | O168: 13465400
A169: 154 | B169: 2014-04-11 | C169: 34.1 | D169: 35.46 | E169: 33.59 | F169: 33.68 | G169: 15532400 | H169: 33.51 | I169: 0.9949524941 | J169: 1 | K169: =ROUND($I169*C169,2) -> 33.93 | L169: =ROUND($I169*D169,2) -> 35.28 | M169: =ROUND($I169*E169,2) -> 33.42 | N169: =ROUND($I169*F169,2) -> 33.51 | O169: 15532400
A170: 155 | B170: 2014-04-10 | C170: 36.7 | D170: 37.38 | E170: 34.6 | F170: 35.29 | G170: 16311400 | H170: 35.11 | I170: 0.9948994049 | J170: 1 | K170: =ROUND($I170*C170,2) -> 36.51 | L170: =ROUND($I170*D170,2) -> 37.19 | M170: =ROUND($I170*E170,2) -> 34.42 | N170: =ROUND($I170*F170,2) -> 35.11 | O170: 16311400
A171: 156 | B171: 2014-04-09 | C171: 36.08 | D171: 37 | E171: 35.16 | F171: 36.9 | G171: 11473300 | H171: 36.71 | I171: 0.9948509485 | J171: 1 | K171: =ROUND($I171*C171,2) -> 35.89 | L171: =ROUND($I171*D171,2) -> 36.81 | M171: =ROUND($I171*E171,2) -> 34.98 | N171: =ROUND($I171*F171,2) -> 36.71 | O171: 11473300
A172: 157 | B172: 2014-04-08 | C172: 36 | D172: 36.22 | E172: 33.62 | F172: 35.98 | G172: 17409200 | H172: 35.8 | I172: 0.9949972207 | J172: 1 | K172: =ROUND($I172*C172,2) -> 35.82 | L172: =ROUND($I172*D172,2) -> 36.04 | M172: =ROUND($I172*E172,2) -> 33.45 | N172: =ROUND($I172*F172,2) -> 35.8 | O172: 17409200
A173: 158 | B173: 2014-04-07 | C173: 36.78 | D173: 37.48 | E173: 35.46 | F173: 35.78 | G173: 10569800 | H173: 35.6 | I173: 0.9949692566 | J173: 1 | K173: =ROUND($I173*C173,2) -> 36.59 | L173: =ROUND($I173*D173,2) -> 37.29 | M173: =ROUND($I173*E173,2) -> 35.28 | N173: =ROUND($I173*F173,2) -> 35.6 | O173: 10569800
A174: 159 | B174: 2014-04-04 | C174: 37.41 | D174: 37.72 | E174: 36.3 | F174: 36.56 | G174: 8731000 | H174: 36.38 | I174: 0.9950765864 | J174: 1 | K174: =ROUND($I174*C174,2) -> 37.23 | L174: =ROUND($I174*D174,2) -> 37.53 | M174: =ROUND($I174*E174,2) -> 36.12 | N174: =ROUND($I174*F174,2) -> 36.38 | O174: 8731000
A175: 160 | B175: 2014-04-03 | C175: 37.72 | D175: 38.44 | E175: 36.96 | F175: 37.34 | G175: 7937400 | H175: 37.15 | I175: 0.9949116229 | J175: 1 | K175: =ROUND($I175*C175,2) -> 37.53 | L175: =ROUND($I175*D175,2) -> 38.24 | M175: =ROUND($I175*E175,2) -> 36.77 | N175: =ROUND($I175*F175,2) -> 37.15 | O175: 7937400
A176: 161 | B176: 2014-04-02 | C176: 38.24 | D176: 38.9 | E176: 37.48 | F176: 37.71 | G176: 12511000 | H176: 37.52 | I176: 0.9949615487 | J176: 1 | K176: =ROUND($I176*C176,2) -> 38.05 | L176: =ROUND($I176*D176,2) -> 38.7 | M176: =ROUND($I176*E176,2) -> 37.29 | N176: =ROUND($I176*F176,2) -> 37.52 | O176: 12511000
A177: 162 | B177: 2014-04-01 | C177: 36.95 | D177: 38.19 | E177: 36.85 | F177: 37.94 | G177: 11064900 | H177: 37.75 | I177: 0.9949920928 | J177: 1 | K177: =ROUND($I177*C177,2) -> 36.76 | L177: =ROUND($I177*D177,2) -> 38 | M177: =ROUND($I177*E177,2) -> 36.67 | N177: =ROUND($I177*F177,2) -> 37.75 | O177: 11064900
A178: 163 | B178: 2014-03-31 | C178: 35.84 | D178: 36.87 | E178: 35.75 | F178: 36.6 | G178: 8415300 | H178: 36.42 | I178: 0.9950819672 | J178: 1 | K178: =ROUND($I178*C178,2) -> 35.66 | L178: =ROUND($I178*D178,2) -> 36.69 | M178: =ROUND($I178*E178,2) -> 35.57 | N178: =ROUND($I178*F178,2) -> 36.42 | O178: 8415300
A179: 164 | B179: 2014-03-28 | C179: 35.77 | D179: 36.5 | E179: 35.35 | F179: 35.39 | G179: 6792700 | H179: 35.21 | I179: 0.9949138175 | J179: 1 | K179: =ROUND($I179*C179,2) -> 35.59 | L179: =ROUND($I179*D179,2) -> 36.31 | M179: =ROUND($I179*E179,2) -> 35.17 | N179: =ROUND($I179*F179,2) -> 35.21 | O179: 6792700
A180: 165 | B180: 2014-03-27 | C180: 36.62 | D180: 36.77 | E180: 35.02 | F180: 35.77 | G180: 9542200 | H180: 35.59 | I180: 0.9949678502 | J180: 1 | K180: =ROUND($I180*C180,2) -> 36.44 | L180: =ROUND($I180*D180,2) -> 36.58 | M180: =ROUND($I180*E180,2) -> 34.84 | N180: =ROUND($I180*F180,2) -> 35.59 | O180: 9542200
A181: 166 | B181: 2014-03-26 | C181: 38.15 | D181: 38.26 | E181: 36.64 | F181: 36.7 | G181: 7318200 | H181: 36.52 | I181: 0.9950953678 | J181: 1 | K181: =ROUND($I181*C181,2) -> 37.96 | L181: =ROUND($I181*D181,2) -> 38.07 | M181: =ROUND($I181*E181,2) -> 36.46 | N181: =ROUND($I181*F181,2) -> 36.52 | O181: 7318200
A182: 167 | B182: 2014-03-25 | C182: 36.88 | D182: 38.2 | E182: 36.86 | F182: 37.9 | G182: 10418400 | H182: 37.71 | I182: 0.9949868074 | J182: 1 | K182: =ROUND($I182*C182,2) -> 36.7 | L182: =ROUND($I182*D182,2) -> 38.01 | M182: =ROUND($I182*E182,2) -> 36.68 | N182: =ROUND($I182*F182,2) -> 37.71 | O182: 10418400
A183: 168 | B183: 2014-03-24 | C183: 36.25 | D183: 36.86 | E183: 36.03 | F183: 36.8 | G183: 6514000 | H183: 36.62 | I183: 0.9951086957 | J183: 1 | K183: =ROUND($I183*C183,2) -> 36.07 | L183: =ROUND($I183*D183,2) -> 36.68 | M183: =ROUND($I183*E183,2) -> 35.85 | N183: =ROUND($I183*F183,2) -> 36.62 | O183: 6514000
A184: 169 | B184: 2014-03-21 | C184: 36.76 | D184: 36.82 | E184: 35.91 | F184: 36.11 | G184: 14110700 | H184: 35.93 | I184: 0.9950152312 | J184: 1 | K184: =ROUND($I184*C184,2) -> 36.58 | L184: =ROUND($I184*D184,2) -> 36.64 | M184: =ROUND($I184*E184,2) -> 35.73 | N184: =ROUND($I184*F184,2) -> 35.93 | O184: 14110700
A185: 170 | B185: 2014-03-20 | C185: 36.61 | D185: 37.09 | E185: 36.28 | F185: 36.56 | G185: 6952100 | H185: 36.38 | I185: 0.9950765864 | J185: 1 | K185: =ROUND($I185*C185,2) -> 36.43 | L185: =ROUND($I185*D185,2) -> 36.91 | M185: =ROUND($I185*E185,2) -> 36.1 | N185: =ROUND($I185*F185,2) -> 36.38 | O185: 6952100
A186: 171 | B186: 2014-03-19 | C186: 37.27 | D186: 37.63 | E186: 36.68 | F186: 37.08 | G186: 3863100 | H186: 36.89 | I186: 0.9948759439 | J186: 1 | K186: =ROUND($I186*C186,2) -> 37.08 | L186: =ROUND($I186*D186,2) -> 37.44 | M186: =ROUND($I186*E186,2) -> 36.49 | N186: =ROUND($I186*F186,2) -> 36.89 | O186: 3863100
A187: 172 | B187: 2014-03-18 | C187: 37.75 | D187: 38.04 | E187: 37.09 | F187: 37.35 | G187: 5715900 | H187: 37.16 | I187: 0.9949129853 | J187: 1 | K187: =ROUND($I187*C187,2) -> 37.56 | L187: =ROUND($I187*D187,2) -> 37.85 | M187: =ROUND($I187*E187,2) -> 36.9 | N187: =ROUND($I187*F187,2) -> 37.16 | O187: 5715900
A188: 173 | B188: 2014-03-17 | C188: 36.62 | D188: 37.77 | E188: 36.53 | F188: 37.7 | G188: 9235100 | H188: 37.51 | I188: 0.9949602122 | J188: 1 | K188: =ROUND($I188*C188,2) -> 36.44 | L188: =ROUND($I188*D188,2) -> 37.58 | M188: =ROUND($I188*E188,2) -> 36.35 | N188: =ROUND($I188*F188,2) -> 37.51 | O188: 9235100
A189: 174 | B189: 2014-03-14 | C189: 36 | D189: 37.18 | E189: 35.67 | F189: 36.34 | G189: 7198600 | H189: 36.16 | I189: 0.9950467804 | J189: 1 | K189: =ROUND($I189*C189,2) -> 35.82 | L189: =ROUND($I189*D189,2) -> 37 | M189: =ROUND($I189*E189,2) -> 35.49 | N189: =ROUND($I189*F189,2) -> 36.16 | O189: 7198600
A190: 175 | B190: 2014-03-13 | C190: 37.9 | D190: 37.99 | E190: 35.75 | F190: 36.74 | G190: 11743600 | H190: 36.56 | I190: 0.9951007077 | J190: 1 | K190: =ROUND($I190*C190,2) -> 37.71 | L190: =ROUND($I190*D190,2) -> 37.8 | M190: =ROUND($I190*E190,2) -> 35.57 | N190: =ROUND($I190*F190,2) -> 36.56 | O190: 11743600
A191: 176 | B191: 2014-03-12 | C191: 37.97 | D191: 38.08 | E191: 37.23 | F191: 37.56 | G191: 9412700 | H191: 37.37 | I191: 0.9949414271 | J191: 1 | K191: =ROUND($I191*C191,2) -> 37.78 | L191: =ROUND($I191*D191,2) -> 37.89 | M191: =ROUND($I191*E191,2) -> 37.04 | N191: =ROUND($I191*F191,2) -> 37.37 | O191: 9412700
A192: 177 | B192: 2014-03-11 | C192: 38.65 | D192: 39.26 | E192: 37.95 | F192: 38.08 | G192: 11302500 | H192: 37.89 | I192: 0.9950105042 | J192: 1 | K192: =ROUND($I192*C192,2) -> 38.46 | L192: =ROUND($I192*D192,2) -> 39.06 | M192: =ROUND($I192*E192,2) -> 37.76 | N192: =ROUND($I192*F192,2) -> 37.89 | O192: 11302500
A193: 178 | B193: 2014-03-10 | C193: 38.7 | D193: 39.88 | E193: 38.55 | F193: 38.96 | G193: 11413500 | H193: 38.76 | I193: 0.9948665298 | J193: 1 | K193: =ROUND($I193*C193,2) -> 38.5 | L193: =ROUND($I193*D193,2) -> 39.68 | M193: =ROUND($I193*E193,2) -> 38.35 | N193: =ROUND($I193*F193,2) -> 38.76 | O193: 11413500
A194: 179 | B194: 2014-03-07 | C194: 39.22 | D194: 39.29 | E194: 38.11 | F194: 39.02 | G194: 10536100 | H194: 38.82 | I194: 0.9948744234 | J194: 1 | K194: =ROUND($I194*C194,2) -> 39.02 | L194: =ROUND($I194*D194,2) -> 39.09 | M194: =ROUND($I194*E194,2) -> 37.91 | N194: =ROUND($I194*F194,2) -> 38.82 | O194: 10536100
A195: 180 | B195: 2014-03-06 | C195: 38.28 | D195: 39.33 | E195: 38.28 | F195: 38.81 | G195: 14006200 | H195: 38.61 | I195: 0.994846689 | J195: 1 | K195: =ROUND($I195*C195,2) -> 38.08 | L195: =ROUND($I195*D195,2) -> 39.13 | M195: =ROUND($I195*E195,2) -> 38.08 | N195: =ROUND($I195*F195,2) -> 38.61 | O195: 14006200
A196: 181 | B196: 2014-03-05 | C196: 37.6 | D196: 38.03 | E196: 37.51 | F196: 37.86 | G196: 8793500 | H196: 37.67 | I196: 0.9949815108 | J196: 1 | K196: =ROUND($I196*C196,2) -> 37.41 | L196: =ROUND($I196*D196,2) -> 37.84 | M196: =ROUND($I196*E196,2) -> 37.32 | N196: =ROUND($I196*F196,2) -> 37.67 | O196: 8793500
A197: 182 | B197: 2014-03-04 | C197: 36.57 | D197: 37.46 | E197: 36.57 | F197: 37.34 | G197: 11739700 | H197: 37.15 | I197: 0.9949116229 | J197: 1 | K197: =ROUND($I197*C197,2) -> 36.38 | L197: =ROUND($I197*D197,2) -> 37.27 | M197: =ROUND($I197*E197,2) -> 36.38 | N197: =ROUND($I197*F197,2) -> 37.15 | O197: 11739700
A198: 183 | B198: 2014-03-03 | C198: 36.17 | D198: 36.4 | E198: 35.32 | F198: 36.1 | G198: 9495500 | H198: 35.92 | I198: 0.9950138504 | J198: 1 | K198: =ROUND($I198*C198,2) -> 35.99 | L198: =ROUND($I198*D198,2) -> 36.22 | M198: =ROUND($I198*E198,2) -> 35.14 | N198: =ROUND($I198*F198,2) -> 35.92 | O198: 9495500
A199: 184 | B199: 2014-02-28 | C199: 36.11 | D199: 36.98 | E199: 36.07 | F199: 36.93 | G199: 7989800 | H199: 36.74 | I199: 0.9948551313 | J199: 1 | K199: =ROUND($I199*C199,2) -> 35.92 | L199: =ROUND($I199*D199,2) -> 36.79 | M199: =ROUND($I199*E199,2) -> 35.88 | N199: =ROUND($I199*F199,2) -> 36.74 | O199: 7989800
A200: 185 | B200: 2014-02-27 | C200: 36.88 | D200: 36.95 | E200: 36.34 | F200: 36.56 | G200: 5657000 | H200: 36.38 | I200: 0.9950765864 | J200: 1 | K200: =ROUND($I200*C200,2) -> 36.7 | L200: =ROUND($I200*D200,2) -> 36.77 | M200: =ROUND($I200*E200,2) -> 36.16 | N200: =ROUND($I200*F200,2) -> 36.38 | O200: 5657000
... 2118 more rows

Sheet CalculationsAndCharts
A1: Detecting Flags
A2: =InputPriceData!A1 -> American Airlines (AAL) -NasdaqNM (Daily) | S2: Flag Finder Controls
A4: User Charting Controls | R4: 40 | S4: ATR Period
A5: Data Control | R5: 15 | S5: MAXFLDUR
A6: =InputPriceData!$B$10 -> 2303 | B6: Available Input Data Rows | E6: Earliest: | F6: =OFFSET(InputPriceData!B15,CalculationsAndCharts!A6,0,1,1) -> 2005-09-27 | R6: 2.5 | S6: FLAGMIN
B7: Use Close Adjusted: | C7: TRUE | E7: Latest: | F7: =OFFSET(InputPriceData!B15,1,0,1,1) -> 2014-11-18 | R7: 23 | S7: PX
A8: =MIN(A6-A11,COUNTA(B33:B9983)) -> 841 | B8: Logically Available for Calc / Plot | R8: 70 | S8: UPT1BARS
R9: 5.5 | S9: POLEMIN
A10: Price Chart Windowing Controls | F10: Y-axis Range | R10: 4 | S10: LBF | W10: h33:r873
A11: 149 | B11: Input Data Offset (Pan) | E11: Max High+ | F11: =CEILING(MAX(OFFSET($E$33,0,0,$A$12,1),MaxN(OFFSET($N$33,0,0,$A$12,1)))+2*F14,0.1) -> 42.2 | R11: 5 | S11: ATRmin
A12: 200 | B12: Data Points to Plot (Zoom) | E12: Min Low- | F12: =FLOOR(MIN(OFFSET($F$33,0,0,$A$12,1),MinN(OFFSET($N$33,0,0,$A$12,1)))-2*F14,0.1) -> 12.7 | R12: 1.2 | S12: K
B13: First: | C13: =OFFSET(B32,A12,0,1,1) -> 2013-07-03 | E13: White space %: | F13: 0.05 | R13: 100 | S13: TIMEEXIT
B14: ="Last: "&OFFSET(InputPriceData!P15,1+A11,0,1,1) -> Last: | C14: =B33 -> 2014-04-17 | E14: Allowance: | F14: =FLOOR((CEILING(MAX(OFFSET($E$33,0,0,$A$12,1)),1)-FLOOR(MIN(OFFSET($F$33,0,0,$A$12,1)),1))*F13,0.01) -> 1.25 | R14: 3 | S14: ATRLL
R15: 5 | S15: BSEMIN
R16: 3 | S16: ATRTRAIL
R17: 5 | S17: TRAILBARS
R18: 70 | S18: BSEINACT
R19: 4 | S19: ATRINACT
A23: Help! I would like to plot data
A24: From | B24: 2013-07-03 | C24: =OFFSET(InputPriceData!$A$15,MATCH(B24,OFFSET(InputPriceData!B15,1,0,InputPriceData!$B$10,1),0),0,1,1)-C25 -> 200 | E24: 162
A25: To | B25: 2014-04-17 | C25: =OFFSET(InputPriceData!$A$15,MATCH(B25,OFFSET(InputPriceData!$B$15,1,0,InputPriceData!$B$10,1),0),0,1,1)-1 -> 149 | E25: =$A$12-$E$24+1 -> 39
H26: @ Scroll Bar => | I26: =OFFSET(A32,$E$25,0,1,1)&"(RR)" -> 39(RR) | J26: =OFFSET($B$32,E25,0,1,1) -> 2014-02-24 | K26: =TEXT(OFFSET(D32,$E$25,0,1,1),"#,##0.00")&"(o)" -> 36.02(o) | L26: =TEXT(OFFSET(E32,$E$25,0,1,1),"#,##0.00")&"(h)" -> 36.48(h) | M26: =TEXT(OFFSET(F32,$E$25,0,1,1),"#,##0.00")&"(l)" -> 35.84(l) | N26: =TEXT(OFFSET(G32,$E$25,0,1,1),"#,##0.00")&"(c)" -> 36.47(c)
E27: Cursor =>
H28: Katsanos Flag Finder | W28: Katsanos Exit Reason Flags | AC28: Only one exit reason can be true for any given trade.
H29: Bottom of Pole Price | I29: Top of Pole Price | J29: Bottom of Flag Price | K29: Top of Flag Price | L29: Market Position | M29: Buy | N29: Price Target | O29: Sell | P29: Exit Reason Code | Q29: Lowest Price While long | R29: Highest Price While long | S29: Pole | T29: Flag | U29: Long
V30: Price Cursor | W30: 1 | Z30: 2 | AC30: 3 | AF30: 4 | AI30: 5
A31: Rel Row | D31: Prices | W31: pTarget | Z31: UnderFlag | AC31: Trail | AF31: Inactivity | AI31: Time
B32: Date | C32: Volume | D32: Open | E32: High | F32: Low | G32: Close | V32: =$F$11 -> 42.2 | W32: Flag | Z32: Flag | AC32: Flag | AD32: Relrow | AE32: Price | AF32: Flag | AG32: Relrow | AH32: Price | AI32: Flag | AJ32: Relrow | AK32: Price | AL32: Volume Cursor | AO32: =CEILING(AO36,130000) -> 78650000
A33: 1 | B33: =OFFSET(InputPriceData!B$15,CalculationsAndCharts!$A33+$A$11,0,1,1) -> 2014-04-17 | C33: =OFFSET(InputPriceData!G$15,CalculationsAndCharts!$A33+$A$11,IF($C$7,8,0),1,1) -> 9225000 | D33: =OFFSET(InputPriceData!C$15,CalculationsAndCharts!$A33+$A$11,IF($C$7,8,0),1,1) -> 35.32 | E33: =OFFSET(InputPriceData!D$15,CalculationsAndCharts!$A33+$A$11,IF($C$7,8,0),1,1) -> 35.69 | F33: =OFFSET(InputPriceData!E$15,CalculationsAndCharts!$A33+$A$11,IF($C$7,8,0),1,1) -> 34.64 | G33: =OFFSET(InputPriceData!F$15,CalculationsAndCharts!$A33+$A$11,IF($C$7,8,0),1,1) -> 35.22 | H33: =KatsanosFlagFinder(R4:R19,OFFSET(C32,1,0,$A$8,5)) ->  | S33: =I33-H33 ->  | T33: =K33-J33 ->  | U33: =R33-Q33 ->  | V33: =IF($A33=$E$25,V$32,NA()) ->  | W33: =$P33=W$30 ->  | X33: =IF(W33,$A33,NA()) ->  | Y33: =IF(W33,$O33,NA()) ->  | Z33: =$P33=Z$30 ->  | AA33: =IF(Z33,$A33,NA()) ->  | AB33: =IF(Z33,$O33,NA()) ->  | AC33: =$P33=AC$30 ->  | AD33: =IF(AC33,$A33,NA()) ->  | AE33: =IF(AC33,$O33,NA()) ->  | AF33: =$P33=AF$30 ->  | AG33: =IF(AF33,$A33,NA()) ->  | AH33: =IF(AF33,$O33,NA()) ->  | AI33: =$P33=AI$30 ->  | AJ33: =IF(AI33,$A33,NA()) ->  | AK33: =IF(AI33,$O33,NA()) ->  | AL33: =$E$25 -> 39 | AM33: 0
A34: 2 | B34: =OFFSET(InputPriceData!B$15,CalculationsAndCharts!$A34+$A$11,0,1,1) -> 2014-04-16 | C34: =OFFSET(InputPriceData!G$15,CalculationsAndCharts!$A34+$A$11,IF($C$7,8,0),1,1) -> 15634200 | D34: =OFFSET(InputPriceData!C$15,CalculationsAndCharts!$A34+$A$11,IF($C$7,8,0),1,1) -> 34 | E34: =OFFSET(InputPriceData!D$15,CalculationsAndCharts!$A34+$A$11,IF($C$7,8,0),1,1) -> 35.41 | F34: =OFFSET(InputPriceData!E$15,CalculationsAndCharts!$A34+$A$11,IF($C$7,8,0),1,1) -> 33.77 | G34: =OFFSET(InputPriceData!F$15,CalculationsAndCharts!$A34+$A$11,IF($C$7,8,0),1,1) -> 35.33 | S34: =I34-H34 ->  | T34: =K34-J34 ->  | V34: =IF($A34=$E$25,V$32,NA()) ->  | W34: =$P34=W$30 ->  | Y34: =IF(W34,$O34,NA()) ->  | Z34: =$P34=Z$30 ->  | AB34: =IF(Z34,$O34,NA()) ->  | AC34: =$P34=AC$30 ->  | AE34: =IF(AC34,$O34,NA()) ->  | AF34: =$P34=AF$30 ->  | AH34: =IF(AF34,$O34,NA()) ->  | AI34: =$P34=AI$30 ->  | AK34: =IF(AI34,$O34,NA()) ->  | AL34: =$E$25 -> 39 | AM34: =AO40 -> 79000000
A35: 3 | B35: =OFFSET(InputPriceData!B$15,CalculationsAndCharts!$A35+$A$11,0,1,1) -> 2014-04-15 | C35: =OFFSET(InputPriceData!G$15,CalculationsAndCharts!$A35+$A$11,IF($C$7,8,0),1,1) -> 15979100 | D35: =OFFSET(InputPriceData!C$15,CalculationsAndCharts!$A35+$A$11,IF($C$7,8,0),1,1) -> 33.35 | E35: =OFFSET(InputPriceData!D$15,CalculationsAndCharts!$A35+$A$11,IF($C$7,8,0),1,1) -> 34.16 | F35: =OFFSET(InputPriceData!E$15,CalculationsAndCharts!$A35+$A$11,IF($C$7,8,0),1,1) -> 31.7 | G35: =OFFSET(InputPriceData!F$15,CalculationsAndCharts!$A35+$A$11,IF($C$7,8,0),1,1) -> 33.55 | AO35: =LOG(AO36) -> 7.89537392
A36: 4 | B36: =OFFSET(InputPriceData!B$15,CalculationsAndCharts!$A36+$A$11,0,1,1) -> 2014-04-14 | C36: =OFFSET(InputPriceData!G$15,CalculationsAndCharts!$A36+$A$11,IF($C$7,8,0),1,1) -> 13465400 | D36: =OFFSET(InputPriceData!C$15,CalculationsAndCharts!$A36+$A$11,IF($C$7,8,0),1,1) -> 33.83 | E36: =OFFSET(InputPriceData!D$15,CalculationsAndCharts!$A36+$A$11,IF($C$7,8,0),1,1) -> 34.59 | F36: =OFFSET(InputPriceData!E$15,CalculationsAndCharts!$A36+$A$11,IF($C$7,8,0),1,1) -> 32.6 | G36: =OFFSET(InputPriceData!F$15,CalculationsAndCharts!$A36+$A$11,IF($C$7,8,0),1,1) -> 33.2 | U36: =R36-Q36 ->  | AO36: =MAX(OFFSET($C$32,1,0,$A$12,1)) -> 78591200
A37: 5 | B37: =OFFSET(InputPriceData!B$15,CalculationsAndCharts!$A37+$A$11,0,1,1) -> 2014-04-11 | C37: =OFFSET(InputPriceData!G$15,CalculationsAndCharts!$A37+$A$11,IF($C$7,8,0),1,1) -> 15532400 | D37: =OFFSET(InputPriceData!C$15,CalculationsAndCharts!$A37+$A$11,IF($C$7,8,0),1,1) -> 33.93 | E37: =OFFSET(InputPriceData!D$15,CalculationsAndCharts!$A37+$A$11,IF($C$7,8,0),1,1) -> 35.28 | F37: =OFFSET(InputPriceData!E$15,CalculationsAndCharts!$A37+$A$11,IF($C$7,8,0),1,1) -> 33.42 | G37: =OFFSET(InputPriceData!F$15,CalculationsAndCharts!$A37+$A$11,IF($C$7,8,0),1,1) -> 33.51 | U37: =R37-Q37 ->  | AO37: =(LOG10(MAX(OFFSET($C$32,1,0,$A$12,1)))) -> 7.89537392
A38: 6 | B38: =OFFSET(InputPriceData!B$15,CalculationsAndCharts!$A38+$A$11,0,1,1) -> 2014-04-10 | C38: =OFFSET(InputPriceData!G$15,CalculationsAndCharts!$A38+$A$11,IF($C$7,8,0),1,1) -> 16311400 | D38: =OFFSET(InputPriceData!C$15,CalculationsAndCharts!$A38+$A$11,IF($C$7,8,0),1,1) -> 36.51 | E38: =OFFSET(InputPriceData!D$15,CalculationsAndCharts!$A38+$A$11,IF($C$7,8,0),1,1) -> 37.19 | F38: =OFFSET(InputPriceData!E$15,CalculationsAndCharts!$A38+$A$11,IF($C$7,8,0),1,1) -> 34.42 | G38: =OFFSET(InputPriceData!F$15,CalculationsAndCharts!$A38+$A$11,IF($C$7,8,0),1,1) -> 35.11 | AO38: =INT(AO37) -> 7
A39: 7 | B39: =OFFSET(InputPriceData!B$15,CalculationsAndCharts!$A39+$A$11,0,1,1) -> 2014-04-09 | C39: =OFFSET(InputPriceData!G$15,CalculationsAndCharts!$A39+$A$11,IF($C$7,8,0),1,1) -> 11473300 | D39: =OFFSET(InputPriceData!C$15,CalculationsAndCharts!$A39+$A$11,IF($C$7,8,0),1,1) -> 35.89 | E39: =OFFSET(InputPriceData!D$15,CalculationsAndCharts!$A39+$A$11,IF($C$7,8,0),1,1) -> 36.81 | F39: =OFFSET(InputPriceData!E$15,CalculationsAndCharts!$A39+$A$11,IF($C$7,8,0),1,1) -> 34.98 | G39: =OFFSET(InputPriceData!F$15,CalculationsAndCharts!$A39+$A$11,IF($C$7,8,0),1,1) -> 36.71 | AO39: =10^AO38 -> 10000000
A40: 8 | B40: =OFFSET(InputPriceData!B$15,CalculationsAndCharts!$A40+$A$11,0,1,1) -> 2014-04-08 | C40: =OFFSET(InputPriceData!G$15,CalculationsAndCharts!$A40+$A$11,IF($C$7,8,0),1,1) -> 17409200 | D40: =OFFSET(InputPriceData!C$15,CalculationsAndCharts!$A40+$A$11,IF($C$7,8,0),1,1) -> 35.82 | E40: =OFFSET(InputPriceData!D$15,CalculationsAndCharts!$A40+$A$11,IF($C$7,8,0),1,1) -> 36.04 | F40: =OFFSET(InputPriceData!E$15,CalculationsAndCharts!$A40+$A$11,IF($C$7,8,0),1,1) -> 33.45 | G40: =OFFSET(InputPriceData!F$15,CalculationsAndCharts!$A40+$A$11,IF($C$7,8,0),1,1) -> 35.8 | AO40: =CEILING(AO36,AO39)-10^(AO38-1) -> 79000000
A41: 9 | B41: =OFFSET(InputPriceData!B$15,CalculationsAndCharts!$A41+$A$11,0,1,1) -> 2014-04-07 | C41: =OFFSET(InputPriceData!G$15,CalculationsAndCharts!$A41+$A$11,IF($C$7,8,0),1,1) -> 10569800 | D41: =OFFSET(InputPriceData!C$15,CalculationsAndCharts!$A41+$A$11,IF($C$7,8,0),1,1) -> 36.59 | E41: =OFFSET(InputPriceData!D$15,CalculationsAndCharts!$A41+$A$11,IF($C$7,8,0),1,1) -> 37.29 | F41: =OFFSET(InputPriceData!E$15,CalculationsAndCharts!$A41+$A$11,IF($C$7,8,0),1,1) -> 35.28 | G41: =OFFSET(InputPriceData!F$15,CalculationsAndCharts!$A41+$A$11,IF($C$7,8,0),1,1) -> 35.6 | AO41: =LOG10(AO40) -> 7.897627091
A42: 10 | B42: =OFFSET(InputPriceData!B$15,CalculationsAndCharts!$A42+$A$11,0,1,1) -> 2014-04-04 | C42: =OFFSET(InputPriceData!G$15,CalculationsAndCharts!$A42+$A$11,IF($C$7,8,0),1,1) -> 8731000 | D42: =OFFSET(InputPriceData!C$15,CalculationsAndCharts!$A42+$A$11,IF($C$7,8,0),1,1) -> 37.23 | E42: =OFFSET(InputPriceData!D$15,CalculationsAndCharts!$A42+$A$11,IF($C$7,8,0),1,1) -> 37.53 | F42: =OFFSET(InputPriceData!E$15,CalculationsAndCharts!$A42+$A$11,IF($C$7,8,0),1,1) -> 36.12 | G42: =OFFSET(InputPriceData!F$15,CalculationsAndCharts!$A42+$A$11,IF($C$7,8,0),1,1) -> 36.38 | AO42: PrimaryYMax("VolumeCht")
A43: 11 | B43: =OFFSET(InputPriceData!B$15,CalculationsAndCharts!$A43+$A$11,0,1,1) -> 2014-04-03 | C43: =OFFSET(InputPriceData!G$15,CalculationsAndCharts!$A43+$A$11,IF($C$7,8,0),1,1) -> 7937400 | D43: =OFFSET(InputPriceData!C$15,CalculationsAndCharts!$A43+$A$11,IF($C$7,8,0),1,1) -> 37.53 | E43: =OFFSET(InputPriceData!D$15,CalculationsAndCharts!$A43+$A$11,IF($C$7,8,0),1,1) -> 38.24 | F43: =OFFSET(InputPriceData!E$15,CalculationsAndCharts!$A43+$A$11,IF($C$7,8,0),1,1) -> 36.77 | G43: =OFFSET(InputPriceData!F$15,CalculationsAndCharts!$A43+$A$11,IF($C$7,8,0),1,1) -> 37.15
A44: 12 | B44: =OFFSET(InputPriceData!B$15,CalculationsAndCharts!$A44+$A$11,0,1,1) -> 2014-04-02 | C44: =OFFSET(InputPriceData!G$15,CalculationsAndCharts!$A44+$A$11,IF($C$7,8,0),1,1) -> 12511000 | D44: =OFFSET(InputPriceData!C$15,CalculationsAndCharts!$A44+$A$11,IF($C$7,8,0),1,1) -> 38.05 | E44: =OFFSET(InputPriceData!D$15,CalculationsAndCharts!$A44+$A$11,IF($C$7,8,0),1,1) -> 38.7 | F44: =OFFSET(InputPriceData!E$15,CalculationsAndCharts!$A44+$A$11,IF($C$7,8,0),1,1) -> 37.29 | G44: =OFFSET(InputPriceData!F$15,CalculationsAndCharts!$A44+$A$11,IF($C$7,8,0),1,1) -> 37.52
A45: 13 | B45: =OFFSET(InputPriceData!B$15,CalculationsAndCharts!$A45+$A$11,0,1,1) -> 2014-04-01 | C45: =OFFSET(InputPriceData!G$15,CalculationsAndCharts!$A45+$A$11,IF($C$7,8,0),1,1) -> 11064900 | D45: =OFFSET(InputPriceData!C$15,CalculationsAndCharts!$A45+$A$11,IF($C$7,8,0),1,1) -> 36.76 | E45: =OFFSET(InputPriceData!D$15,CalculationsAndCharts!$A45+$A$11,IF($C$7,8,0),1,1) -> 38 | F45: =OFFSET(InputPriceData!E$15,CalculationsAndCharts!$A45+$A$11,IF($C$7,8,0),1,1) -> 36.67 | G45: =OFFSET(InputPriceData!F$15,CalculationsAndCharts!$A45+$A$11,IF($C$7,8,0),1,1) -> 37.75
A46: 14 | B46: =OFFSET(InputPriceData!B$15,CalculationsAndCharts!$A46+$A$11,0,1,1) -> 2014-03-31 | C46: =OFFSET(InputPriceData!G$15,CalculationsAndCharts!$A46+$A$11,IF($C$7,8,0),1,1) -> 8415300 | D46: =OFFSET(InputPriceData!C$15,CalculationsAndCharts!$A46+$A$11,IF($C$7,8,0),1,1) -> 35.66 | E46: =OFFSET(InputPriceData!D$15,CalculationsAndCharts!$A46+$A$11,IF($C$7,8,0),1,1) -> 36.69 | F46: =OFFSET(InputPriceData!E$15,CalculationsAndCharts!$A46+$A$11,IF($C$7,8,0),1,1) -> 35.57 | G46: =OFFSET(InputPriceData!F$15,CalculationsAndCharts!$A46+$A$11,IF($C$7,8,0),1,1) -> 36.42
A47: 15 | B47: =OFFSET(InputPriceData!B$15,CalculationsAndCharts!$A47+$A$11,0,1,1) -> 2014-03-28 | C47: =OFFSET(InputPriceData!G$15,CalculationsAndCharts!$A47+$A$11,IF($C$7,8,0),1,1) -> 6792700 | D47: =OFFSET(InputPriceData!C$15,CalculationsAndCharts!$A47+$A$11,IF($C$7,8,0),1,1) -> 35.59 | E47: =OFFSET(InputPriceData!D$15,CalculationsAndCharts!$A47+$A$11,IF($C$7,8,0),1,1) -> 36.31 | F47: =OFFSET(InputPriceData!E$15,CalculationsAndCharts!$A47+$A$11,IF($C$7,8,0),1,1) -> 35.17 | G47: =OFFSET(InputPriceData!F$15,CalculationsAndCharts!$A47+$A$11,IF($C$7,8,0),1,1) -> 35.21 | S47: =I47-H47 ->  | T47: =K47-J47 -> 
A48: 16 | B48: =OFFSET(InputPriceData!B$15,CalculationsAndCharts!$A48+$A$11,0,1,1) -> 2014-03-27 | C48: =OFFSET(InputPriceData!G$15,CalculationsAndCharts!$A48+$A$11,IF($C$7,8,0),1,1) -> 9542200 | D48: =OFFSET(InputPriceData!C$15,CalculationsAndCharts!$A48+$A$11,IF($C$7,8,0),1,1) -> 36.44 | E48: =OFFSET(InputPriceData!D$15,CalculationsAndCharts!$A48+$A$11,IF($C$7,8,0),1,1) -> 36.58 | F48: =OFFSET(InputPriceData!E$15,CalculationsAndCharts!$A48+$A$11,IF($C$7,8,0),1,1) -> 34.84 | G48: =OFFSET(InputPriceData!F$15,CalculationsAndCharts!$A48+$A$11,IF($C$7,8,0),1,1) -> 35.59
A49: 17 | B49: =OFFSET(InputPriceData!B$15,CalculationsAndCharts!$A49+$A$11,0,1,1) -> 2014-03-26 | C49: =OFFSET(InputPriceData!G$15,CalculationsAndCharts!$A49+$A$11,IF($C$7,8,0),1,1) -> 7318200 | D49: =OFFSET(InputPriceData!C$15,CalculationsAndCharts!$A49+$A$11,IF($C$7,8,0),1,1) -> 37.96 | E49: =OFFSET(InputPriceData!D$15,CalculationsAndCharts!$A49+$A$11,IF($C$7,8,0),1,1) -> 38.07 | F49: =OFFSET(InputPriceData!E$15,CalculationsAndCharts!$A49+$A$11,IF($C$7,8,0),1,1) -> 36.46 | G49: =OFFSET(InputPriceData!F$15,CalculationsAndCharts!$A49+$A$11,IF($C$7,8,0),1,1) -> 36.52
A50: 18 | B50: =OFFSET(InputPriceData!B$15,CalculationsAndCharts!$A50+$A$11,0,1,1) -> 2014-03-25 | C50: =OFFSET(InputPriceData!G$15,CalculationsAndCharts!$A50+$A$11,IF($C$7,8,0),1,1) -> 10418400 | D50: =OFFSET(InputPriceData!C$15,CalculationsAndCharts!$A50+$A$11,IF($C$7,8,0),1,1) -> 36.7 | E50: =OFFSET(InputPriceData!D$15,CalculationsAndCharts!$A50+$A$11,IF($C$7,8,0),1,1) -> 38.01 | F50: =OFFSET(InputPriceData!E$15,CalculationsAndCharts!$A50+$A$11,IF($C$7,8,0),1,1) -> 36.68 | G50: =OFFSET(InputPriceData!F$15,CalculationsAndCharts!$A50+$A$11,IF($C$7,8,0),1,1) -> 37.71
A51: 19 | B51: =OFFSET(InputPriceData!B$15,CalculationsAndCharts!$A51+$A$11,0,1,1) -> 2014-03-24 | C51: =OFFSET(InputPriceData!G$15,CalculationsAndCharts!$A51+$A$11,IF($C$7,8,0),1,1) -> 6514000 | D51: =OFFSET(InputPriceData!C$15,CalculationsAndCharts!$A51+$A$11,IF($C$7,8,0),1,1) -> 36.07 | E51: =OFFSET(InputPriceData!D$15,CalculationsAndCharts!$A51+$A$11,IF($C$7,8,0),1,1) -> 36.68 | F51: =OFFSET(InputPriceData!E$15,CalculationsAndCharts!$A51+$A$11,IF($C$7,8,0),1,1) -> 35.85 | G51: =OFFSET(InputPriceData!F$15,CalculationsAndCharts!$A51+$A$11,IF($C$7,8,0),1,1) -> 36.62
A52: 20 | B52: =OFFSET(InputPriceData!B$15,CalculationsAndCharts!$A52+$A$11,0,1,1) -> 2014-03-21 | C52: =OFFSET(InputPriceData!G$15,CalculationsAndCharts!$A52+$A$11,IF($C$7,8,0),1,1) -> 14110700 | D52: =OFFSET(InputPriceData!C$15,CalculationsAndCharts!$A52+$A$11,IF($C$7,8,0),1,1) -> 36.58 | E52: =OFFSET(InputPriceData!D$15,CalculationsAndCharts!$A52+$A$11,IF($C$7,8,0),1,1) -> 36.64 | F52: =OFFSET(InputPriceData!E$15,CalculationsAndCharts!$A52+$A$11,IF($C$7,8,0),1,1) -> 35.73 | G52: =OFFSET(InputPriceData!F$15,CalculationsAndCharts!$A52+$A$11,IF($C$7,8,0),1,1) -> 35.93
A53: 21 | B53: =OFFSET(InputPriceData!B$15,CalculationsAndCharts!$A53+$A$11,0,1,1) -> 2014-03-20 | C53: =OFFSET(InputPriceData!G$15,CalculationsAndCharts!$A53+$A$11,IF($C$7,8,0),1,1) -> 6952100 | D53: =OFFSET(InputPriceData!C$15,CalculationsAndCharts!$A53+$A$11,IF($C$7,8,0),1,1) -> 36.43 | E53: =OFFSET(InputPriceData!D$15,CalculationsAndCharts!$A53+$A$11,IF($C$7,8,0),1,1) -> 36.91 | F53: =OFFSET(InputPriceData!E$15,CalculationsAndCharts!$A53+$A$11,IF($C$7,8,0),1,1) -> 36.1 | G53: =OFFSET(InputPriceData!F$15,CalculationsAndCharts!$A53+$A$11,IF($C$7,8,0),1,1) -> 36.38
A54: 22 | B54: =OFFSET(InputPriceData!B$15,CalculationsAndCharts!$A54+$A$11,0,1,1) -> 2014-03-19 | C54: =OFFSET(InputPriceData!G$15,CalculationsAndCharts!$A54+$A$11,IF($C$7,8,0),1,1) -> 3863100 | D54: =OFFSET(InputPriceData!C$15,CalculationsAndCharts!$A54+$A$11,IF($C$7,8,0),1,1) -> 37.08 | E54: =OFFSET(InputPriceData!D$15,CalculationsAndCharts!$A54+$A$11,IF($C$7,8,0),1,1) -> 37.44 | F54: =OFFSET(InputPriceData!E$15,CalculationsAndCharts!$A54+$A$11,IF($C$7,8,0),1,1) -> 36.49 | G54: =OFFSET(InputPriceData!F$15,CalculationsAndCharts!$A54+$A$11,IF($C$7,8,0),1,1) -> 36.89
A55: 23 | B55: =OFFSET(InputPriceData!B$15,CalculationsAndCharts!$A55+$A$11,0,1,1) -> 2014-03-18 | C55: =OFFSET(InputPriceData!G$15,CalculationsAndCharts!$A55+$A$11,IF($C$7,8,0),1,1) -> 5715900 | D55: =OFFSET(InputPriceData!C$15,CalculationsAndCharts!$A55+$A$11,IF($C$7,8,0),1,1) -> 37.56 | E55: =OFFSET(InputPriceData!D$15,CalculationsAndCharts!$A55+$A$11,IF($C$7,8,0),1,1) -> 37.85 | F55: =OFFSET(InputPriceData!E$15,CalculationsAndCharts!$A55+$A$11,IF($C$7,8,0),1,1) -> 36.9 | G55: =OFFSET(InputPriceData!F$15,CalculationsAndCharts!$A55+$A$11,IF($C$7,8,0),1,1) -> 37.16
A56: 24 | B56: =OFFSET(InputPriceData!B$15,CalculationsAndCharts!$A56+$A$11,0,1,1) -> 2014-03-17 | C56: =OFFSET(InputPriceData!G$15,CalculationsAndCharts!$A56+$A$11,IF($C$7,8,0),1,1) -> 9235100 | D56: =OFFSET(InputPriceData!C$15,CalculationsAndCharts!$A56+$A$11,IF($C$7,8,0),1,1) -> 36.44 | E56: =OFFSET(InputPriceData!D$15,CalculationsAndCharts!$A56+$A$11,IF($C$7,8,0),1,1) -> 37.58 | F56: =OFFSET(InputPriceData!E$15,CalculationsAndCharts!$A56+$A$11,IF($C$7,8,0),1,1) -> 36.35 | G56: =OFFSET(InputPriceData!F$15,CalculationsAndCharts!$A56+$A$11,IF($C$7,8,0),1,1) -> 37.51
A57: 25 | B57: =OFFSET(InputPriceData!B$15,CalculationsAndCharts!$A57+$A$11,0,1,1) -> 2014-03-14 | C57: =OFFSET(InputPriceData!G$15,CalculationsAndCharts!$A57+$A$11,IF($C$7,8,0),1,1) -> 7198600 | D57: =OFFSET(InputPriceData!C$15,CalculationsAndCharts!$A57+$A$11,IF($C$7,8,0),1,1) -> 35.82 | E57: =OFFSET(InputPriceData!D$15,CalculationsAndCharts!$A57+$A$11,IF($C$7,8,0),1,1) -> 37 | F57: =OFFSET(InputPriceData!E$15,CalculationsAndCharts!$A57+$A$11,IF($C$7,8,0),1,1) -> 35.49 | G57: =OFFSET(InputPriceData!F$15,CalculationsAndCharts!$A57+$A$11,IF($C$7,8,0),1,1) -> 36.16
A58: 26 | B58: =OFFSET(InputPriceData!B$15,CalculationsAndCharts!$A58+$A$11,0,1,1) -> 2014-03-13 | C58: =OFFSET(InputPriceData!G$15,CalculationsAndCharts!$A58+$A$11,IF($C$7,8,0),1,1) -> 11743600 | D58: =OFFSET(InputPriceData!C$15,CalculationsAndCharts!$A58+$A$11,IF($C$7,8,0),1,1) -> 37.71 | E58: =OFFSET(InputPriceData!D$15,CalculationsAndCharts!$A58+$A$11,IF($C$7,8,0),1,1) -> 37.8 | F58: =OFFSET(InputPriceData!E$15,CalculationsAndCharts!$A58+$A$11,IF($C$7,8,0),1,1) -> 35.57 | G58: =OFFSET(InputPriceData!F$15,CalculationsAndCharts!$A58+$A$11,IF($C$7,8,0),1,1) -> 36.56
A59: 27 | B59: =OFFSET(InputPriceData!B$15,CalculationsAndCharts!$A59+$A$11,0,1,1) -> 2014-03-12 | C59: =OFFSET(InputPriceData!G$15,CalculationsAndCharts!$A59+$A$11,IF($C$7,8,0),1,1) -> 9412700 | D59: =OFFSET(InputPriceData!C$15,CalculationsAndCharts!$A59+$A$11,IF($C$7,8,0),1,1) -> 37.78 | E59: =OFFSET(InputPriceData!D$15,CalculationsAndCharts!$A59+$A$11,IF($C$7,8,0),1,1) -> 37.89 | F59: =OFFSET(InputPriceData!E$15,CalculationsAndCharts!$A59+$A$11,IF($C$7,8,0),1,1) -> 37.04 | G59: =OFFSET(InputPriceData!F$15,CalculationsAndCharts!$A59+$A$11,IF($C$7,8,0),1,1) -> 37.37
A60: 28 | B60: =OFFSET(InputPriceData!B$15,CalculationsAndCharts!$A60+$A$11,0,1,1) -> 2014-03-11 | C60: =OFFSET(InputPriceData!G$15,CalculationsAndCharts!$A60+$A$11,IF($C$7,8,0),1,1) -> 11302500 | D60: =OFFSET(InputPriceData!C$15,CalculationsAndCharts!$A60+$A$11,IF($C$7,8,0),1,1) -> 38.46 | E60: =OFFSET(InputPriceData!D$15,CalculationsAndCharts!$A60+$A$11,IF($C$7,8,0),1,1) -> 39.06 | F60: =OFFSET(InputPriceData!E$15,CalculationsAndCharts!$A60+$A$11,IF($C$7,8,0),1,1) -> 37.76 | G60: =OFFSET(InputPriceData!F$15,CalculationsAndCharts!$A60+$A$11,IF($C$7,8,0),1,1) -> 37.89
A61: 29 | B61: =OFFSET(InputPriceData!B$15,CalculationsAndCharts!$A61+$A$11,0,1,1) -> 2014-03-10 | C61: =OFFSET(InputPriceData!G$15,CalculationsAndCharts!$A61+$A$11,IF($C$7,8,0),1,1) -> 11413500 | D61: =OFFSET(InputPriceData!C$15,CalculationsAndCharts!$A61+$A$11,IF($C$7,8,0),1,1) -> 38.5 | E61: =OFFSET(InputPriceData!D$15,CalculationsAndCharts!$A61+$A$11,IF($C$7,8,0),1,1) -> 39.68 | F61: =OFFSET(InputPriceData!E$15,CalculationsAndCharts!$A61+$A$11,IF($C$7,8,0),1,1) -> 38.35 | G61: =OFFSET(InputPriceData!F$15,CalculationsAndCharts!$A61+$A$11,IF($C$7,8,0),1,1) -> 38.76
A62: 30 | B62: =OFFSET(InputPriceData!B$15,CalculationsAndCharts!$A62+$A$11,0,1,1) -> 2014-03-07 | C62: =OFFSET(InputPriceData!G$15,CalculationsAndCharts!$A62+$A$11,IF($C$7,8,0),1,1) -> 10536100 | D62: =OFFSET(InputPriceData!C$15,CalculationsAndCharts!$A62+$A$11,IF($C$7,8,0),1,1) -> 39.02 | E62: =OFFSET(InputPriceData!D$15,CalculationsAndCharts!$A62+$A$11,IF($C$7,8,0),1,1) -> 39.09 | F62: =OFFSET(InputPriceData!E$15,CalculationsAndCharts!$A62+$A$11,IF($C$7,8,0),1,1) -> 37.91 | G62: =OFFSET(InputPriceData!F$15,CalculationsAndCharts!$A62+$A$11,IF($C$7,8,0),1,1) -> 38.82
A63: 31 | B63: =OFFSET(InputPriceData!B$15,CalculationsAndCharts!$A63+$A$11,0,1,1) -> 2014-03-06 | C63: =OFFSET(InputPriceData!G$15,CalculationsAndCharts!$A63+$A$11,IF($C$7,8,0),1,1) -> 14006200 | D63: =OFFSET(InputPriceData!C$15,CalculationsAndCharts!$A63+$A$11,IF($C$7,8,0),1,1) -> 38.08 | E63: =OFFSET(InputPriceData!D$15,CalculationsAndCharts!$A63+$A$11,IF($C$7,8,0),1,1) -> 39.13 | F63: =OFFSET(InputPriceData!E$15,CalculationsAndCharts!$A63+$A$11,IF($C$7,8,0),1,1) -> 38.08 | G63: =OFFSET(InputPriceData!F$15,CalculationsAndCharts!$A63+$A$11,IF($C$7,8,0),1,1) -> 38.61
A64: 32 | B64: =OFFSET(InputPriceData!B$15,CalculationsAndCharts!$A64+$A$11,0,1,1) -> 2014-03-05 | C64: =OFFSET(InputPriceData!G$15,CalculationsAndCharts!$A64+$A$11,IF($C$7,8,0),1,1) -> 8793500 | D64: =OFFSET(InputPriceData!C$15,CalculationsAndCharts!$A64+$A$11,IF($C$7,8,0),1,1) -> 37.41 | E64: =OFFSET(InputPriceData!D$15,CalculationsAndCharts!$A64+$A$11,IF($C$7,8,0),1,1) -> 37.84 | F64: =OFFSET(InputPriceData!E$15,CalculationsAndCharts!$A64+$A$11,IF($C$7,8,0),1,1) -> 37.32 | G64: =OFFSET(InputPriceData!F$15,CalculationsAndCharts!$A64+$A$11,IF($C$7,8,0),1,1) -> 37.67
A65: 33 | B65: =OFFSET(InputPriceData!B$15,CalculationsAndCharts!$A65+$A$11,0,1,1) -> 2014-03-04 | C65: =OFFSET(InputPriceData!G$15,CalculationsAndCharts!$A65+$A$11,IF($C$7,8,0),1,1) -> 11739700 | D65: =OFFSET(InputPriceData!C$15,CalculationsAndCharts!$A65+$A$11,IF($C$7,8,0),1,1) -> 36.38 | E65: =OFFSET(InputPriceData!D$15,CalculationsAndCharts!$A65+$A$11,IF($C$7,8,0),1,1) -> 37.27 | F65: =OFFSET(InputPriceData!E$15,CalculationsAndCharts!$A65+$A$11,IF($C$7,8,0),1,1) -> 36.38 | G65: =OFFSET(InputPriceData!F$15,CalculationsAndCharts!$A65+$A$11,IF($C$7,8,0),1,1) -> 37.15
A66: 34 | B66: =OFFSET(InputPriceData!B$15,CalculationsAndCharts!$A66+$A$11,0,1,1) -> 2014-03-03 | C66: =OFFSET(InputPriceData!G$15,CalculationsAndCharts!$A66+$A$11,IF($C$7,8,0),1,1) -> 9495500 | D66: =OFFSET(InputPriceData!C$15,CalculationsAndCharts!$A66+$A$11,IF($C$7,8,0),1,1) -> 35.99 | E66: =OFFSET(InputPriceData!D$15,CalculationsAndCharts!$A66+$A$11,IF($C$7,8,0),1,1) -> 36.22 | F66: =OFFSET(InputPriceData!E$15,CalculationsAndCharts!$A66+$A$11,IF($C$7,8,0),1,1) -> 35.14 | G66: =OFFSET(InputPriceData!F$15,CalculationsAndCharts!$A66+$A$11,IF($C$7,8,0),1,1) -> 35.92
A67: 35 | B67: =OFFSET(InputPriceData!B$15,CalculationsAndCharts!$A67+$A$11,0,1,1) -> 2014-02-28 | C67: =OFFSET(InputPriceData!G$15,CalculationsAndCharts!$A67+$A$11,IF($C$7,8,0),1,1) -> 7989800 | D67: =OFFSET(InputPriceData!C$15,CalculationsAndCharts!$A67+$A$11,IF($C$7,8,0),1,1) -> 35.92 | E67: =OFFSET(InputPriceData!D$15,CalculationsAndCharts!$A67+$A$11,IF($C$7,8,0),1,1) -> 36.79 | F67: =OFFSET(InputPriceData!E$15,CalculationsAndCharts!$A67+$A$11,IF($C$7,8,0),1,1) -> 35.88 | G67: =OFFSET(InputPriceData!F$15,CalculationsAndCharts!$A67+$A$11,IF($C$7,8,0),1,1) -> 36.74
A68: 36 | B68: =OFFSET(InputPriceData!B$15,CalculationsAndCharts!$A68+$A$11,0,1,1) -> 2014-02-27 | C68: =OFFSET(InputPriceData!G$15,CalculationsAndCharts!$A68+$A$11,IF($C$7,8,0),1,1) -> 5657000 | D68: =OFFSET(InputPriceData!C$15,CalculationsAndCharts!$A68+$A$11,IF($C$7,8,0),1,1) -> 36.7 | E68: =OFFSET(InputPriceData!D$15,CalculationsAndCharts!$A68+$A$11,IF($C$7,8,0),1,1) -> 36.77 | F68: =OFFSET(InputPriceData!E$15,CalculationsAndCharts!$A68+$A$11,IF($C$7,8,0),1,1) -> 36.16 | G68: =OFFSET(InputPriceData!F$15,CalculationsAndCharts!$A68+$A$11,IF($C$7,8,0),1,1) -> 36.38
A69: 37 | B69: =OFFSET(InputPriceData!B$15,CalculationsAndCharts!$A69+$A$11,0,1,1) -> 2014-02-26 | C69: =OFFSET(InputPriceData!G$15,CalculationsAndCharts!$A69+$A$11,IF($C$7,8,0),1,1) -> 10514100 | D69: =OFFSET(InputPriceData!C$15,CalculationsAndCharts!$A69+$A$11,IF($C$7,8,0),1,1) -> 36.94 | E69: =OFFSET(InputPriceData!D$15,CalculationsAndCharts!$A69+$A$11,IF($C$7,8,0),1,1) -> 37.1 | F69: =OFFSET(InputPriceData!E$15,CalculationsAndCharts!$A69+$A$11,IF($C$7,8,0),1,1) -> 36.4 | G69: =OFFSET(InputPriceData!F$15,CalculationsAndCharts!$A69+$A$11,IF($C$7,8,0),1,1) -> 36.57
A70: 38 | B70: =OFFSET(InputPriceData!B$15,CalculationsAndCharts!$A70+$A$11,0,1,1) -> 2014-02-25 | C70: =OFFSET(InputPriceData!G$15,CalculationsAndCharts!$A70+$A$11,IF($C$7,8,0),1,1) -> 8990100 | D70: =OFFSET(InputPriceData!C$15,CalculationsAndCharts!$A70+$A$11,IF($C$7,8,0),1,1) -> 36.44 | E70: =OFFSET(InputPriceData!D$15,CalculationsAndCharts!$A70+$A$11,IF($C$7,8,0),1,1) -> 36.96 | F70: =OFFSET(InputPriceData!E$15,CalculationsAndCharts!$A70+$A$11,IF($C$7,8,0),1,1) -> 36.32 | G70: =OFFSET(InputPriceData!F$15,CalculationsAndCharts!$A70+$A$11,IF($C$7,8,0),1,1) -> 36.81
A71: 39 | B71: =OFFSET(InputPriceData!B$15,CalculationsAndCharts!$A71+$A$11,0,1,1) -> 2014-02-24 | C71: =OFFSET(InputPriceData!G$15,CalculationsAndCharts!$A71+$A$11,IF($C$7,8,0),1,1) -> 7018500 | D71: =OFFSET(InputPriceData!C$15,CalculationsAndCharts!$A71+$A$11,IF($C$7,8,0),1,1) -> 36.02 | E71: =OFFSET(InputPriceData!D$15,CalculationsAndCharts!$A71+$A$11,IF($C$7,8,0),1,1) -> 36.48 | F71: =OFFSET(InputPriceData!E$15,CalculationsAndCharts!$A71+$A$11,IF($C$7,8,0),1,1) -> 35.84 | G71: =OFFSET(InputPriceData!F$15,CalculationsAndCharts!$A71+$A$11,IF($C$7,8,0),1,1) -> 36.47 | V71: 42.2
A72: 40 | B72: =OFFSET(InputPriceData!B$15,CalculationsAndCharts!$A72+$A$11,0,1,1) -> 2014-02-21 | C72: =OFFSET(InputPriceData!G$15,CalculationsAndCharts!$A72+$A$11,IF($C$7,8,0),1,1) -> 7820900 | D72: =OFFSET(InputPriceData!C$15,CalculationsAndCharts!$A72+$A$11,IF($C$7,8,0),1,1) -> 35.6 | E72: =OFFSET(InputPriceData!D$15,CalculationsAndCharts!$A72+$A$11,IF($C$7,8,0),1,1) -> 36.27 | F72: =OFFSET(InputPriceData!E$15,CalculationsAndCharts!$A72+$A$11,IF($C$7,8,0),1,1) -> 35.57 | G72: =OFFSET(InputPriceData!F$15,CalculationsAndCharts!$A72+$A$11,IF($C$7,8,0),1,1) -> 35.99
A73: 41 | B73: =OFFSET(InputPriceData!B$15,CalculationsAndCharts!$A73+$A$11,0,1,1) -> 2014-02-20 | C73: =OFFSET(InputPriceData!G$15,CalculationsAndCharts!$A73+$A$11,IF($C$7,8,0),1,1) -> 9282100 | D73: =OFFSET(InputPriceData!C$15,CalculationsAndCharts!$A73+$A$11,IF($C$7,8,0),1,1) -> 34.26 | E73: =OFFSET(InputPriceData!D$15,CalculationsAndCharts!$A73+$A$11,IF($C$7,8,0),1,1) -> 35.49 | F73: =OFFSET(InputPriceData!E$15,CalculationsAndCharts!$A73+$A$11,IF($C$7,8,0),1,1) -> 34.26 | G73: =OFFSET(InputPriceData!F$15,CalculationsAndCharts!$A73+$A$11,IF($C$7,8,0),1,1) -> 35.48
A74: 42 | B74: =OFFSET(InputPriceData!B$15,CalculationsAndCharts!$A74+$A$11,0,1,1) -> 2014-02-19 | C74: =OFFSET(InputPriceData!G$15,CalculationsAndCharts!$A74+$A$11,IF($C$7,8,0),1,1) -> 7258100 | D74: =OFFSET(InputPriceData!C$15,CalculationsAndCharts!$A74+$A$11,IF($C$7,8,0),1,1) -> 34.08 | E74: =OFFSET(InputPriceData!D$15,CalculationsAndCharts!$A74+$A$11,IF($C$7,8,0),1,1) -> 34.92 | F74: =OFFSET(InputPriceData!E$15,CalculationsAndCharts!$A74+$A$11,IF($C$7,8,0),1,1) -> 33.94 | G74: =OFFSET(InputPriceData!F$15,CalculationsAndCharts!$A74+$A$11,IF($C$7,8,0),1,1) -> 34.42
A75: 43 | B75: =OFFSET(InputPriceData!B$15,CalculationsAndCharts!$A75+$A$11,0,1,1) -> 2014-02-18 | C75: =OFFSET(InputPriceData!G$15,CalculationsAndCharts!$A75+$A$11,IF($C$7,8,0),1,1) -> 7087200 | D75: =OFFSET(InputPriceData!C$15,CalculationsAndCharts!$A75+$A$11,IF($C$7,8,0),1,1) -> 34.56 | E75: =OFFSET(InputPriceData!D$15,CalculationsAndCharts!$A75+$A$11,IF($C$7,8,0),1,1) -> 34.78 | F75: =OFFSET(InputPriceData!E$15,CalculationsAndCharts!$A75+$A$11,IF($C$7,8,0),1,1) -> 34.03 | G75: =OFFSET(InputPriceData!F$15,CalculationsAndCharts!$A75+$A$11,IF($C$7,8,0),1,1) -> 34.14
A76: 44 | B76: =OFFSET(InputPriceData!B$15,CalculationsAndCharts!$A76+$A$11,0,1,1) -> 2014-02-14 | C76: =OFFSET(InputPriceData!G$15,CalculationsAndCharts!$A76+$A$11,IF($C$7,8,0),1,1) -> 7296900 | D76: =OFFSET(InputPriceData!C$15,CalculationsAndCharts!$A76+$A$11,IF($C$7,8,0),1,1) -> 34.68 | E76: =OFFSET(InputPriceData!D$15,CalculationsAndCharts!$A76+$A$11,IF($C$7,8,0),1,1) -> 35.01 | F76: =OFFSET(InputPriceData!E$15,CalculationsAndCharts!$A76+$A$11,IF($C$7,8,0),1,1) -> 34.05 | G76: =OFFSET(InputPriceData!F$15,CalculationsAndCharts!$A76+$A$11,IF($C$7,8,0),1,1) -> 34.24
A77: 45 | B77: =OFFSET(InputPriceData!B$15,CalculationsAndCharts!$A77+$A$11,0,1,1) -> 2014-02-13 | C77: =OFFSET(InputPriceData!G$15,CalculationsAndCharts!$A77+$A$11,IF($C$7,8,0),1,1) -> 8409200 | D77: =OFFSET(InputPriceData!C$15,CalculationsAndCharts!$A77+$A$11,IF($C$7,8,0),1,1) -> 33.89 | E77: =OFFSET(InputPriceData!D$15,CalculationsAndCharts!$A77+$A$11,IF($C$7,8,0),1,1) -> 34.86 | F77: =OFFSET(InputPriceData!E$15,CalculationsAndCharts!$A77+$A$11,IF($C$7,8,0),1,1) -> 33.88 | G77: =OFFSET(InputPriceData!F$15,CalculationsAndCharts!$A77+$A$11,IF($C$7,8,0),1,1) -> 34.85
A78: 46 | B78: =OFFSET(InputPriceData!B$15,CalculationsAndCharts!$A78+$A$11,0,1,1) -> 2014-02-12 | C78: =OFFSET(InputPriceData!G$15,CalculationsAndCharts!$A78+$A$11,IF($C$7,8,0),1,1) -> 9383300 | D78: =OFFSET(InputPriceData!C$15,CalculationsAndCharts!$A78+$A$11,IF($C$7,8,0),1,1) -> 34.72 | E78: =OFFSET(InputPriceData!D$15,CalculationsAndCharts!$A78+$A$11,IF($C$7,8,0),1,1) -> 34.83 | F78: =OFFSET(InputPriceData!E$15,CalculationsAndCharts!$A78+$A$11,IF($C$7,8,0),1,1) -> 34.19 | G78: =OFFSET(InputPriceData!F$15,CalculationsAndCharts!$A78+$A$11,IF($C$7,8,0),1,1) -> 34.52
A79: 47 | B79: =OFFSET(InputPriceData!B$15,CalculationsAndCharts!$A79+$A$11,0,1,1) -> 2014-02-11 | C79: =OFFSET(InputPriceData!G$15,CalculationsAndCharts!$A79+$A$11,IF($C$7,8,0),1,1) -> 11988300 | D79: =OFFSET(InputPriceData!C$15,CalculationsAndCharts!$A79+$A$11,IF($C$7,8,0),1,1) -> 35.4 | E79: =OFFSET(InputPriceData!D$15,CalculationsAndCharts!$A79+$A$11,IF($C$7,8,0),1,1) -> 35.46 | F79: =OFFSET(InputPriceData!E$15,CalculationsAndCharts!$A79+$A$11,IF($C$7,8,0),1,1) -> 34.21 | G79: =OFFSET(InputPriceData!F$15,CalculationsAndCharts!$A79+$A$11,IF($C$7,8,0),1,1) -> 34.95
A80: 48 | B80: =OFFSET(InputPriceData!B$15,CalculationsAndCharts!$A80+$A$11,0,1,1) -> 2014-02-10 | C80: =OFFSET(InputPriceData!G$15,CalculationsAndCharts!$A80+$A$11,IF($C$7,8,0),1,1) -> 11107300 | D80: =OFFSET(InputPriceData!C$15,CalculationsAndCharts!$A80+$A$11,IF($C$7,8,0),1,1) -> 35.92 | E80: =OFFSET(InputPriceData!D$15,CalculationsAndCharts!$A80+$A$11,IF($C$7,8,0),1,1) -> 35.97 | F80: =OFFSET(InputPriceData!E$15,CalculationsAndCharts!$A80+$A$11,IF($C$7,8,0),1,1) -> 35.2 | G80: =OFFSET(InputPriceData!F$15,CalculationsAndCharts!$A80+$A$11,IF($C$7,8,0),1,1) -> 35.4
A81: 49 | B81: =OFFSET(InputPriceData!B$15,CalculationsAndCharts!$A81+$A$11,0,1,1) -> 2014-02-07 | C81: =OFFSET(InputPriceData!G$15,CalculationsAndCharts!$A81+$A$11,IF($C$7,8,0),1,1) -> 15404700 | D81: =OFFSET(InputPriceData!C$15,CalculationsAndCharts!$A81+$A$11,IF($C$7,8,0),1,1) -> 34.63 | E81: =OFFSET(InputPriceData!D$15,CalculationsAndCharts!$A81+$A$11,IF($C$7,8,0),1,1) -> 35.52 | F81: =OFFSET(InputPriceData!E$15,CalculationsAndCharts!$A81+$A$11,IF($C$7,8,0),1,1) -> 34.48 | G81: =OFFSET(InputPriceData!F$15,CalculationsAndCharts!$A81+$A$11,IF($C$7,8,0),1,1) -> 35.49 | N81: 34.5100937 | O81: 35.49 | P81: 1 | Q81: 26.9 | R81: 35.52 | U81: 8.62 | W81: TRUE | X81: 49 | Y81: 35.49 | Z81: FALSE | AC81: FALSE | AF81: FALSE | AI81: FALSE
A82: 50 | B82: =OFFSET(InputPriceData!B$15,CalculationsAndCharts!$A82+$A$11,0,1,1) -> 2014-02-06 | C82: =OFFSET(InputPriceData!G$15,CalculationsAndCharts!$A82+$A$11,IF($C$7,8,0),1,1) -> 13920500 | D82: =OFFSET(InputPriceData!C$15,CalculationsAndCharts!$A82+$A$11,IF($C$7,8,0),1,1) -> 33.54 | E82: =OFFSET(InputPriceData!D$15,CalculationsAndCharts!$A82+$A$11,IF($C$7,8,0),1,1) -> 34.75 | F82: =OFFSET(InputPriceData!E$15,CalculationsAndCharts!$A82+$A$11,IF($C$7,8,0),1,1) -> 33.53 | G82: =OFFSET(InputPriceData!F$15,CalculationsAndCharts!$A82+$A$11,IF($C$7,8,0),1,1) -> 34.49 | N82: 34.5100937 | Q82: 26.9 | R82: 34.75 | U82: 7.85
A83: 51 | B83: =OFFSET(InputPriceData!B$15,CalculationsAndCharts!$A83+$A$11,0,1,1) -> 2014-02-05 | C83: =OFFSET(InputPriceData!G$15,CalculationsAndCharts!$A83+$A$11,IF($C$7,8,0),1,1) -> 15465100 | D83: =OFFSET(InputPriceData!C$15,CalculationsAndCharts!$A83+$A$11,IF($C$7,8,0),1,1) -> 33.65 | E83: =OFFSET(InputPriceData!D$15,CalculationsAndCharts!$A83+$A$11,IF($C$7,8,0),1,1) -> 33.8 | F83: =OFFSET(InputPriceData!E$15,CalculationsAndCharts!$A83+$A$11,IF($C$7,8,0),1,1) -> 33.23 | G83: =OFFSET(InputPriceData!F$15,CalculationsAndCharts!$A83+$A$11,IF($C$7,8,0),1,1) -> 33.63 | N83: 34.5100937 | Q83: 26.9 | R83: 34.31 | U83: 7.41
A84: 52 | B84: =OFFSET(InputPriceData!B$15,CalculationsAndCharts!$A84+$A$11,0,1,1) -> 2014-02-04 | C84: =OFFSET(InputPriceData!G$15,CalculationsAndCharts!$A84+$A$11,IF($C$7,8,0),1,1) -> 11178900 | D84: =OFFSET(InputPriceData!C$15,CalculationsAndCharts!$A84+$A$11,IF($C$7,8,0),1,1) -> 33.87 | E84: =OFFSET(InputPriceData!D$15,CalculationsAndCharts!$A84+$A$11,IF($C$7,8,0),1,1) -> 34.21 | F84: =OFFSET(InputPriceData!E$15,CalculationsAndCharts!$A84+$A$11,IF($C$7,8,0),1,1) -> 33.41 | G84: =OFFSET(InputPriceData!F$15,CalculationsAndCharts!$A84+$A$11,IF($C$7,8,0),1,1) -> 33.88 | N84: 34.5100937 | Q84: 26.9 | R84: 34.31 | U84: 7.41
A85: 53 | B85: =OFFSET(InputPriceData!B$15,CalculationsAndCharts!$A85+$A$11,0,1,1) -> 2014-02-03 | C85: =OFFSET(InputPriceData!G$15,CalculationsAndCharts!$A85+$A$11,IF($C$7,8,0),1,1) -> 21739500 | D85: =OFFSET(InputPriceData!C$15,CalculationsAndCharts!$A85+$A$11,IF($C$7,8,0),1,1) -> 33.78 | E85: =OFFSET(InputPriceData!D$15,CalculationsAndCharts!$A85+$A$11,IF($C$7,8,0),1,1) -> 34.31 | F85: =OFFSET(InputPriceData!E$15,CalculationsAndCharts!$A85+$A$11,IF($C$7,8,0),1,1) -> 32.88 | G85: =OFFSET(InputPriceData!F$15,CalculationsAndCharts!$A85+$A$11,IF($C$7,8,0),1,1) -> 33.79 | N85: 34.5100937 | Q85: 26.9 | R85: 34.31 | U85: 7.41
A86: 54 | B86: =OFFSET(InputPriceData!B$15,CalculationsAndCharts!$A86+$A$11,0,1,1) -> 2014-01-31 | C86: =OFFSET(InputPriceData!G$15,CalculationsAndCharts!$A86+$A$11,IF($C$7,8,0),1,1) -> 12791000 | D86: =OFFSET(InputPriceData!C$15,CalculationsAndCharts!$A86+$A$11,IF($C$7,8,0),1,1) -> 33.27 | E86: =OFFSET(InputPriceData!D$15,CalculationsAndCharts!$A86+$A$11,IF($C$7,8,0),1,1) -> 33.91 | F86: =OFFSET(InputPriceData!E$15,CalculationsAndCharts!$A86+$A$11,IF($C$7,8,0),1,1) -> 32.83 | G86: =OFFSET(InputPriceData!F$15,CalculationsAndCharts!$A86+$A$11,IF($C$7,8,0),1,1) -> 33.38 | N86: 34.5100937 | Q86: 26.9 | R86: 34.03 | U86: 7.13
A87: 55 | B87: =OFFSET(InputPriceData!B$15,CalculationsAndCharts!$A87+$A$11,0,1,1) -> 2014-01-30 | C87: =OFFSET(InputPriceData!G$15,CalculationsAndCharts!$A87+$A$11,IF($C$7,8,0),1,1) -> 13660500 | D87: =OFFSET(InputPriceData!C$15,CalculationsAndCharts!$A87+$A$11,IF($C$7,8,0),1,1) -> 33.19 | E87: =OFFSET(InputPriceData!D$15,CalculationsAndCharts!$A87+$A$11,IF($C$7,8,0),1,1) -> 34.03 | F87: =OFFSET(InputPriceData!E$15,CalculationsAndCharts!$A87+$A$11,IF($C$7,8,0),1,1) -> 33.03 | G87: =OFFSET(InputPriceData!F$15,CalculationsAndCharts!$A87+$A$11,IF($C$7,8,0),1,1) -> 33.63 | N87: 34.5100937 | Q87: 26.9 | R87: 34.03 | U87: 7.13
A88: 56 | B88: =OFFSET(InputPriceData!B$15,CalculationsAndCharts!$A88+$A$11,0,1,1) -> 2014-01-29 | C88: =OFFSET(InputPriceData!G$15,CalculationsAndCharts!$A88+$A$11,IF($C$7,8,0),1,1) -> 22683700 | D88: =OFFSET(InputPriceData!C$15,CalculationsAndCharts!$A88+$A$11,IF($C$7,8,0),1,1) -> 32.07 | E88: =OFFSET(InputPriceData!D$15,CalculationsAndCharts!$A88+$A$11,IF($C$7,8,0),1,1) -> 33.23 | F88: =OFFSET(InputPriceData!E$15,CalculationsAndCharts!$A88+$A$11,IF($C$7,8,0),1,1) -> 31.93 | G88: =OFFSET(InputPriceData!F$15,CalculationsAndCharts!$A88+$A$11,IF($C$7,8,0),1,1) -> 32.81 | N88: 34.5100937 | Q88: 26.9 | R88: 33.23 | U88: 6.33
A89: 57 | B89: =OFFSET(InputPriceData!B$15,CalculationsAndCharts!$A89+$A$11,0,1,1) -> 2014-01-28 | C89: =OFFSET(InputPriceData!G$15,CalculationsAndCharts!$A89+$A$11,IF($C$7,8,0),1,1) -> 23937900 | D89: =OFFSET(InputPriceData!C$15,CalculationsAndCharts!$A89+$A$11,IF($C$7,8,0),1,1) -> 30.17 | E89: =OFFSET(InputPriceData!D$15,CalculationsAndCharts!$A89+$A$11,IF($C$7,8,0),1,1) -> 32.04 | F89: =OFFSET(InputPriceData!E$15,CalculationsAndCharts!$A89+$A$11,IF($C$7,8,0),1,1) -> 29.87 | G89: =OFFSET(InputPriceData!F$15,CalculationsAndCharts!$A89+$A$11,IF($C$7,8,0),1,1) -> 31.8 | N89: 34.5100937 | Q89: 26.9 | R89: 32.04 | U89: 5.14
A90: 58 | B90: =OFFSET(InputPriceData!B$15,CalculationsAndCharts!$A90+$A$11,0,1,1) -> 2014-01-27 | C90: =OFFSET(InputPriceData!G$15,CalculationsAndCharts!$A90+$A$11,IF($C$7,8,0),1,1) -> 16276300 | D90: =OFFSET(InputPriceData!C$15,CalculationsAndCharts!$A90+$A$11,IF($C$7,8,0),1,1) -> 30.25 | E90: =OFFSET(InputPriceData!D$15,CalculationsAndCharts!$A90+$A$11,IF($C$7,8,0),1,1) -> 30.72 | F90: =OFFSET(InputPriceData!E$15,CalculationsAndCharts!$A90+$A$11,IF($C$7,8,0),1,1) -> 28.53 | G90: =OFFSET(InputPriceData!F$15,CalculationsAndCharts!$A90+$A$11,IF($C$7,8,0),1,1) -> 30.03 | N90: 34.5100937 | Q90: 26.9 | R90: 31.3 | U90: 4.4
A91: 59 | B91: =OFFSET(InputPriceData!B$15,CalculationsAndCharts!$A91+$A$11,0,1,1) -> 2014-01-24 | C91: =OFFSET(InputPriceData!G$15,CalculationsAndCharts!$A91+$A$11,IF($C$7,8,0),1,1) -> 13686200 | D91: =OFFSET(InputPriceData!C$15,CalculationsAndCharts!$A91+$A$11,IF($C$7,8,0),1,1) -> 30.87 | E91: =OFFSET(InputPriceData!D$15,CalculationsAndCharts!$A91+$A$11,IF($C$7,8,0),1,1) -> 31.03 | F91: =OFFSET(InputPriceData!E$15,CalculationsAndCharts!$A91+$A$11,IF($C$7,8,0),1,1) -> 29.76 | G91: =OFFSET(InputPriceData!F$15,CalculationsAndCharts!$A91+$A$11,IF($C$7,8,0),1,1) -> 30.25 | N91: 34.5100937 | Q91: 26.9 | R91: 31.3 | U91: 4.4
A92: 60 | B92: =OFFSET(InputPriceData!B$15,CalculationsAndCharts!$A92+$A$11,0,1,1) -> 2014-01-23 | C92: =OFFSET(InputPriceData!G$15,CalculationsAndCharts!$A92+$A$11,IF($C$7,8,0),1,1) -> 11394600 | D92: =OFFSET(InputPriceData!C$15,CalculationsAndCharts!$A92+$A$11,IF($C$7,8,0),1,1) -> 30.49 | E92: =OFFSET(InputPriceData!D$15,CalculationsAndCharts!$A92+$A$11,IF($C$7,8,0),1,1) -> 31.3 | F92: =OFFSET(InputPriceData!E$15,CalculationsAndCharts!$A92+$A$11,IF($C$7,8,0),1,1) -> 30.46 | G92: =OFFSET(InputPriceData!F$15,CalculationsAndCharts!$A92+$A$11,IF($C$7,8,0),1,1) -> 31.19 | N92: 34.5100937 | Q92: 26.9 | R92: 31.3 | U92: 4.4
A93: 61 | B93: =OFFSET(InputPriceData!B$15,CalculationsAndCharts!$A93+$A$11,0,1,1) -> 2014-01-22 | C93: =OFFSET(InputPriceData!G$15,CalculationsAndCharts!$A93+$A$11,IF($C$7,8,0),1,1) -> 7578800 | D93: =OFFSET(InputPriceData!C$15,CalculationsAndCharts!$A93+$A$11,IF($C$7,8,0),1,1) -> 30.55 | E93: =OFFSET(InputPriceData!D$15,CalculationsAndCharts!$A93+$A$11,IF($C$7,8,0),1,1) -> 31.08 | F93: =OFFSET(InputPriceData!E$15,CalculationsAndCharts!$A93+$A$11,IF($C$7,8,0),1,1) -> 30.49 | G93: =OFFSET(InputPriceData!F$15,CalculationsAndCharts!$A93+$A$11,IF($C$7,8,0),1,1) -> 31.04 | N93: 34.5100937 | Q93: 26.9 | R93: 31.08 | U93: 4.18
A94: 62 | B94: =OFFSET(InputPriceData!B$15,CalculationsAndCharts!$A94+$A$11,0,1,1) -> 2014-01-21 | C94: =OFFSET(InputPriceData!G$15,CalculationsAndCharts!$A94+$A$11,IF($C$7,8,0),1,1) -> 10612500 | D94: =OFFSET(InputPriceData!C$15,CalculationsAndCharts!$A94+$A$11,IF($C$7,8,0),1,1) -> 30.51 | E94: =OFFSET(InputPriceData!D$15,CalculationsAndCharts!$A94+$A$11,IF($C$7,8,0),1,1) -> 30.65 | F94: =OFFSET(InputPriceData!E$15,CalculationsAndCharts!$A94+$A$11,IF($C$7,8,0),1,1) -> 30.05 | G94: =OFFSET(InputPriceData!F$15,CalculationsAndCharts!$A94+$A$11,IF($C$7,8,0),1,1) -> 30.51 | N94: 34.5100937 | Q94: 26.9 | R94: 30.65 | U94: 3.75
A95: 63 | B95: =OFFSET(InputPriceData!B$15,CalculationsAndCharts!$A95+$A$11,0,1,1) -> 2014-01-17 | C95: =OFFSET(InputPriceData!G$15,CalculationsAndCharts!$A95+$A$11,IF($C$7,8,0),1,1) -> 18276700 | D95: =OFFSET(InputPriceData!C$15,CalculationsAndCharts!$A95+$A$11,IF($C$7,8,0),1,1) -> 29.15 | E95: =OFFSET(InputPriceData!D$15,CalculationsAndCharts!$A95+$A$11,IF($C$7,8,0),1,1) -> 29.87 | F95: =OFFSET(InputPriceData!E$15,CalculationsAndCharts!$A95+$A$11,IF($C$7,8,0),1,1) -> 29.02 | G95: =OFFSET(InputPriceData!F$15,CalculationsAndCharts!$A95+$A$11,IF($C$7,8,0),1,1) -> 29.87 | N95: 34.5100937 | Q95: 26.9 | R95: 29.87 | U95: 2.97
A96: 64 | B96: =OFFSET(InputPriceData!B$15,CalculationsAndCharts!$A96+$A$11,0,1,1) -> 2014-01-16 | C96: =OFFSET(InputPriceData!G$15,CalculationsAndCharts!$A96+$A$11,IF($C$7,8,0),1,1) -> 7034200 | D96: =OFFSET(InputPriceData!C$15,CalculationsAndCharts!$A96+$A$11,IF($C$7,8,0),1,1) -> 28.79 | E96: =OFFSET(InputPriceData!D$15,CalculationsAndCharts!$A96+$A$11,IF($C$7,8,0),1,1) -> 29.24 | F96: =OFFSET(InputPriceData!E$15,CalculationsAndCharts!$A96+$A$11,IF($C$7,8,0),1,1) -> 28.55 | G96: =OFFSET(InputPriceData!F$15,CalculationsAndCharts!$A96+$A$11,IF($C$7,8,0),1,1) -> 29.19 | N96: 34.5100937 | Q96: 26.9 | R96: 29.68 | U96: 2.78
A97: 65 | B97: =OFFSET(InputPriceData!B$15,CalculationsAndCharts!$A97+$A$11,0,1,1) -> 2014-01-15 | C97: =OFFSET(InputPriceData!G$15,CalculationsAndCharts!$A97+$A$11,IF($C$7,8,0),1,1) -> 11192500 | D97: =OFFSET(InputPriceData!C$15,CalculationsAndCharts!$A97+$A$11,IF($C$7,8,0),1,1) -> 28.76 | E97: =OFFSET(InputPriceData!D$15,CalculationsAndCharts!$A97+$A$11,IF($C$7,8,0),1,1) -> 29.3 | F97: =OFFSET(InputPriceData!E$15,CalculationsAndCharts!$A97+$A$11,IF($C$7,8,0),1,1) -> 28.56 | G97: =OFFSET(InputPriceData!F$15,CalculationsAndCharts!$A97+$A$11,IF($C$7,8,0),1,1) -> 28.7 | N97: 34.5100937 | Q97: 26.9 | R97: 29.68 | U97: 2.78 | V97: =IF($A97=$E$25,V$32,NA()) ->  | X97: =IF(W97,$A97,NA()) ->  | AA97: =IF(Z97,$A97,NA()) ->  | AD97: =IF(AC97,$A97,NA()) ->  | AG97: =IF(AF97,$A97,NA()) ->  | AJ97: =IF(AI97,$A97,NA()) -> 
A98: 66 | B98: =OFFSET(InputPriceData!B$15,CalculationsAndCharts!$A98+$A$11,0,1,1) -> 2014-01-14 | C98: =OFFSET(InputPriceData!G$15,CalculationsAndCharts!$A98+$A$11,IF($C$7,8,0),1,1) -> 10600500 | D98: =OFFSET(InputPriceData!C$15,CalculationsAndCharts!$A98+$A$11,IF($C$7,8,0),1,1) -> 28.6 | E98: =OFFSET(InputPriceData!D$15,CalculationsAndCharts!$A98+$A$11,IF($C$7,8,0),1,1) -> 28.89 | F98: =OFFSET(InputPriceData!E$15,CalculationsAndCharts!$A98+$A$11,IF($C$7,8,0),1,1) -> 28.56 | G98: =OFFSET(InputPriceData!F$15,CalculationsAndCharts!$A98+$A$11,IF($C$7,8,0),1,1) -> 28.72 | N98: 34.5100937 | Q98: 26.9 | R98: 29.68 | U98: 2.78 | W98: =$P98=W$30 ->  | Y98: =IF(W98,$O98,NA()) ->  | Z98: =$P98=Z$30 ->  | AB98: =IF(Z98,$O98,NA()) ->  | AC98: =$P98=AC$30 ->  | AE98: =IF(AC98,$O98,NA()) ->  | AF98: =$P98=AF$30 ->  | AH98: =IF(AF98,$O98,NA()) ->  | AI98: =$P98=AI$30 ->  | AK98: =IF(AI98,$O98,NA()) -> 
A99: 67 | B99: =OFFSET(InputPriceData!B$15,CalculationsAndCharts!$A99+$A$11,0,1,1) -> 2014-01-13 | C99: =OFFSET(InputPriceData!G$15,CalculationsAndCharts!$A99+$A$11,IF($C$7,8,0),1,1) -> 10587800 | D99: =OFFSET(InputPriceData!C$15,CalculationsAndCharts!$A99+$A$11,IF($C$7,8,0),1,1) -> 29.04 | E99: =OFFSET(InputPriceData!D$15,CalculationsAndCharts!$A99+$A$11,IF($C$7,8,0),1,1) -> 29.39 | F99: =OFFSET(InputPriceData!E$15,CalculationsAndCharts!$A99+$A$11,IF($C$7,8,0),1,1) -> 28.44 | G99: =OFFSET(InputPriceData!F$15,CalculationsAndCharts!$A99+$A$11,IF($C$7,8,0),1,1) -> 28.51 | N99: 34.5100937 | Q99: 26.9 | R99: 29.68 | U99: 2.78
A100: 68 | B100: =OFFSET(InputPriceData!B$15,CalculationsAndCharts!$A100+$A$11,0,1,1) -> 2014-01-10 | C100: =OFFSET(InputPriceData!G$15,CalculationsAndCharts!$A100+$A$11,IF($C$7,8,0),1,1) -> 12807800 | D100: =OFFSET(InputPriceData!C$15,CalculationsAndCharts!$A100+$A$11,IF($C$7,8,0),1,1) -> 28.9 | E100: =OFFSET(InputPriceData!D$15,CalculationsAndCharts!$A100+$A$11,IF($C$7,8,0),1,1) -> 29.68 | F100: =OFFSET(InputPriceData!E$15,CalculationsAndCharts!$A100+$A$11,IF($C$7,8,0),1,1) -> 28.6 | G100: =OFFSET(InputPriceData!F$15,CalculationsAndCharts!$A100+$A$11,IF($C$7,8,0),1,1) -> 29.2 | N100: 34.5100937 | Q100: 26.9 | R100: 29.68 | U100: 2.78
A101: 69 | B101: =OFFSET(InputPriceData!B$15,CalculationsAndCharts!$A101+$A$11,0,1,1) -> 2014-01-09 | C101: =OFFSET(InputPriceData!G$15,CalculationsAndCharts!$A101+$A$11,IF($C$7,8,0),1,1) -> 26049300 | D101: =OFFSET(InputPriceData!C$15,CalculationsAndCharts!$A101+$A$11,IF($C$7,8,0),1,1) -> 28.1 | E101: =OFFSET(InputPriceData!D$15,CalculationsAndCharts!$A101+$A$11,IF($C$7,8,0),1,1) -> 29.45 | F101: =OFFSET(InputPriceData!E$15,CalculationsAndCharts!$A101+$A$11,IF($C$7,8,0),1,1) -> 28.06 | G101: =OFFSET(InputPriceData!F$15,CalculationsAndCharts!$A101+$A$11,IF($C$7,8,0),1,1) -> 29.27 | N101: 34.5100937 | Q101: 26.9 | R101: 29.45 | U101: =R101-Q101 -> 2.55
A102: 70 | B102: =OFFSET(InputPriceData!B$15,CalculationsAndCharts!$A102+$A$11,0,1,1) -> 2014-01-08 | C102: =OFFSET(InputPriceData!G$15,CalculationsAndCharts!$A102+$A$11,IF($C$7,8,0),1,1) -> 15733900 | D102: =OFFSET(InputPriceData!C$15,CalculationsAndCharts!$A102+$A$11,IF($C$7,8,0),1,1) -> 26.24 | E102: =OFFSET(InputPriceData!D$15,CalculationsAndCharts!$A102+$A$11,IF($C$7,8,0),1,1) -> 27.54 | F102: =OFFSET(InputPriceData!E$15,CalculationsAndCharts!$A102+$A$11,IF($C$7,8,0),1,1) -> 26.22 | G102: =OFFSET(InputPriceData!F$15,CalculationsAndCharts!$A102+$A$11,IF($C$7,8,0),1,1) -> 27.49 | L102: 1 | M102: 26.9 | N102: 34.5100937
A103: 71 | B103: =OFFSET(InputPriceData!B$15,CalculationsAndCharts!$A103+$A$11,0,1,1) -> 2014-01-07 | C103: =OFFSET(InputPriceData!G$15,CalculationsAndCharts!$A103+$A$11,IF($C$7,8,0),1,1) -> 11288700 | D103: =OFFSET(InputPriceData!C$15,CalculationsAndCharts!$A103+$A$11,IF($C$7,8,0),1,1) -> 27.06 | E103: =OFFSET(InputPriceData!D$15,CalculationsAndCharts!$A103+$A$11,IF($C$7,8,0),1,1) -> 27.26 | F103: =OFFSET(InputPriceData!E$15,CalculationsAndCharts!$A103+$A$11,IF($C$7,8,0),1,1) -> 26.53 | G103: =OFFSET(InputPriceData!F$15,CalculationsAndCharts!$A103+$A$11,IF($C$7,8,0),1,1) -> 26.77 | J103: 24.5 | K103: 27.26 | T103: 2.76
A104: 72 | B104: =OFFSET(InputPriceData!B$15,CalculationsAndCharts!$A104+$A$11,0,1,1) -> 2014-01-06 | C104: =OFFSET(InputPriceData!G$15,CalculationsAndCharts!$A104+$A$11,IF($C$7,8,0),1,1) -> 11271400 | D104: =OFFSET(InputPriceData!C$15,CalculationsAndCharts!$A104+$A$11,IF($C$7,8,0),1,1) -> 26.48 | E104: =OFFSET(InputPriceData!D$15,CalculationsAndCharts!$A104+$A$11,IF($C$7,8,0),1,1) -> 27.06 | F104: =OFFSET(InputPriceData!E$15,CalculationsAndCharts!$A104+$A$11,IF($C$7,8,0),1,1) -> 26.46 | G104: =OFFSET(InputPriceData!F$15,CalculationsAndCharts!$A104+$A$11,IF($C$7,8,0),1,1) -> 26.89 | J104: 24.5 | K104: 27.26 | T104: 2.76
A105: 73 | B105: =OFFSET(InputPriceData!B$15,CalculationsAndCharts!$A105+$A$11,0,1,1) -> 2014-01-03 | C105: =OFFSET(InputPriceData!G$15,CalculationsAndCharts!$A105+$A$11,IF($C$7,8,0),1,1) -> 13829600 | D105: =OFFSET(InputPriceData!C$15,CalculationsAndCharts!$A105+$A$11,IF($C$7,8,0),1,1) -> 25.62 | E105: =OFFSET(InputPriceData!D$15,CalculationsAndCharts!$A105+$A$11,IF($C$7,8,0),1,1) -> 26.62 | F105: =OFFSET(InputPriceData!E$15,CalculationsAndCharts!$A105+$A$11,IF($C$7,8,0),1,1) -> 25.39 | G105: =OFFSET(InputPriceData!F$15,CalculationsAndCharts!$A105+$A$11,IF($C$7,8,0),1,1) -> 26.41 | J105: 24.5 | K105: 27.26 | T105: 2.76
A106: 74 | B106: =OFFSET(InputPriceData!B$15,CalculationsAndCharts!$A106+$A$11,0,1,1) -> 2014-01-02 | C106: =OFFSET(InputPriceData!G$15,CalculationsAndCharts!$A106+$A$11,IF($C$7,8,0),1,1) -> 8997900 | D106: =OFFSET(InputPriceData!C$15,CalculationsAndCharts!$A106+$A$11,IF($C$7,8,0),1,1) -> 24.94 | E106: =OFFSET(InputPriceData!D$15,CalculationsAndCharts!$A106+$A$11,IF($C$7,8,0),1,1) -> 25.69 | F106: =OFFSET(InputPriceData!E$15,CalculationsAndCharts!$A106+$A$11,IF($C$7,8,0),1,1) -> 24.93 | G106: =OFFSET(InputPriceData!F$15,CalculationsAndCharts!$A106+$A$11,IF($C$7,8,0),1,1) -> 25.23 | J106: 24.5 | K106: 27.26 | T106: 2.76
A107: 75 | B107: =OFFSET(InputPriceData!B$15,CalculationsAndCharts!$A107+$A$11,0,1,1) -> 2013-12-31 | C107: =OFFSET(InputPriceData!G$15,CalculationsAndCharts!$A107+$A$11,IF($C$7,8,0),1,1) -> 7166600 | D107: =OFFSET(InputPriceData!C$15,CalculationsAndCharts!$A107+$A$11,IF($C$7,8,0),1,1) -> 24.61 | E107: =OFFSET(InputPriceData!D$15,CalculationsAndCharts!$A107+$A$11,IF($C$7,8,0),1,1) -> 25.12 | F107: =OFFSET(InputPriceData!E$15,CalculationsAndCharts!$A107+$A$11,IF($C$7,8,0),1,1) -> 24.5 | G107: =OFFSET(InputPriceData!F$15,CalculationsAndCharts!$A107+$A$11,IF($C$7,8,0),1,1) -> 25.12 | J107: 24.5 | K107: 27.26 | T107: 2.76
A108: 76 | B108: =OFFSET(InputPriceData!B$15,CalculationsAndCharts!$A108+$A$11,0,1,1) -> 2013-12-30 | C108: =OFFSET(InputPriceData!G$15,CalculationsAndCharts!$A108+$A$11,IF($C$7,8,0),1,1) -> 8840800 | D108: =OFFSET(InputPriceData!C$15,CalculationsAndCharts!$A108+$A$11,IF($C$7,8,0),1,1) -> 24.75 | E108: =OFFSET(InputPriceData!D$15,CalculationsAndCharts!$A108+$A$11,IF($C$7,8,0),1,1) -> 25.13 | F108: =OFFSET(InputPriceData!E$15,CalculationsAndCharts!$A108+$A$11,IF($C$7,8,0),1,1) -> 24.53 | G108: =OFFSET(InputPriceData!F$15,CalculationsAndCharts!$A108+$A$11,IF($C$7,8,0),1,1) -> 24.66 | J108: 24.5 | K108: 27.26 | T108: 2.76
A109: 77 | B109: =OFFSET(InputPriceData!B$15,CalculationsAndCharts!$A109+$A$11,0,1,1) -> 2013-12-27 | C109: =OFFSET(InputPriceData!G$15,CalculationsAndCharts!$A109+$A$11,IF($C$7,8,0),1,1) -> 13221000 | D109: =OFFSET(InputPriceData!C$15,CalculationsAndCharts!$A109+$A$11,IF($C$7,8,0),1,1) -> 25.81 | E109: =OFFSET(InputPriceData!D$15,CalculationsAndCharts!$A109+$A$11,IF($C$7,8,0),1,1) -> 25.96 | F109: =OFFSET(InputPriceData!E$15,CalculationsAndCharts!$A109+$A$11,IF($C$7,8,0),1,1) -> 24.78 | G109: =OFFSET(InputPriceData!F$15,CalculationsAndCharts!$A109+$A$11,IF($C$7,8,0),1,1) -> 24.81 | J109: 24.5 | K109: 27.26 | T109: 2.76
A110: 78 | B110: =OFFSET(InputPriceData!B$15,CalculationsAndCharts!$A110+$A$11,0,1,1) -> 2013-12-26 | C110: =OFFSET(InputPriceData!G$15,CalculationsAndCharts!$A110+$A$11,IF($C$7,8,0),1,1) -> 4216600 | D110: =OFFSET(InputPriceData!C$15,CalculationsAndCharts!$A110+$A$11,IF($C$7,8,0),1,1) -> 25.99 | E110: =OFFSET(InputPriceData!D$15,CalculationsAndCharts!$A110+$A$11,IF($C$7,8,0),1,1) -> 26.23 | F110: =OFFSET(InputPriceData!E$15,CalculationsAndCharts!$A110+$A$11,IF($C$7,8,0),1,1) -> 25.85 | G110: =OFFSET(InputPriceData!F$15,CalculationsAndCharts!$A110+$A$11,IF($C$7,8,0),1,1) -> 26 | J110: 24.5 | K110: 27.26 | T110: 2.76
A111: 79 | B111: =OFFSET(InputPriceData!B$15,CalculationsAndCharts!$A111+$A$11,0,1,1) -> 2013-12-24 | C111: =OFFSET(InputPriceData!G$15,CalculationsAndCharts!$A111+$A$11,IF($C$7,8,0),1,1) -> 2653000 | D111: =OFFSET(InputPriceData!C$15,CalculationsAndCharts!$A111+$A$11,IF($C$7,8,0),1,1) -> 25.87 | E111: =OFFSET(InputPriceData!D$15,CalculationsAndCharts!$A111+$A$11,IF($C$7,8,0),1,1) -> 26.13 | F111: =OFFSET(InputPriceData!E$15,CalculationsAndCharts!$A111+$A$11,IF($C$7,8,0),1,1) -> 25.87 | G111: =OFFSET(InputPriceData!F$15,CalculationsAndCharts!$A111+$A$11,IF($C$7,8,0),1,1) -> 26.12 | J111: 24.5 | K111: 27.26 | S111: =I111-H111 ->  | T111: =K111-J111 -> 2.76
A112: 80 | B112: =OFFSET(InputPriceData!B$15,CalculationsAndCharts!$A112+$A$11,0,1,1) -> 2013-12-23 | C112: =OFFSET(InputPriceData!G$15,CalculationsAndCharts!$A112+$A$11,IF($C$7,8,0),1,1) -> 5401100 | D112: =OFFSET(InputPriceData!C$15,CalculationsAndCharts!$A112+$A$11,IF($C$7,8,0),1,1) -> 26.16 | E112: =OFFSET(InputPriceData!D$15,CalculationsAndCharts!$A112+$A$11,IF($C$7,8,0),1,1) -> 26.36 | F112: =OFFSET(InputPriceData!E$15,CalculationsAndCharts!$A112+$A$11,IF($C$7,8,0),1,1) -> 25.92 | G112: =OFFSET(InputPriceData!F$15,CalculationsAndCharts!$A112+$A$11,IF($C$7,8,0),1,1) -> 26.05 | J112: 24.5 | K112: 27.26 | T112: 2.76
A113: 81 | B113: =OFFSET(InputPriceData!B$15,CalculationsAndCharts!$A113+$A$11,0,1,1) -> 2013-12-20 | C113: =OFFSET(InputPriceData!G$15,CalculationsAndCharts!$A113+$A$11,IF($C$7,8,0),1,1) -> 8527700 | D113: =OFFSET(InputPriceData!C$15,CalculationsAndCharts!$A113+$A$11,IF($C$7,8,0),1,1) -> 26.03 | E113: =OFFSET(InputPriceData!D$15,CalculationsAndCharts!$A113+$A$11,IF($C$7,8,0),1,1) -> 26.36 | F113: =OFFSET(InputPriceData!E$15,CalculationsAndCharts!$A113+$A$11,IF($C$7,8,0),1,1) -> 26.01 | G113: =OFFSET(InputPriceData!F$15,CalculationsAndCharts!$A113+$A$11,IF($C$7,8,0),1,1) -> 26.2 | J113: 24.5 | K113: 27.26 | T113: 2.76
A114: 82 | B114: =OFFSET(InputPriceData!B$15,CalculationsAndCharts!$A114+$A$11,0,1,1) -> 2013-12-19 | C114: =OFFSET(InputPriceData!G$15,CalculationsAndCharts!$A114+$A$11,IF($C$7,8,0),1,1) -> 6908800 | D114: =OFFSET(InputPriceData!C$15,CalculationsAndCharts!$A114+$A$11,IF($C$7,8,0),1,1) -> 25.96 | E114: =OFFSET(InputPriceData!D$15,CalculationsAndCharts!$A114+$A$11,IF($C$7,8,0),1,1) -> 26.36 | F114: =OFFSET(InputPriceData!E$15,CalculationsAndCharts!$A114+$A$11,IF($C$7,8,0),1,1) -> 25.69 | G114: =OFFSET(InputPriceData!F$15,CalculationsAndCharts!$A114+$A$11,IF($C$7,8,0),1,1) -> 25.99 | J114: 24.5 | K114: 27.26 | T114: 2.76
A115: 83 | B115: =OFFSET(InputPriceData!B$15,CalculationsAndCharts!$A115+$A$11,0,1,1) -> 2013-12-18 | C115: =OFFSET(InputPriceData!G$15,CalculationsAndCharts!$A115+$A$11,IF($C$7,8,0),1,1) -> 9993900 | D115: =OFFSET(InputPriceData!C$15,CalculationsAndCharts!$A115+$A$11,IF($C$7,8,0),1,1) -> 25.86 | E115: =OFFSET(InputPriceData!D$15,CalculationsAndCharts!$A115+$A$11,IF($C$7,8,0),1,1) -> 26.1 | F115: =OFFSET(InputPriceData!E$15,CalculationsAndCharts!$A115+$A$11,IF($C$7,8,0),1,1) -> 25.42 | G115: =OFFSET(InputPriceData!F$15,CalculationsAndCharts!$A115+$A$11,IF($C$7,8,0),1,1) -> 26.1 | J115: 24.5 | K115: 27.26 | T115: 2.76
A116: 84 | B116: =OFFSET(InputPriceData!B$15,CalculationsAndCharts!$A116+$A$11,0,1,1) -> 2013-12-17 | C116: =OFFSET(InputPriceData!G$15,CalculationsAndCharts!$A116+$A$11,IF($C$7,8,0),1,1) -> 11413200 | D116: =OFFSET(InputPriceData!C$15,CalculationsAndCharts!$A116+$A$11,IF($C$7,8,0),1,1) -> 26.34 | E116: =OFFSET(InputPriceData!D$15,CalculationsAndCharts!$A116+$A$11,IF($C$7,8,0),1,1) -> 26.46 | F116: =OFFSET(InputPriceData!E$15,CalculationsAndCharts!$A116+$A$11,IF($C$7,8,0),1,1) -> 25.82 | G116: =OFFSET(InputPriceData!F$15,CalculationsAndCharts!$A116+$A$11,IF($C$7,8,0),1,1) -> 25.97 | J116: 24.5 | K116: 27.26 | T116: 2.76
A117: 85 | B117: =OFFSET(InputPriceData!B$15,CalculationsAndCharts!$A117+$A$11,0,1,1) -> 2013-12-16 | C117: =OFFSET(InputPriceData!G$15,CalculationsAndCharts!$A117+$A$11,IF($C$7,8,0),1,1) -> 13181300 | D117: =OFFSET(InputPriceData!C$15,CalculationsAndCharts!$A117+$A$11,IF($C$7,8,0),1,1) -> 26.5 | E117: =OFFSET(InputPriceData!D$15,CalculationsAndCharts!$A117+$A$11,IF($C$7,8,0),1,1) -> 26.64 | F117: =OFFSET(InputPriceData!E$15,CalculationsAndCharts!$A117+$A$11,IF($C$7,8,0),1,1) -> 26.22 | G117: =OFFSET(InputPriceData!F$15,CalculationsAndCharts!$A117+$A$11,IF($C$7,8,0),1,1) -> 26.48 | J117: 24.5 | K117: 27.26 | T117: 2.76
A118: 86 | B118: =OFFSET(InputPriceData!B$15,CalculationsAndCharts!$A118+$A$11,0,1,1) -> 2013-12-13 | C118: =OFFSET(InputPriceData!G$15,CalculationsAndCharts!$A118+$A$11,IF($C$7,8,0),1,1) -> 12189900 | D118: =OFFSET(InputPriceData!C$15,CalculationsAndCharts!$A118+$A$11,IF($C$7,8,0),1,1) -> 25.48 | E118: =OFFSET(InputPriceData!D$15,CalculationsAndCharts!$A118+$A$11,IF($C$7,8,0),1,1) -> 26.17 | F118: =OFFSET(InputPriceData!E$15,CalculationsAndCharts!$A118+$A$11,IF($C$7,8,0),1,1) -> 25.39 | G118: =OFFSET(InputPriceData!F$15,CalculationsAndCharts!$A118+$A$11,IF($C$7,8,0),1,1) -> 26.1 | H118: 21.34 | I118: 27.06 | S118: 5.72
A119: 87 | B119: =OFFSET(InputPriceData!B$15,CalculationsAndCharts!$A119+$A$11,0,1,1) -> 2013-12-12 | C119: =OFFSET(InputPriceData!G$15,CalculationsAndCharts!$A119+$A$11,IF($C$7,8,0),1,1) -> 19981800 | D119: =OFFSET(InputPriceData!C$15,CalculationsAndCharts!$A119+$A$11,IF($C$7,8,0),1,1) -> 26.07 | E119: =OFFSET(InputPriceData!D$15,CalculationsAndCharts!$A119+$A$11,IF($C$7,8,0),1,1) -> 26.57 | F119: =OFFSET(InputPriceData!E$15,CalculationsAndCharts!$A119+$A$11,IF($C$7,8,0),1,1) -> 25.32 | G119: =OFFSET(InputPriceData!F$15,CalculationsAndCharts!$A119+$A$11,IF($C$7,8,0),1,1) -> 25.32 | H119: 21.34 | I119: 27.06 | S119: 5.72
A120: 88 | B120: =OFFSET(InputPriceData!B$15,CalculationsAndCharts!$A120+$A$11,0,1,1) -> 2013-12-11 | C120: =OFFSET(InputPriceData!G$15,CalculationsAndCharts!$A120+$A$11,IF($C$7,8,0),1,1) -> 38843400 | D120: =OFFSET(InputPriceData!C$15,CalculationsAndCharts!$A120+$A$11,IF($C$7,8,0),1,1) -> 25.31 | E120: =OFFSET(InputPriceData!D$15,CalculationsAndCharts!$A120+$A$11,IF($C$7,8,0),1,1) -> 27.06 | F120: =OFFSET(InputPriceData!E$15,CalculationsAndCharts!$A120+$A$11,IF($C$7,8,0),1,1) -> 25.24 | G120: =OFFSET(InputPriceData!F$15,CalculationsAndCharts!$A120+$A$11,IF($C$7,8,0),1,1) -> 25.86 | H120: 21.34 | I120: 27.06 | S120: 5.72
A121: 89 | B121: =OFFSET(InputPriceData!B$15,CalculationsAndCharts!$A121+$A$11,0,1,1) -> 2013-12-10 | C121: =OFFSET(InputPriceData!G$15,CalculationsAndCharts!$A121+$A$11,IF($C$7,8,0),1,1) -> 18660600 | D121: =OFFSET(InputPriceData!C$15,CalculationsAndCharts!$A121+$A$11,IF($C$7,8,0),1,1) -> 24.41 | E121: =OFFSET(InputPriceData!D$15,CalculationsAndCharts!$A121+$A$11,IF($C$7,8,0),1,1) -> 25.04 | F121: =OFFSET(InputPriceData!E$15,CalculationsAndCharts!$A121+$A$11,IF($C$7,8,0),1,1) -> 24.28 | G121: =OFFSET(InputPriceData!F$15,CalculationsAndCharts!$A121+$A$11,IF($C$7,8,0),1,1) -> 24.75 | H121: 21.34 | I121: 27.06 | S121: 5.72
A122: 90 | B122: =OFFSET(InputPriceData!B$15,CalculationsAndCharts!$A122+$A$11,0,1,1) -> 2013-12-09 | C122: =OFFSET(InputPriceData!G$15,CalculationsAndCharts!$A122+$A$11,IF($C$7,8,0),1,1) -> 43197300 | D122: =OFFSET(InputPriceData!C$15,CalculationsAndCharts!$A122+$A$11,IF($C$7,8,0),1,1) -> 23.83 | E122: =OFFSET(InputPriceData!D$15,CalculationsAndCharts!$A122+$A$11,IF($C$7,8,0),1,1) -> 25.32 | F122: =OFFSET(InputPriceData!E$15,CalculationsAndCharts!$A122+$A$11,IF($C$7,8,0),1,1) -> 23.34 | G122: =OFFSET(InputPriceData!F$15,CalculationsAndCharts!$A122+$A$11,IF($C$7,8,0),1,1) -> 24.48 | H122: 21.34 | I122: 27.06 | S122: 5.72
A123: 91 | B123: =OFFSET(InputPriceData!B$15,CalculationsAndCharts!$A123+$A$11,0,1,1) -> 2013-12-06 | C123: =OFFSET(InputPriceData!G$15,CalculationsAndCharts!$A123+$A$11,IF($C$7,8,0),1,1) -> 28364700 | D123: =OFFSET(InputPriceData!C$15,CalculationsAndCharts!$A123+$A$11,IF($C$7,8,0),1,1) -> 22.61 | E123: =OFFSET(InputPriceData!D$15,CalculationsAndCharts!$A123+$A$11,IF($C$7,8,0),1,1) -> 22.77 | F123: =OFFSET(InputPriceData!E$15,CalculationsAndCharts!$A123+$A$11,IF($C$7,8,0),1,1) -> 22.02 | G123: =OFFSET(InputPriceData!F$15,CalculationsAndCharts!$A123+$A$11,IF($C$7,8,0),1,1) -> 22.44 | H123: 21.34 | I123: 27.06 | S123: 5.72
A124: 92 | B124: =OFFSET(InputPriceData!B$15,CalculationsAndCharts!$A124+$A$11,0,1,1) -> 2013-12-05 | C124: =OFFSET(InputPriceData!G$15,CalculationsAndCharts!$A124+$A$11,IF($C$7,8,0),1,1) -> 30725800 | D124: =OFFSET(InputPriceData!C$15,CalculationsAndCharts!$A124+$A$11,IF($C$7,8,0),1,1) -> 22.16 | E124: =OFFSET(InputPriceData!D$15,CalculationsAndCharts!$A124+$A$11,IF($C$7,8,0),1,1) -> 22.51 | F124: =OFFSET(InputPriceData!E$15,CalculationsAndCharts!$A124+$A$11,IF($C$7,8,0),1,1) -> 21.34 | G124: =OFFSET(InputPriceData!F$15,CalculationsAndCharts!$A124+$A$11,IF($C$7,8,0),1,1) -> 22.24 | H124: 21.34 | I124: 27.06 | S124: 5.72
A125: 93 | B125: =OFFSET(InputPriceData!B$15,CalculationsAndCharts!$A125+$A$11,0,1,1) -> 2013-12-04 | C125: =OFFSET(InputPriceData!G$15,CalculationsAndCharts!$A125+$A$11,IF($C$7,8,0),1,1) -> 16670300 | D125: =OFFSET(InputPriceData!C$15,CalculationsAndCharts!$A125+$A$11,IF($C$7,8,0),1,1) -> 22.27 | E125: =OFFSET(InputPriceData!D$15,CalculationsAndCharts!$A125+$A$11,IF($C$7,8,0),1,1) -> 22.32 | F125: =OFFSET(InputPriceData!E$15,CalculationsAndCharts!$A125+$A$11,IF($C$7,8,0),1,1) -> 21.58 | G125: =OFFSET(InputPriceData!F$15,CalculationsAndCharts!$A125+$A$11,IF($C$7,8,0),1,1) -> 21.76 | H125: 21.34 | I125: 27.06 | O125: 22.27 | P125: 3 | S125: 5.72 | W125: FALSE | Z125: FALSE | AC125: TRUE | AD125: 93 | AE125: 22.27 | AF125: FALSE | AI125: FALSE
A126: 94 | B126: =OFFSET(InputPriceData!B$15,CalculationsAndCharts!$A126+$A$11,0,1,1) -> 2013-12-03 | C126: =OFFSET(InputPriceData!G$15,CalculationsAndCharts!$A126+$A$11,IF($C$7,8,0),1,1) -> 17623800 | D126: =OFFSET(InputPriceData!C$15,CalculationsAndCharts!$A126+$A$11,IF($C$7,8,0),1,1) -> 22.88 | E126: =OFFSET(InputPriceData!D$15,CalculationsAndCharts!$A126+$A$11,IF($C$7,8,0),1,1) -> 22.88 | F126: =OFFSET(InputPriceData!E$15,CalculationsAndCharts!$A126+$A$11,IF($C$7,8,0),1,1) -> 21.9 | G126: =OFFSET(InputPriceData!F$15,CalculationsAndCharts!$A126+$A$11,IF($C$7,8,0),1,1) -> 22.28 | N126: 25.64353431 | Q126: 19.38 | R126: 25.36 | U126: 5.98
A127: 95 | B127: =OFFSET(InputPriceData!B$15,CalculationsAndCharts!$A127+$A$11,0,1,1) -> 2013-12-02 | C127: =OFFSET(InputPriceData!G$15,CalculationsAndCharts!$A127+$A$11,IF($C$7,8,0),1,1) -> 9149800 | D127: =OFFSET(InputPriceData!C$15,CalculationsAndCharts!$A127+$A$11,IF($C$7,8,0),1,1) -> 23.43 | E127: =OFFSET(InputPriceData!D$15,CalculationsAndCharts!$A127+$A$11,IF($C$7,8,0),1,1) -> 23.5 | F127: =OFFSET(InputPriceData!E$15,CalculationsAndCharts!$A127+$A$11,IF($C$7,8,0),1,1) -> 22.89 | G127: =OFFSET(InputPriceData!F$15,CalculationsAndCharts!$A127+$A$11,IF($C$7,8,0),1,1) -> 22.92 | N127: 25.64353431 | Q127: 19.38 | R127: 25.36 | U127: 5.98
A128: 96 | B128: =OFFSET(InputPriceData!B$15,CalculationsAndCharts!$A128+$A$11,0,1,1) -> 2013-11-29 | C128: =OFFSET(InputPriceData!G$15,CalculationsAndCharts!$A128+$A$11,IF($C$7,8,0),1,1) -> 4922900 | D128: =OFFSET(InputPriceData!C$15,CalculationsAndCharts!$A128+$A$11,IF($C$7,8,0),1,1) -> 24 | E128: =OFFSET(InputPriceData!D$15,CalculationsAndCharts!$A128+$A$11,IF($C$7,8,0),1,1) -> 24.06 | F128: =OFFSET(InputPriceData!E$15,CalculationsAndCharts!$A128+$A$11,IF($C$7,8,0),1,1) -> 23.33 | G128: =OFFSET(InputPriceData!F$15,CalculationsAndCharts!$A128+$A$11,IF($C$7,8,0),1,1) -> 23.36 | N128: 25.64353431 | Q128: 19.38 | R128: 25.36 | U128: 5.98
A129: 97 | B129: =OFFSET(InputPriceData!B$15,CalculationsAndCharts!$A129+$A$11,0,1,1) -> 2013-11-27 | C129: =OFFSET(InputPriceData!G$15,CalculationsAndCharts!$A129+$A$11,IF($C$7,8,0),1,1) -> 14261600 | D129: =OFFSET(InputPriceData!C$15,CalculationsAndCharts!$A129+$A$11,IF($C$7,8,0),1,1) -> 23.8 | E129: =OFFSET(InputPriceData!D$15,CalculationsAndCharts!$A129+$A$11,IF($C$7,8,0),1,1) -> 24.06 | F129: =OFFSET(InputPriceData!E$15,CalculationsAndCharts!$A129+$A$11,IF($C$7,8,0),1,1) -> 23.51 | G129: =OFFSET(InputPriceData!F$15,CalculationsAndCharts!$A129+$A$11,IF($C$7,8,0),1,1) -> 23.86 | N129: 25.64353431 | Q129: 19.38 | R129: 25.36 | U129: 5.98
A130: 98 | B130: =OFFSET(InputPriceData!B$15,CalculationsAndCharts!$A130+$A$11,0,1,1) -> 2013-11-26 | C130: =OFFSET(InputPriceData!G$15,CalculationsAndCharts!$A130+$A$11,IF($C$7,8,0),1,1) -> 10785200 | D130: =OFFSET(InputPriceData!C$15,CalculationsAndCharts!$A130+$A$11,IF($C$7,8,0),1,1) -> 24.05 | E130: =OFFSET(InputPriceData!D$15,CalculationsAndCharts!$A130+$A$11,IF($C$7,8,0),1,1) -> 24.12 | F130: =OFFSET(InputPriceData!E$15,CalculationsAndCharts!$A130+$A$11,IF($C$7,8,0),1,1) -> 23.58 | G130: =OFFSET(InputPriceData!F$15,CalculationsAndCharts!$A130+$A$11,IF($C$7,8,0),1,1) -> 23.69 | N130: 25.64353431 | Q130: 19.38 | R130: 25.36 | U130: 5.98
A131: 99 | B131: =OFFSET(InputPriceData!B$15,CalculationsAndCharts!$A131+$A$11,0,1,1) -> 2013-11-25 | C131: =OFFSET(InputPriceData!G$15,CalculationsAndCharts!$A131+$A$11,IF($C$7,8,0),1,1) -> 9436600 | D131: =OFFSET(InputPriceData!C$15,CalculationsAndCharts!$A131+$A$11,IF($C$7,8,0),1,1) -> 24.33 | E131: =OFFSET(InputPriceData!D$15,CalculationsAndCharts!$A131+$A$11,IF($C$7,8,0),1,1) -> 24.41 | F131: =OFFSET(InputPriceData!E$15,CalculationsAndCharts!$A131+$A$11,IF($C$7,8,0),1,1) -> 23.88 | G131: =OFFSET(InputPriceData!F$15,CalculationsAndCharts!$A131+$A$11,IF($C$7,8,0),1,1) -> 24.12 | N131: 25.64353431 | Q131: 19.38 | R131: 25.36 | U131: 5.98
A132: 100 | B132: =OFFSET(InputPriceData!B$15,CalculationsAndCharts!$A132+$A$11,0,1,1) -> 2013-11-22 | C132: =OFFSET(InputPriceData!G$15,CalculationsAndCharts!$A132+$A$11,IF($C$7,8,0),1,1) -> 12430500 | D132: =OFFSET(InputPriceData!C$15,CalculationsAndCharts!$A132+$A$11,IF($C$7,8,0),1,1) -> 24.08 | E132: =OFFSET(InputPriceData!D$15,CalculationsAndCharts!$A132+$A$11,IF($C$7,8,0),1,1) -> 24.44 | F132: =OFFSET(InputPriceData!E$15,CalculationsAndCharts!$A132+$A$11,IF($C$7,8,0),1,1) -> 23.78 | G132: =OFFSET(InputPriceData!F$15,CalculationsAndCharts!$A132+$A$11,IF($C$7,8,0),1,1) -> 24.15 | N132: 25.64353431 | Q132: 19.38 | R132: 25.36 | U132: 5.98
A133: 101 | B133: =OFFSET(InputPriceData!B$15,CalculationsAndCharts!$A133+$A$11,0,1,1) -> 2013-11-21 | C133: =OFFSET(InputPriceData!G$15,CalculationsAndCharts!$A133+$A$11,IF($C$7,8,0),1,1) -> 9920500 | D133: =OFFSET(InputPriceData!C$15,CalculationsAndCharts!$A133+$A$11,IF($C$7,8,0),1,1) -> 23.95 | E133: =OFFSET(InputPriceData!D$15,CalculationsAndCharts!$A133+$A$11,IF($C$7,8,0),1,1) -> 24.12 | F133: =OFFSET(InputPriceData!E$15,CalculationsAndCharts!$A133+$A$11,IF($C$7,8,0),1,1) -> 23.66 | G133: =OFFSET(InputPriceData!F$15,CalculationsAndCharts!$A133+$A$11,IF($C$7,8,0),1,1) -> 23.87 | N133: 25.64353431 | Q133: 19.38 | R133: 25.36 | U133: 5.98
A134: 102 | B134: =OFFSET(InputPriceData!B$15,CalculationsAndCharts!$A134+$A$11,0,1,1) -> 2013-11-20 | C134: =OFFSET(InputPriceData!G$15,CalculationsAndCharts!$A134+$A$11,IF($C$7,8,0),1,1) -> 11182500 | D134: =OFFSET(InputPriceData!C$15,CalculationsAndCharts!$A134+$A$11,IF($C$7,8,0),1,1) -> 24.17 | E134: =OFFSET(InputPriceData!D$15,CalculationsAndCharts!$A134+$A$11,IF($C$7,8,0),1,1) -> 24.3 | F134: =OFFSET(InputPriceData!E$15,CalculationsAndCharts!$A134+$A$11,IF($C$7,8,0),1,1) -> 23.79 | G134: =OFFSET(InputPriceData!F$15,CalculationsAndCharts!$A134+$A$11,IF($C$7,8,0),1,1) -> 23.94 | N134: 25.64353431 | Q134: 19.38 | R134: 25.36 | U134: 5.98
A135: 103 | B135: =OFFSET(InputPriceData!B$15,CalculationsAndCharts!$A135+$A$11,0,1,1) -> 2013-11-19 | C135: =OFFSET(InputPriceData!G$15,CalculationsAndCharts!$A135+$A$11,IF($C$7,8,0),1,1) -> 14087400 | D135: =OFFSET(InputPriceData!C$15,CalculationsAndCharts!$A135+$A$11,IF($C$7,8,0),1,1) -> 24.43 | E135: =OFFSET(InputPriceData!D$15,CalculationsAndCharts!$A135+$A$11,IF($C$7,8,0),1,1) -> 24.68 | F135: =OFFSET(InputPriceData!E$15,CalculationsAndCharts!$A135+$A$11,IF($C$7,8,0),1,1) -> 23.96 | G135: =OFFSET(InputPriceData!F$15,CalculationsAndCharts!$A135+$A$11,IF($C$7,8,0),1,1) -> 24.11 | N135: 25.64353431 | Q135: 19.38 | R135: 25.36 | U135: 5.98
A136: 104 | B136: =OFFSET(InputPriceData!B$15,CalculationsAndCharts!$A136+$A$11,0,1,1) -> 2013-11-18 | C136: =OFFSET(InputPriceData!G$15,CalculationsAndCharts!$A136+$A$11,IF($C$7,8,0),1,1) -> 10080800 | D136: =OFFSET(InputPriceData!C$15,CalculationsAndCharts!$A136+$A$11,IF($C$7,8,0),1,1) -> 24.1 | E136: =OFFSET(InputPriceData!D$15,CalculationsAndCharts!$A136+$A$11,IF($C$7,8,0),1,1) -> 24.69 | F136: =OFFSET(InputPriceData!E$15,CalculationsAndCharts!$A136+$A$11,IF($C$7,8,0),1,1) -> 23.92 | G136: =OFFSET(InputPriceData!F$15,CalculationsAndCharts!$A136+$A$11,IF($C$7,8,0),1,1) -> 24.28 | N136: 25.64353431 | Q136: 19.38 | R136: 25.36 | U136: 5.98
A137: 105 | B137: =OFFSET(InputPriceData!B$15,CalculationsAndCharts!$A137+$A$11,0,1,1) -> 2013-11-15 | C137: =OFFSET(InputPriceData!G$15,CalculationsAndCharts!$A137+$A$11,IF($C$7,8,0),1,1) -> 13660700 | D137: =OFFSET(InputPriceData!C$15,CalculationsAndCharts!$A137+$A$11,IF($C$7,8,0),1,1) -> 23.61 | E137: =OFFSET(InputPriceData!D$15,CalculationsAndCharts!$A137+$A$11,IF($C$7,8,0),1,1) -> 23.93 | F137: =OFFSET(InputPriceData!E$15,CalculationsAndCharts!$A137+$A$11,IF($C$7,8,0),1,1) -> 23.2 | G137: =OFFSET(InputPriceData!F$15,CalculationsAndCharts!$A137+$A$11,IF($C$7,8,0),1,1) -> 23.77 | N137: 25.64353431 | Q137: 19.38 | R137: 25.36 | U137: 5.98
A138: 106 | B138: =OFFSET(InputPriceData!B$15,CalculationsAndCharts!$A138+$A$11,0,1,1) -> 2013-11-14 | C138: =OFFSET(InputPriceData!G$15,CalculationsAndCharts!$A138+$A$11,IF($C$7,8,0),1,1) -> 12641900 | D138: =OFFSET(InputPriceData!C$15,CalculationsAndCharts!$A138+$A$11,IF($C$7,8,0),1,1) -> 23.67 | E138: =OFFSET(InputPriceData!D$15,CalculationsAndCharts!$A138+$A$11,IF($C$7,8,0),1,1) -> 23.68 | F138: =OFFSET(InputPriceData!E$15,CalculationsAndCharts!$A138+$A$11,IF($C$7,8,0),1,1) -> 23.26 | G138: =OFFSET(InputPriceData!F$15,CalculationsAndCharts!$A138+$A$11,IF($C$7,8,0),1,1) -> 23.54 | N138: 25.64353431 | Q138: 19.38 | R138: 25.36 | U138: 5.98
A139: 107 | B139: =OFFSET(InputPriceData!B$15,CalculationsAndCharts!$A139+$A$11,0,1,1) -> 2013-11-13 | C139: =OFFSET(InputPriceData!G$15,CalculationsAndCharts!$A139+$A$11,IF($C$7,8,0),1,1) -> 20087200 | D139: =OFFSET(InputPriceData!C$15,CalculationsAndCharts!$A139+$A$11,IF($C$7,8,0),1,1) -> 24.1 | E139: =OFFSET(InputPriceData!D$15,CalculationsAndCharts!$A139+$A$11,IF($C$7,8,0),1,1) -> 24.17 | F139: =OFFSET(InputPriceData!E$15,CalculationsAndCharts!$A139+$A$11,IF($C$7,8,0),1,1) -> 23.01 | G139: =OFFSET(InputPriceData!F$15,CalculationsAndCharts!$A139+$A$11,IF($C$7,8,0),1,1) -> 23.19 | N139: 25.64353431 | Q139: 19.38 | R139: 25.36 | U139: 5.98
A140: 108 | B140: =OFFSET(InputPriceData!B$15,CalculationsAndCharts!$A140+$A$11,0,1,1) -> 2013-11-12 | C140: =OFFSET(InputPriceData!G$15,CalculationsAndCharts!$A140+$A$11,IF($C$7,8,0),1,1) -> 40091800 | D140: =OFFSET(InputPriceData!C$15,CalculationsAndCharts!$A140+$A$11,IF($C$7,8,0),1,1) -> 23.14 | E140: =OFFSET(InputPriceData!D$15,CalculationsAndCharts!$A140+$A$11,IF($C$7,8,0),1,1) -> 25.36 | F140: =OFFSET(InputPriceData!E$15,CalculationsAndCharts!$A140+$A$11,IF($C$7,8,0),1,1) -> 22.39 | G140: =OFFSET(InputPriceData!F$15,CalculationsAndCharts!$A140+$A$11,IF($C$7,8,0),1,1) -> 23.4 | N140: 25.64353431 | Q140: 19.38 | R140: 25.36 | U140: 5.98
A141: 109 | B141: =OFFSET(InputPriceData!B$15,CalculationsAndCharts!$A141+$A$11,0,1,1) -> 2013-11-11 | C141: =OFFSET(InputPriceData!G$15,CalculationsAndCharts!$A141+$A$11,IF($C$7,8,0),1,1) -> 3508100 | D141: =OFFSET(InputPriceData!C$15,CalculationsAndCharts!$A141+$A$11,IF($C$7,8,0),1,1) -> 23.13 | E141: =OFFSET(InputPriceData!D$15,CalculationsAndCharts!$A141+$A$11,IF($C$7,8,0),1,1) -> 23.33 | F141: =OFFSET(InputPriceData!E$15,CalculationsAndCharts!$A141+$A$11,IF($C$7,8,0),1,1) -> 22.94 | G141: =OFFSET(InputPriceData!F$15,CalculationsAndCharts!$A141+$A$11,IF($C$7,8,0),1,1) -> 23.15 | N141: 25.64353431 | Q141: 19.38 | R141: 23.78 | U141: 4.4
A142: 110 | B142: =OFFSET(InputPriceData!B$15,CalculationsAndCharts!$A142+$A$11,0,1,1) -> 2013-11-08 | C142: =OFFSET(InputPriceData!G$15,CalculationsAndCharts!$A142+$A$11,IF($C$7,8,0),1,1) -> 8462000 | D142: =OFFSET(InputPriceData!C$15,CalculationsAndCharts!$A142+$A$11,IF($C$7,8,0),1,1) -> 22.05 | E142: =OFFSET(InputPriceData!D$15,CalculationsAndCharts!$A142+$A$11,IF($C$7,8,0),1,1) -> 23.11 | F142: =OFFSET(InputPriceData!E$15,CalculationsAndCharts!$A142+$A$11,IF($C$7,8,0),1,1) -> 22.01 | G142: =OFFSET(InputPriceData!F$15,CalculationsAndCharts!$A142+$A$11,IF($C$7,8,0),1,1) -> 23.09 | N142: 25.64353431 | Q142: 19.38 | R142: 23.78 | U142: 4.4
A143: 111 | B143: =OFFSET(InputPriceData!B$15,CalculationsAndCharts!$A143+$A$11,0,1,1) -> 2013-11-07 | C143: =OFFSET(InputPriceData!G$15,CalculationsAndCharts!$A143+$A$11,IF($C$7,8,0),1,1) -> 6393200 | D143: =OFFSET(InputPriceData!C$15,CalculationsAndCharts!$A143+$A$11,IF($C$7,8,0),1,1) -> 22.42 | E143: =OFFSET(InputPriceData!D$15,CalculationsAndCharts!$A143+$A$11,IF($C$7,8,0),1,1) -> 22.68 | F143: =OFFSET(InputPriceData!E$15,CalculationsAndCharts!$A143+$A$11,IF($C$7,8,0),1,1) -> 21.84 | G143: =OFFSET(InputPriceData!F$15,CalculationsAndCharts!$A143+$A$11,IF($C$7,8,0),1,1) -> 21.97 | N143: 25.64353431 | Q143: 19.38 | R143: 23.78 | U143: 4.4
A144: 112 | B144: =OFFSET(InputPriceData!B$15,CalculationsAndCharts!$A144+$A$11,0,1,1) -> 2013-11-06 | C144: =OFFSET(InputPriceData!G$15,CalculationsAndCharts!$A144+$A$11,IF($C$7,8,0),1,1) -> 8827100 | D144: =OFFSET(InputPriceData!C$15,CalculationsAndCharts!$A144+$A$11,IF($C$7,8,0),1,1) -> 23.15 | E144: =OFFSET(InputPriceData!D$15,CalculationsAndCharts!$A144+$A$11,IF($C$7,8,0),1,1) -> 23.15 | F144: =OFFSET(InputPriceData!E$15,CalculationsAndCharts!$A144+$A$11,IF($C$7,8,0),1,1) -> 21.79 | G144: =OFFSET(InputPriceData!F$15,CalculationsAndCharts!$A144+$A$11,IF($C$7,8,0),1,1) -> 22.29 | N144: 25.64353431 | Q144: 19.38 | R144: 23.78 | U144: 4.4
A145: 113 | B145: =OFFSET(InputPriceData!B$15,CalculationsAndCharts!$A145+$A$11,0,1,1) -> 2013-11-05 | C145: =OFFSET(InputPriceData!G$15,CalculationsAndCharts!$A145+$A$11,IF($C$7,8,0),1,1) -> 7127300 | D145: =OFFSET(InputPriceData!C$15,CalculationsAndCharts!$A145+$A$11,IF($C$7,8,0),1,1) -> 22.64 | E145: =OFFSET(InputPriceData!D$15,CalculationsAndCharts!$A145+$A$11,IF($C$7,8,0),1,1) -> 22.77 | F145: =OFFSET(InputPriceData!E$15,CalculationsAndCharts!$A145+$A$11,IF($C$7,8,0),1,1) -> 22.22 | G145: =OFFSET(InputPriceData!F$15,CalculationsAndCharts!$A145+$A$11,IF($C$7,8,0),1,1) -> 22.57 | N145: 25.64353431 | Q145: 19.38 | R145: 23.78 | U145: 4.4
A146: 114 | B146: =OFFSET(InputPriceData!B$15,CalculationsAndCharts!$A146+$A$11,0,1,1) -> 2013-11-04 | C146: =OFFSET(InputPriceData!G$15,CalculationsAndCharts!$A146+$A$11,IF($C$7,8,0),1,1) -> 19962000 | D146: =OFFSET(InputPriceData!C$15,CalculationsAndCharts!$A146+$A$11,IF($C$7,8,0),1,1) -> 22.49 | E146: =OFFSET(InputPriceData!D$15,CalculationsAndCharts!$A146+$A$11,IF($C$7,8,0),1,1) -> 23.78 | F146: =OFFSET(InputPriceData!E$15,CalculationsAndCharts!$A146+$A$11,IF($C$7,8,0),1,1) -> 22.46 | G146: =OFFSET(InputPriceData!F$15,CalculationsAndCharts!$A146+$A$11,IF($C$7,8,0),1,1) -> 22.6 | N146: 25.64353431 | Q146: 19.38 | R146: 23.78 | U146: 4.4
A147: 115 | B147: =OFFSET(InputPriceData!B$15,CalculationsAndCharts!$A147+$A$11,0,1,1) -> 2013-11-01 | C147: =OFFSET(InputPriceData!G$15,CalculationsAndCharts!$A147+$A$11,IF($C$7,8,0),1,1) -> 7190700 | D147: =OFFSET(InputPriceData!C$15,CalculationsAndCharts!$A147+$A$11,IF($C$7,8,0),1,1) -> 21.93 | E147: =OFFSET(InputPriceData!D$15,CalculationsAndCharts!$A147+$A$11,IF($C$7,8,0),1,1) -> 22.36 | F147: =OFFSET(InputPriceData!E$15,CalculationsAndCharts!$A147+$A$11,IF($C$7,8,0),1,1) -> 21.49 | G147: =OFFSET(InputPriceData!F$15,CalculationsAndCharts!$A147+$A$11,IF($C$7,8,0),1,1) -> 22.33 | N147: 25.64353431 | Q147: 19.38 | R147: 23.05 | U147: 3.67
A148: 116 | B148: =OFFSET(InputPriceData!B$15,CalculationsAndCharts!$A148+$A$11,0,1,1) -> 2013-10-31 | C148: =OFFSET(InputPriceData!G$15,CalculationsAndCharts!$A148+$A$11,IF($C$7,8,0),1,1) -> 6029300 | D148: =OFFSET(InputPriceData!C$15,CalculationsAndCharts!$A148+$A$11,IF($C$7,8,0),1,1) -> 22.49 | E148: =OFFSET(InputPriceData!D$15,CalculationsAndCharts!$A148+$A$11,IF($C$7,8,0),1,1) -> 22.75 | F148: =OFFSET(InputPriceData!E$15,CalculationsAndCharts!$A148+$A$11,IF($C$7,8,0),1,1) -> 21.86 | G148: =OFFSET(InputPriceData!F$15,CalculationsAndCharts!$A148+$A$11,IF($C$7,8,0),1,1) -> 21.86 | N148: 25.64353431 | Q148: 19.38 | R148: 23.05 | U148: 3.67
A149: 117 | B149: =OFFSET(InputPriceData!B$15,CalculationsAndCharts!$A149+$A$11,0,1,1) -> 2013-10-30 | C149: =OFFSET(InputPriceData!G$15,CalculationsAndCharts!$A149+$A$11,IF($C$7,8,0),1,1) -> 13157000 | D149: =OFFSET(InputPriceData!C$15,CalculationsAndCharts!$A149+$A$11,IF($C$7,8,0),1,1) -> 22.27 | E149: =OFFSET(InputPriceData!D$15,CalculationsAndCharts!$A149+$A$11,IF($C$7,8,0),1,1) -> 22.88 | F149: =OFFSET(InputPriceData!E$15,CalculationsAndCharts!$A149+$A$11,IF($C$7,8,0),1,1) -> 21.71 | G149: =OFFSET(InputPriceData!F$15,CalculationsAndCharts!$A149+$A$11,IF($C$7,8,0),1,1) -> 22.47 | N149: 25.64353431 | Q149: 19.38 | R149: 23.05 | U149: 3.67
A150: 118 | B150: =OFFSET(InputPriceData!B$15,CalculationsAndCharts!$A150+$A$11,0,1,1) -> 2013-10-29 | C150: =OFFSET(InputPriceData!G$15,CalculationsAndCharts!$A150+$A$11,IF($C$7,8,0),1,1) -> 5769000 | D150: =OFFSET(InputPriceData!C$15,CalculationsAndCharts!$A150+$A$11,IF($C$7,8,0),1,1) -> 22.65 | E150: =OFFSET(InputPriceData!D$15,CalculationsAndCharts!$A150+$A$11,IF($C$7,8,0),1,1) -> 22.68 | F150: =OFFSET(InputPriceData!E$15,CalculationsAndCharts!$A150+$A$11,IF($C$7,8,0),1,1) -> 21.96 | G150: =OFFSET(InputPriceData!F$15,CalculationsAndCharts!$A150+$A$11,IF($C$7,8,0),1,1) -> 22.26 | N150: 25.64353431 | Q150: 19.38 | R150: 23.05 | U150: 3.67
A151: 119 | B151: =OFFSET(InputPriceData!B$15,CalculationsAndCharts!$A151+$A$11,0,1,1) -> 2013-10-28 | C151: =OFFSET(InputPriceData!G$15,CalculationsAndCharts!$A151+$A$11,IF($C$7,8,0),1,1) -> 4642800 | D151: =OFFSET(InputPriceData!C$15,CalculationsAndCharts!$A151+$A$11,IF($C$7,8,0),1,1) -> 22.13 | E151: =OFFSET(InputPriceData!D$15,CalculationsAndCharts!$A151+$A$11,IF($C$7,8,0),1,1) -> 22.52 | F151: =OFFSET(InputPriceData!E$15,CalculationsAndCharts!$A151+$A$11,IF($C$7,8,0),1,1) -> 21.77 | G151: =OFFSET(InputPriceData!F$15,CalculationsAndCharts!$A151+$A$11,IF($C$7,8,0),1,1) -> 21.9 | N151: 25.64353431 | Q151: 19.38 | R151: 23.05 | U151: 3.67
A152: 120 | B152: =OFFSET(InputPriceData!B$15,CalculationsAndCharts!$A152+$A$11,0,1,1) -> 2013-10-25 | C152: =OFFSET(InputPriceData!G$15,CalculationsAndCharts!$A152+$A$11,IF($C$7,8,0),1,1) -> 9907100 | D152: =OFFSET(InputPriceData!C$15,CalculationsAndCharts!$A152+$A$11,IF($C$7,8,0),1,1) -> 22.65 | E152: =OFFSET(InputPriceData!D$15,CalculationsAndCharts!$A152+$A$11,IF($C$7,8,0),1,1) -> 22.97 | F152: =OFFSET(InputPriceData!E$15,CalculationsAndCharts!$A152+$A$11,IF($C$7,8,0),1,1) -> 21.54 | G152: =OFFSET(InputPriceData!F$15,CalculationsAndCharts!$A152+$A$11,IF($C$7,8,0),1,1) -> 22.04 | N152: 25.64353431 | Q152: 19.38 | R152: 23.05 | U152: 3.67
A153: 121 | B153: =OFFSET(InputPriceData!B$15,CalculationsAndCharts!$A153+$A$11,0,1,1) -> 2013-10-24 | C153: =OFFSET(InputPriceData!G$15,CalculationsAndCharts!$A153+$A$11,IF($C$7,8,0),1,1) -> 9779400 | D153: =OFFSET(InputPriceData!C$15,CalculationsAndCharts!$A153+$A$11,IF($C$7,8,0),1,1) -> 21.97 | E153: =OFFSET(InputPriceData!D$15,CalculationsAndCharts!$A153+$A$11,IF($C$7,8,0),1,1) -> 23.05 | F153: =OFFSET(InputPriceData!E$15,CalculationsAndCharts!$A153+$A$11,IF($C$7,8,0),1,1) -> 21.71 | G153: =OFFSET(InputPriceData!F$15,CalculationsAndCharts!$A153+$A$11,IF($C$7,8,0),1,1) -> 22.56 | N153: 25.64353431 | Q153: 19.38 | R153: 23.05 | U153: 3.67
A154: 122 | B154: =OFFSET(InputPriceData!B$15,CalculationsAndCharts!$A154+$A$11,0,1,1) -> 2013-10-23 | C154: =OFFSET(InputPriceData!G$15,CalculationsAndCharts!$A154+$A$11,IF($C$7,8,0),1,1) -> 5540000 | D154: =OFFSET(InputPriceData!C$15,CalculationsAndCharts!$A154+$A$11,IF($C$7,8,0),1,1) -> 21.71 | E154: =OFFSET(InputPriceData!D$15,CalculationsAndCharts!$A154+$A$11,IF($C$7,8,0),1,1) -> 21.98 | F154: =OFFSET(InputPriceData!E$15,CalculationsAndCharts!$A154+$A$11,IF($C$7,8,0),1,1) -> 21.2 | G154: =OFFSET(InputPriceData!F$15,CalculationsAndCharts!$A154+$A$11,IF($C$7,8,0),1,1) -> 21.29 | N154: 25.64353431 | Q154: 19.38 | R154: 21.98 | U154: 2.6
A155: 123 | B155: =OFFSET(InputPriceData!B$15,CalculationsAndCharts!$A155+$A$11,0,1,1) -> 2013-10-22 | C155: =OFFSET(InputPriceData!G$15,CalculationsAndCharts!$A155+$A$11,IF($C$7,8,0),1,1) -> 5208400 | D155: =OFFSET(InputPriceData!C$15,CalculationsAndCharts!$A155+$A$11,IF($C$7,8,0),1,1) -> 21.42 | E155: =OFFSET(InputPriceData!D$15,CalculationsAndCharts!$A155+$A$11,IF($C$7,8,0),1,1) -> 21.88 | F155: =OFFSET(InputPriceData!E$15,CalculationsAndCharts!$A155+$A$11,IF($C$7,8,0),1,1) -> 21.23 | G155: =OFFSET(InputPriceData!F$15,CalculationsAndCharts!$A155+$A$11,IF($C$7,8,0),1,1) -> 21.84 | N155: 25.64353431 | Q155: 19.38 | R155: 21.88 | U155: 2.5
A156: 124 | B156: =OFFSET(InputPriceData!B$15,CalculationsAndCharts!$A156+$A$11,0,1,1) -> 2013-10-21 | C156: =OFFSET(InputPriceData!G$15,CalculationsAndCharts!$A156+$A$11,IF($C$7,8,0),1,1) -> 2104100 | D156: =OFFSET(InputPriceData!C$15,CalculationsAndCharts!$A156+$A$11,IF($C$7,8,0),1,1) -> 21.12 | E156: =OFFSET(InputPriceData!D$15,CalculationsAndCharts!$A156+$A$11,IF($C$7,8,0),1,1) -> 21.23 | F156: =OFFSET(InputPriceData!E$15,CalculationsAndCharts!$A156+$A$11,IF($C$7,8,0),1,1) -> 20.96 | G156: =OFFSET(InputPriceData!F$15,CalculationsAndCharts!$A156+$A$11,IF($C$7,8,0),1,1) -> 21.11 | N156: 25.64353431 | Q156: 19.38 | R156: 21.24 | U156: 1.86
A157: 125 | B157: =OFFSET(InputPriceData!B$15,CalculationsAndCharts!$A157+$A$11,0,1,1) -> 2013-10-18 | C157: =OFFSET(InputPriceData!G$15,CalculationsAndCharts!$A157+$A$11,IF($C$7,8,0),1,1) -> 3676600 | D157: =OFFSET(InputPriceData!C$15,CalculationsAndCharts!$A157+$A$11,IF($C$7,8,0),1,1) -> 21.12 | E157: =OFFSET(InputPriceData!D$15,CalculationsAndCharts!$A157+$A$11,IF($C$7,8,0),1,1) -> 21.24 | F157: =OFFSET(InputPriceData!E$15,CalculationsAndCharts!$A157+$A$11,IF($C$7,8,0),1,1) -> 20.71 | G157: =OFFSET(InputPriceData!F$15,CalculationsAndCharts!$A157+$A$11,IF($C$7,8,0),1,1) -> 21.03 | N157: 25.64353431 | Q157: 19.38 | R157: 21.24 | U157: 1.86
A158: 126 | B158: =OFFSET(InputPriceData!B$15,CalculationsAndCharts!$A158+$A$11,0,1,1) -> 2013-10-17 | C158: =OFFSET(InputPriceData!G$15,CalculationsAndCharts!$A158+$A$11,IF($C$7,8,0),1,1) -> 4487000 | D158: =OFFSET(InputPriceData!C$15,CalculationsAndCharts!$A158+$A$11,IF($C$7,8,0),1,1) -> 20.61 | E158: =OFFSET(InputPriceData!D$15,CalculationsAndCharts!$A158+$A$11,IF($C$7,8,0),1,1) -> 20.95 | F158: =OFFSET(InputPriceData!E$15,CalculationsAndCharts!$A158+$A$11,IF($C$7,8,0),1,1) -> 20.53 | G158: =OFFSET(InputPriceData!F$15,CalculationsAndCharts!$A158+$A$11,IF($C$7,8,0),1,1) -> 20.89 | N158: 25.64353431 | Q158: 19.38 | R158: 20.95 | U158: 1.57
A159: 127 | B159: =OFFSET(InputPriceData!B$15,CalculationsAndCharts!$A159+$A$11,0,1,1) -> 2013-10-16 | C159: =OFFSET(InputPriceData!G$15,CalculationsAndCharts!$A159+$A$11,IF($C$7,8,0),1,1) -> 3478800 | D159: =OFFSET(InputPriceData!C$15,CalculationsAndCharts!$A159+$A$11,IF($C$7,8,0),1,1) -> 20.47 | E159: =OFFSET(InputPriceData!D$15,CalculationsAndCharts!$A159+$A$11,IF($C$7,8,0),1,1) -> 20.63 | F159: =OFFSET(InputPriceData!E$15,CalculationsAndCharts!$A159+$A$11,IF($C$7,8,0),1,1) -> 20.35 | G159: =OFFSET(InputPriceData!F$15,CalculationsAndCharts!$A159+$A$11,IF($C$7,8,0),1,1) -> 20.52 | N159: 25.64353431 | Q159: 19.38 | R159: 20.73 | U159: 1.35
A160: 128 | B160: =OFFSET(InputPriceData!B$15,CalculationsAndCharts!$A160+$A$11,0,1,1) -> 2013-10-15 | C160: =OFFSET(InputPriceData!G$15,CalculationsAndCharts!$A160+$A$11,IF($C$7,8,0),1,1) -> 3089000 | D160: =OFFSET(InputPriceData!C$15,CalculationsAndCharts!$A160+$A$11,IF($C$7,8,0),1,1) -> 20.54 | E160: =OFFSET(InputPriceData!D$15,CalculationsAndCharts!$A160+$A$11,IF($C$7,8,0),1,1) -> 20.73 | F160: =OFFSET(InputPriceData!E$15,CalculationsAndCharts!$A160+$A$11,IF($C$7,8,0),1,1) -> 20.22 | G160: =OFFSET(InputPriceData!F$15,CalculationsAndCharts!$A160+$A$11,IF($C$7,8,0),1,1) -> 20.4 | N160: 25.64353431 | Q160: 19.38 | R160: 20.73 | U160: 1.35
A161: 129 | B161: =OFFSET(InputPriceData!B$15,CalculationsAndCharts!$A161+$A$11,0,1,1) -> 2013-10-14 | C161: =OFFSET(InputPriceData!G$15,CalculationsAndCharts!$A161+$A$11,IF($C$7,8,0),1,1) -> 3066400 | D161: =OFFSET(InputPriceData!C$15,CalculationsAndCharts!$A161+$A$11,IF($C$7,8,0),1,1) -> 20.42 | E161: =OFFSET(InputPriceData!D$15,CalculationsAndCharts!$A161+$A$11,IF($C$7,8,0),1,1) -> 20.57 | F161: =OFFSET(InputPriceData!E$15,CalculationsAndCharts!$A161+$A$11,IF($C$7,8,0),1,1) -> 20.16 | G161: =OFFSET(InputPriceData!F$15,CalculationsAndCharts!$A161+$A$11,IF($C$7,8,0),1,1) -> 20.48 | N161: 25.64353431 | Q161: 19.38 | R161: 20.67 | U161: 1.29 | V161: =IF($A161=$E$25,V$32,NA()) ->  | X161: =IF(W161,$A161,NA()) ->  | AA161: =IF(Z161,$A161,NA()) ->  | AD161: =IF(AC161,$A161,NA()) ->  | AG161: =IF(AF161,$A161,NA()) ->  | AJ161: =IF(AI161,$A161,NA()) -> 
A162: 130 | B162: =OFFSET(InputPriceData!B$15,CalculationsAndCharts!$A162+$A$11,0,1,1) -> 2013-10-11 | C162: =OFFSET(InputPriceData!G$15,CalculationsAndCharts!$A162+$A$11,IF($C$7,8,0),1,1) -> 3503300 | D162: =OFFSET(InputPriceData!C$15,CalculationsAndCharts!$A162+$A$11,IF($C$7,8,0),1,1) -> 20.4 | E162: =OFFSET(InputPriceData!D$15,CalculationsAndCharts!$A162+$A$11,IF($C$7,8,0),1,1) -> 20.63 | F162: =OFFSET(InputPriceData!E$15,CalculationsAndCharts!$A162+$A$11,IF($C$7,8,0),1,1) -> 20.32 | G162: =OFFSET(InputPriceData!F$15,CalculationsAndCharts!$A162+$A$11,IF($C$7,8,0),1,1) -> 20.62 | N162: 25.64353431 | Q162: 19.38 | R162: 20.67 | U162: 1.29 | W162: =$P162=W$30 ->  | Y162: =IF(W162,$O162,NA()) ->  | Z162: =$P162=Z$30 ->  | AB162: =IF(Z162,$O162,NA()) ->  | AC162: =$P162=AC$30 ->  | AE162: =IF(AC162,$O162,NA()) ->  | AF162: =$P162=AF$30 ->  | AH162: =IF(AF162,$O162,NA()) ->  | AI162: =$P162=AI$30 ->  | AK162: =IF(AI162,$O162,NA()) -> 
A163: 131 | B163: =OFFSET(InputPriceData!B$15,CalculationsAndCharts!$A163+$A$11,0,1,1) -> 2013-10-10 | C163: =OFFSET(InputPriceData!G$15,CalculationsAndCharts!$A163+$A$11,IF($C$7,8,0),1,1) -> 3372000 | D163: =OFFSET(InputPriceData!C$15,CalculationsAndCharts!$A163+$A$11,IF($C$7,8,0),1,1) -> 20.25 | E163: =OFFSET(InputPriceData!D$15,CalculationsAndCharts!$A163+$A$11,IF($C$7,8,0),1,1) -> 20.55 | F163: =OFFSET(InputPriceData!E$15,CalculationsAndCharts!$A163+$A$11,IF($C$7,8,0),1,1) -> 20.17 | G163: =OFFSET(InputPriceData!F$15,CalculationsAndCharts!$A163+$A$11,IF($C$7,8,0),1,1) -> 20.4 | N163: 25.64353431 | Q163: 19.38 | R163: 20.67 | U163: 1.29
A164: 132 | B164: =OFFSET(InputPriceData!B$15,CalculationsAndCharts!$A164+$A$11,0,1,1) -> 2013-10-09 | C164: =OFFSET(InputPriceData!G$15,CalculationsAndCharts!$A164+$A$11,IF($C$7,8,0),1,1) -> 3358000 | D164: =OFFSET(InputPriceData!C$15,CalculationsAndCharts!$A164+$A$11,IF($C$7,8,0),1,1) -> 19.98 | E164: =OFFSET(InputPriceData!D$15,CalculationsAndCharts!$A164+$A$11,IF($C$7,8,0),1,1) -> 20.17 | F164: =OFFSET(InputPriceData!E$15,CalculationsAndCharts!$A164+$A$11,IF($C$7,8,0),1,1) -> 19.67 | G164: =OFFSET(InputPriceData!F$15,CalculationsAndCharts!$A164+$A$11,IF($C$7,8,0),1,1) -> 19.96 | N164: 25.64353431 | Q164: 19.38 | R164: 20.67 | U164: 1.29
A165: 133 | B165: =OFFSET(InputPriceData!B$15,CalculationsAndCharts!$A165+$A$11,0,1,1) -> 2013-10-08 | C165: =OFFSET(InputPriceData!G$15,CalculationsAndCharts!$A165+$A$11,IF($C$7,8,0),1,1) -> 4188900 | D165: =OFFSET(InputPriceData!C$15,CalculationsAndCharts!$A165+$A$11,IF($C$7,8,0),1,1) -> 20.22 | E165: =OFFSET(InputPriceData!D$15,CalculationsAndCharts!$A165+$A$11,IF($C$7,8,0),1,1) -> 20.33 | F165: =OFFSET(InputPriceData!E$15,CalculationsAndCharts!$A165+$A$11,IF($C$7,8,0),1,1) -> 19.82 | G165: =OFFSET(InputPriceData!F$15,CalculationsAndCharts!$A165+$A$11,IF($C$7,8,0),1,1) -> 19.92 | N165: 25.64353431 | Q165: 19.38 | R165: 20.67 | U165: =R165-Q165 -> 1.29
A166: 134 | B166: =OFFSET(InputPriceData!B$15,CalculationsAndCharts!$A166+$A$11,0,1,1) -> 2013-10-07 | C166: =OFFSET(InputPriceData!G$15,CalculationsAndCharts!$A166+$A$11,IF($C$7,8,0),1,1) -> 3837200 | D166: =OFFSET(InputPriceData!C$15,CalculationsAndCharts!$A166+$A$11,IF($C$7,8,0),1,1) -> 20.31 | E166: =OFFSET(InputPriceData!D$15,CalculationsAndCharts!$A166+$A$11,IF($C$7,8,0),1,1) -> 20.67 | F166: =OFFSET(InputPriceData!E$15,CalculationsAndCharts!$A166+$A$11,IF($C$7,8,0),1,1) -> 20.2 | G166: =OFFSET(InputPriceData!F$15,CalculationsAndCharts!$A166+$A$11,IF($C$7,8,0),1,1) -> 20.29 | N166: 25.64353431 | Q166: 19.38 | R166: 20.67 | U166: 1.29
A167: 135 | B167: =OFFSET(InputPriceData!B$15,CalculationsAndCharts!$A167+$A$11,0,1,1) -> 2013-10-04 | C167: =OFFSET(InputPriceData!G$15,CalculationsAndCharts!$A167+$A$11,IF($C$7,8,0),1,1) -> 6492900 | D167: =OFFSET(InputPriceData!C$15,CalculationsAndCharts!$A167+$A$11,IF($C$7,8,0),1,1) -> 20.21 | E167: =OFFSET(InputPriceData!D$15,CalculationsAndCharts!$A167+$A$11,IF($C$7,8,0),1,1) -> 20.65 | F167: =OFFSET(InputPriceData!E$15,CalculationsAndCharts!$A167+$A$11,IF($C$7,8,0),1,1) -> 20.21 | G167: =OFFSET(InputPriceData!F$15,CalculationsAndCharts!$A167+$A$11,IF($C$7,8,0),1,1) -> 20.43 | N167: 25.64353431 | Q167: 19.38 | R167: 20.65 | U167: 1.27
A168: 136 | B168: =OFFSET(InputPriceData!B$15,CalculationsAndCharts!$A168+$A$11,0,1,1) -> 2013-10-03 | C168: =OFFSET(InputPriceData!G$15,CalculationsAndCharts!$A168+$A$11,IF($C$7,8,0),1,1) -> 7886500 | D168: =OFFSET(InputPriceData!C$15,CalculationsAndCharts!$A168+$A$11,IF($C$7,8,0),1,1) -> 19.9 | E168: =OFFSET(InputPriceData!D$15,CalculationsAndCharts!$A168+$A$11,IF($C$7,8,0),1,1) -> 20.4 | F168: =OFFSET(InputPriceData!E$15,CalculationsAndCharts!$A168+$A$11,IF($C$7,8,0),1,1) -> 19.57 | G168: =OFFSET(InputPriceData!F$15,CalculationsAndCharts!$A168+$A$11,IF($C$7,8,0),1,1) -> 20.38 | N168: 25.64353431 | Q168: 19.38 | R168: 20.4 | U168: 1.02
A169: 137 | B169: =OFFSET(InputPriceData!B$15,CalculationsAndCharts!$A169+$A$11,0,1,1) -> 2013-10-02 | C169: =OFFSET(InputPriceData!G$15,CalculationsAndCharts!$A169+$A$11,IF($C$7,8,0),1,1) -> 5555100 | D169: =OFFSET(InputPriceData!C$15,CalculationsAndCharts!$A169+$A$11,IF($C$7,8,0),1,1) -> 19.9 | E169: =OFFSET(InputPriceData!D$15,CalculationsAndCharts!$A169+$A$11,IF($C$7,8,0),1,1) -> 20 | F169: =OFFSET(InputPriceData!E$15,CalculationsAndCharts!$A169+$A$11,IF($C$7,8,0),1,1) -> 19.64 | G169: =OFFSET(InputPriceData!F$15,CalculationsAndCharts!$A169+$A$11,IF($C$7,8,0),1,1) -> 19.74 | N169: 25.64353431 | Q169: 19.38 | R169: 20 | U169: 0.62
A170: 138 | B170: =OFFSET(InputPriceData!B$15,CalculationsAndCharts!$A170+$A$11,0,1,1) -> 2013-10-01 | C170: =OFFSET(InputPriceData!G$15,CalculationsAndCharts!$A170+$A$11,IF($C$7,8,0),1,1) -> 7630300 | D170: =OFFSET(InputPriceData!C$15,CalculationsAndCharts!$A170+$A$11,IF($C$7,8,0),1,1) -> 18.88 | E170: =OFFSET(InputPriceData!D$15,CalculationsAndCharts!$A170+$A$11,IF($C$7,8,0),1,1) -> 19.75 | F170: =OFFSET(InputPriceData!E$15,CalculationsAndCharts!$A170+$A$11,IF($C$7,8,0),1,1) -> 18.88 | G170: =OFFSET(InputPriceData!F$15,CalculationsAndCharts!$A170+$A$11,IF($C$7,8,0),1,1) -> 19.59 | L170: 1 | M170: 19.38 | N170: 25.64353431
A171: 139 | B171: =OFFSET(InputPriceData!B$15,CalculationsAndCharts!$A171+$A$11,0,1,1) -> 2013-09-30 | C171: =OFFSET(InputPriceData!G$15,CalculationsAndCharts!$A171+$A$11,IF($C$7,8,0),1,1) -> 4364300 | D171: =OFFSET(InputPriceData!C$15,CalculationsAndCharts!$A171+$A$11,IF($C$7,8,0),1,1) -> 18.24 | E171: =OFFSET(InputPriceData!D$15,CalculationsAndCharts!$A171+$A$11,IF($C$7,8,0),1,1) -> 19.12 | F171: =OFFSET(InputPriceData!E$15,CalculationsAndCharts!$A171+$A$11,IF($C$7,8,0),1,1) -> 17.94 | G171: =OFFSET(InputPriceData!F$15,CalculationsAndCharts!$A171+$A$11,IF($C$7,8,0),1,1) -> 18.86 | J171: 17.94 | K171: 19.38 | T171: 1.44
A172: 140 | B172: =OFFSET(InputPriceData!B$15,CalculationsAndCharts!$A172+$A$11,0,1,1) -> 2013-09-27 | C172: =OFFSET(InputPriceData!G$15,CalculationsAndCharts!$A172+$A$11,IF($C$7,8,0),1,1) -> 4223100 | D172: =OFFSET(InputPriceData!C$15,CalculationsAndCharts!$A172+$A$11,IF($C$7,8,0),1,1) -> 18.99 | E172: =OFFSET(InputPriceData!D$15,CalculationsAndCharts!$A172+$A$11,IF($C$7,8,0),1,1) -> 19.25 | F172: =OFFSET(InputPriceData!E$15,CalculationsAndCharts!$A172+$A$11,IF($C$7,8,0),1,1) -> 18.67 | G172: =OFFSET(InputPriceData!F$15,CalculationsAndCharts!$A172+$A$11,IF($C$7,8,0),1,1) -> 18.98 | J172: 17.94 | K172: 19.38 | T172: 1.44
A173: 141 | B173: =OFFSET(InputPriceData!B$15,CalculationsAndCharts!$A173+$A$11,0,1,1) -> 2013-09-26 | C173: =OFFSET(InputPriceData!G$15,CalculationsAndCharts!$A173+$A$11,IF($C$7,8,0),1,1) -> 3301300 | D173: =OFFSET(InputPriceData!C$15,CalculationsAndCharts!$A173+$A$11,IF($C$7,8,0),1,1) -> 19.07 | E173: =OFFSET(InputPriceData!D$15,CalculationsAndCharts!$A173+$A$11,IF($C$7,8,0),1,1) -> 19.38 | F173: =OFFSET(InputPriceData!E$15,CalculationsAndCharts!$A173+$A$11,IF($C$7,8,0),1,1) -> 19 | G173: =OFFSET(InputPriceData!F$15,CalculationsAndCharts!$A173+$A$11,IF($C$7,8,0),1,1) -> 19.37 | J173: 17.94 | K173: 19.38 | T173: 1.44
A174: 142 | B174: =OFFSET(InputPriceData!B$15,CalculationsAndCharts!$A174+$A$11,0,1,1) -> 2013-09-25 | C174: =OFFSET(InputPriceData!G$15,CalculationsAndCharts!$A174+$A$11,IF($C$7,8,0),1,1) -> 3519500 | D174: =OFFSET(InputPriceData!C$15,CalculationsAndCharts!$A174+$A$11,IF($C$7,8,0),1,1) -> 19.03 | E174: =OFFSET(InputPriceData!D$15,CalculationsAndCharts!$A174+$A$11,IF($C$7,8,0),1,1) -> 19.29 | F174: =OFFSET(InputPriceData!E$15,CalculationsAndCharts!$A174+$A$11,IF($C$7,8,0),1,1) -> 18.7 | G174: =OFFSET(InputPriceData!F$15,CalculationsAndCharts!$A174+$A$11,IF($C$7,8,0),1,1) -> 19.08 | H174: 15.2 | I174: 19.29 | S174: 4.09
A175: 143 | B175: =OFFSET(InputPriceData!B$15,CalculationsAndCharts!$A175+$A$11,0,1,1) -> 2013-09-24 | C175: =OFFSET(InputPriceData!G$15,CalculationsAndCharts!$A175+$A$11,IF($C$7,8,0),1,1) -> 5610900 | D175: =OFFSET(InputPriceData!C$15,CalculationsAndCharts!$A175+$A$11,IF($C$7,8,0),1,1) -> 18.69 | E175: =OFFSET(InputPriceData!D$15,CalculationsAndCharts!$A175+$A$11,IF($C$7,8,0),1,1) -> 19.18 | F175: =OFFSET(InputPriceData!E$15,CalculationsAndCharts!$A175+$A$11,IF($C$7,8,0),1,1) -> 18.58 | G175: =OFFSET(InputPriceData!F$15,CalculationsAndCharts!$A175+$A$11,IF($C$7,8,0),1,1) -> 18.89 | H175: 15.2 | I175: 19.29 | S175: =I175-H175 -> 4.09 | T175: =K175-J175 -> 
A176: 144 | B176: =OFFSET(InputPriceData!B$15,CalculationsAndCharts!$A176+$A$11,0,1,1) -> 2013-09-23 | C176: =OFFSET(InputPriceData!G$15,CalculationsAndCharts!$A176+$A$11,IF($C$7,8,0),1,1) -> 3354400 | D176: =OFFSET(InputPriceData!C$15,CalculationsAndCharts!$A176+$A$11,IF($C$7,8,0),1,1) -> 18.8 | E176: =OFFSET(InputPriceData!D$15,CalculationsAndCharts!$A176+$A$11,IF($C$7,8,0),1,1) -> 18.91 | F176: =OFFSET(InputPriceData!E$15,CalculationsAndCharts!$A176+$A$11,IF($C$7,8,0),1,1) -> 18.45 | G176: =OFFSET(InputPriceData!F$15,CalculationsAndCharts!$A176+$A$11,IF($C$7,8,0),1,1) -> 18.77 | H176: 15.2 | I176: 19.29 | S176: 4.09
A177: 145 | B177: =OFFSET(InputPriceData!B$15,CalculationsAndCharts!$A177+$A$11,0,1,1) -> 2013-09-20 | C177: =OFFSET(InputPriceData!G$15,CalculationsAndCharts!$A177+$A$11,IF($C$7,8,0),1,1) -> 4989100 | D177: =OFFSET(InputPriceData!C$15,CalculationsAndCharts!$A177+$A$11,IF($C$7,8,0),1,1) -> 18.85 | E177: =OFFSET(InputPriceData!D$15,CalculationsAndCharts!$A177+$A$11,IF($C$7,8,0),1,1) -> 19.12 | F177: =OFFSET(InputPriceData!E$15,CalculationsAndCharts!$A177+$A$11,IF($C$7,8,0),1,1) -> 18.74 | G177: =OFFSET(InputPriceData!F$15,CalculationsAndCharts!$A177+$A$11,IF($C$7,8,0),1,1) -> 18.8 | H177: 15.2 | I177: 19.29 | S177: 4.09
A178: 146 | B178: =OFFSET(InputPriceData!B$15,CalculationsAndCharts!$A178+$A$11,0,1,1) -> 2013-09-19 | C178: =OFFSET(InputPriceData!G$15,CalculationsAndCharts!$A178+$A$11,IF($C$7,8,0),1,1) -> 5189900 | D178: =OFFSET(InputPriceData!C$15,CalculationsAndCharts!$A178+$A$11,IF($C$7,8,0),1,1) -> 18.57 | E178: =OFFSET(InputPriceData!D$15,CalculationsAndCharts!$A178+$A$11,IF($C$7,8,0),1,1) -> 19.03 | F178: =OFFSET(InputPriceData!E$15,CalculationsAndCharts!$A178+$A$11,IF($C$7,8,0),1,1) -> 18.51 | G178: =OFFSET(InputPriceData!F$15,CalculationsAndCharts!$A178+$A$11,IF($C$7,8,0),1,1) -> 18.87 | H178: 15.2 | I178: 19.29 | S178: 4.09
A179: 147 | B179: =OFFSET(InputPriceData!B$15,CalculationsAndCharts!$A179+$A$11,0,1,1) -> 2013-09-18 | C179: =OFFSET(InputPriceData!G$15,CalculationsAndCharts!$A179+$A$11,IF($C$7,8,0),1,1) -> 4482400 | D179: =OFFSET(InputPriceData!C$15,CalculationsAndCharts!$A179+$A$11,IF($C$7,8,0),1,1) -> 18.59 | E179: =OFFSET(InputPriceData!D$15,CalculationsAndCharts!$A179+$A$11,IF($C$7,8,0),1,1) -> 18.71 | F179: =OFFSET(InputPriceData!E$15,CalculationsAndCharts!$A179+$A$11,IF($C$7,8,0),1,1) -> 18.38 | G179: =OFFSET(InputPriceData!F$15,CalculationsAndCharts!$A179+$A$11,IF($C$7,8,0),1,1) -> 18.59 | H179: 15.2 | I179: 19.29 | S179: 4.09
A180: 148 | B180: =OFFSET(InputPriceData!B$15,CalculationsAndCharts!$A180+$A$11,0,1,1) -> 2013-09-17 | C180: =OFFSET(InputPriceData!G$15,CalculationsAndCharts!$A180+$A$11,IF($C$7,8,0),1,1) -> 5634500 | D180: =OFFSET(InputPriceData!C$15,CalculationsAndCharts!$A180+$A$11,IF($C$7,8,0),1,1) -> 18.48 | E180: =OFFSET(InputPriceData!D$15,CalculationsAndCharts!$A180+$A$11,IF($C$7,8,0),1,1) -> 18.73 | F180: =OFFSET(InputPriceData!E$15,CalculationsAndCharts!$A180+$A$11,IF($C$7,8,0),1,1) -> 18.41 | G180: =OFFSET(InputPriceData!F$15,CalculationsAndCharts!$A180+$A$11,IF($C$7,8,0),1,1) -> 18.63 | H180: 15.2 | I180: 19.29 | S180: 4.09
A181: 149 | B181: =OFFSET(InputPriceData!B$15,CalculationsAndCharts!$A181+$A$11,0,1,1) -> 2013-09-16 | C181: =OFFSET(InputPriceData!G$15,CalculationsAndCharts!$A181+$A$11,IF($C$7,8,0),1,1) -> 5691300 | D181: =OFFSET(InputPriceData!C$15,CalculationsAndCharts!$A181+$A$11,IF($C$7,8,0),1,1) -> 18.07 | E181: =OFFSET(InputPriceData!D$15,CalculationsAndCharts!$A181+$A$11,IF($C$7,8,0),1,1) -> 18.32 | F181: =OFFSET(InputPriceData!E$15,CalculationsAndCharts!$A181+$A$11,IF($C$7,8,0),1,1) -> 17.88 | G181: =OFFSET(InputPriceData!F$15,CalculationsAndCharts!$A181+$A$11,IF($C$7,8,0),1,1) -> 17.98 | H181: 15.2 | I181: 19.29 | S181: 4.09
A182: 150 | B182: =OFFSET(InputPriceData!B$15,CalculationsAndCharts!$A182+$A$11,0,1,1) -> 2013-09-13 | C182: =OFFSET(InputPriceData!G$15,CalculationsAndCharts!$A182+$A$11,IF($C$7,8,0),1,1) -> 2590600 | D182: =OFFSET(InputPriceData!C$15,CalculationsAndCharts!$A182+$A$11,IF($C$7,8,0),1,1) -> 17.62 | E182: =OFFSET(InputPriceData!D$15,CalculationsAndCharts!$A182+$A$11,IF($C$7,8,0),1,1) -> 17.94 | F182: =OFFSET(InputPriceData!E$15,CalculationsAndCharts!$A182+$A$11,IF($C$7,8,0),1,1) -> 17.62 | G182: =OFFSET(InputPriceData!F$15,CalculationsAndCharts!$A182+$A$11,IF($C$7,8,0),1,1) -> 17.78 | H182: 15.2 | I182: 19.29 | S182: 4.09
A183: 151 | B183: =OFFSET(InputPriceData!B$15,CalculationsAndCharts!$A183+$A$11,0,1,1) -> 2013-09-12 | C183: =OFFSET(InputPriceData!G$15,CalculationsAndCharts!$A183+$A$11,IF($C$7,8,0),1,1) -> 3475500 | D183: =OFFSET(InputPriceData!C$15,CalculationsAndCharts!$A183+$A$11,IF($C$7,8,0),1,1) -> 17.6 | E183: =OFFSET(InputPriceData!D$15,CalculationsAndCharts!$A183+$A$11,IF($C$7,8,0),1,1) -> 17.86 | F183: =OFFSET(InputPriceData!E$15,CalculationsAndCharts!$A183+$A$11,IF($C$7,8,0),1,1) -> 17.46 | G183: =OFFSET(InputPriceData!F$15,CalculationsAndCharts!$A183+$A$11,IF($C$7,8,0),1,1) -> 17.54 | H183: 15.2 | I183: 19.29 | S183: 4.09
A184: 152 | B184: =OFFSET(InputPriceData!B$15,CalculationsAndCharts!$A184+$A$11,0,1,1) -> 2013-09-11 | C184: =OFFSET(InputPriceData!G$15,CalculationsAndCharts!$A184+$A$11,IF($C$7,8,0),1,1) -> 6391100 | D184: =OFFSET(InputPriceData!C$15,CalculationsAndCharts!$A184+$A$11,IF($C$7,8,0),1,1) -> 17.94 | E184: =OFFSET(InputPriceData!D$15,CalculationsAndCharts!$A184+$A$11,IF($C$7,8,0),1,1) -> 17.95 | F184: =OFFSET(InputPriceData!E$15,CalculationsAndCharts!$A184+$A$11,IF($C$7,8,0),1,1) -> 17.22 | G184: =OFFSET(InputPriceData!F$15,CalculationsAndCharts!$A184+$A$11,IF($C$7,8,0),1,1) -> 17.63 | H184: 15.2 | I184: 19.29 | S184: 4.09
A185: 153 | B185: =OFFSET(InputPriceData!B$15,CalculationsAndCharts!$A185+$A$11,0,1,1) -> 2013-09-10 | C185: =OFFSET(InputPriceData!G$15,CalculationsAndCharts!$A185+$A$11,IF($C$7,8,0),1,1) -> 5827000 | D185: =OFFSET(InputPriceData!C$15,CalculationsAndCharts!$A185+$A$11,IF($C$7,8,0),1,1) -> 17.6 | E185: =OFFSET(InputPriceData!D$15,CalculationsAndCharts!$A185+$A$11,IF($C$7,8,0),1,1) -> 18.09 | F185: =OFFSET(InputPriceData!E$15,CalculationsAndCharts!$A185+$A$11,IF($C$7,8,0),1,1) -> 17.55 | G185: =OFFSET(InputPriceData!F$15,CalculationsAndCharts!$A185+$A$11,IF($C$7,8,0),1,1) -> 18.03 | H185: 15.2 | I185: 19.29 | S185: 4.09
A186: 154 | B186: =OFFSET(InputPriceData!B$15,CalculationsAndCharts!$A186+$A$11,0,1,1) -> 2013-09-09 | C186: =OFFSET(InputPriceData!G$15,CalculationsAndCharts!$A186+$A$11,IF($C$7,8,0),1,1) -> 5276200 | D186: =OFFSET(InputPriceData!C$15,CalculationsAndCharts!$A186+$A$11,IF($C$7,8,0),1,1) -> 16.77 | E186: =OFFSET(InputPriceData!D$15,CalculationsAndCharts!$A186+$A$11,IF($C$7,8,0),1,1) -> 17.38 | F186: =OFFSET(InputPriceData!E$15,CalculationsAndCharts!$A186+$A$11,IF($C$7,8,0),1,1) -> 16.75 | G186: =OFFSET(InputPriceData!F$15,CalculationsAndCharts!$A186+$A$11,IF($C$7,8,0),1,1) -> 17.38 | H186: 15.2 | I186: 19.29 | S186: 4.09
A187: 155 | B187: =OFFSET(InputPriceData!B$15,CalculationsAndCharts!$A187+$A$11,0,1,1) -> 2013-09-06 | C187: =OFFSET(InputPriceData!G$15,CalculationsAndCharts!$A187+$A$11,IF($C$7,8,0),1,1) -> 4512900 | D187: =OFFSET(InputPriceData!C$15,CalculationsAndCharts!$A187+$A$11,IF($C$7,8,0),1,1) -> 17.1 | E187: =OFFSET(InputPriceData!D$15,CalculationsAndCharts!$A187+$A$11,IF($C$7,8,0),1,1) -> 17.12 | F187: =OFFSET(InputPriceData!E$15,CalculationsAndCharts!$A187+$A$11,IF($C$7,8,0),1,1) -> 16.54 | G187: =OFFSET(InputPriceData!F$15,CalculationsAndCharts!$A187+$A$11,IF($C$7,8,0),1,1) -> 16.72 | H187: 15.2 | I187: 19.29 | S187: 4.09
A188: 156 | B188: =OFFSET(InputPriceData!B$15,CalculationsAndCharts!$A188+$A$11,0,1,1) -> 2013-09-05 | C188: =OFFSET(InputPriceData!G$15,CalculationsAndCharts!$A188+$A$11,IF($C$7,8,0),1,1) -> 3528500 | D188: =OFFSET(InputPriceData!C$15,CalculationsAndCharts!$A188+$A$11,IF($C$7,8,0),1,1) -> 16.86 | E188: =OFFSET(InputPriceData!D$15,CalculationsAndCharts!$A188+$A$11,IF($C$7,8,0),1,1) -> 17.04 | F188: =OFFSET(InputPriceData!E$15,CalculationsAndCharts!$A188+$A$11,IF($C$7,8,0),1,1) -> 16.79 | G188: =OFFSET(InputPriceData!F$15,CalculationsAndCharts!$A188+$A$11,IF($C$7,8,0),1,1) -> 16.9 | H188: 15.2 | I188: 19.29 | S188: 4.09
A189: 157 | B189: =OFFSET(InputPriceData!B$15,CalculationsAndCharts!$A189+$A$11,0,1,1) -> 2013-09-04 | C189: =OFFSET(InputPriceData!G$15,CalculationsAndCharts!$A189+$A$11,IF($C$7,8,0),1,1) -> 4839200 | D189: =OFFSET(InputPriceData!C$15,CalculationsAndCharts!$A189+$A$11,IF($C$7,8,0),1,1) -> 16.41 | E189: =OFFSET(InputPriceData!D$15,CalculationsAndCharts!$A189+$A$11,IF($C$7,8,0),1,1) -> 16.77 | F189: =OFFSET(InputPriceData!E$15,CalculationsAndCharts!$A189+$A$11,IF($C$7,8,0),1,1) -> 16.36 | G189: =OFFSET(InputPriceData!F$15,CalculationsAndCharts!$A189+$A$11,IF($C$7,8,0),1,1) -> 16.73 | H189: 15.2 | I189: 19.29 | S189: 4.09
A190: 158 | B190: =OFFSET(InputPriceData!B$15,CalculationsAndCharts!$A190+$A$11,0,1,1) -> 2013-09-03 | C190: =OFFSET(InputPriceData!G$15,CalculationsAndCharts!$A190+$A$11,IF($C$7,8,0),1,1) -> 4178200 | D190: =OFFSET(InputPriceData!C$15,CalculationsAndCharts!$A190+$A$11,IF($C$7,8,0),1,1) -> 16.3 | E190: =OFFSET(InputPriceData!D$15,CalculationsAndCharts!$A190+$A$11,IF($C$7,8,0),1,1) -> 16.56 | F190: =OFFSET(InputPriceData!E$15,CalculationsAndCharts!$A190+$A$11,IF($C$7,8,0),1,1) -> 16.03 | G190: =OFFSET(InputPriceData!F$15,CalculationsAndCharts!$A190+$A$11,IF($C$7,8,0),1,1) -> 16.31 | H190: 15.2 | I190: 19.29 | S190: 4.09
A191: 159 | B191: =OFFSET(InputPriceData!B$15,CalculationsAndCharts!$A191+$A$11,0,1,1) -> 2013-08-30 | C191: =OFFSET(InputPriceData!G$15,CalculationsAndCharts!$A191+$A$11,IF($C$7,8,0),1,1) -> 7569500 | D191: =OFFSET(InputPriceData!C$15,CalculationsAndCharts!$A191+$A$11,IF($C$7,8,0),1,1) -> 16.02 | E191: =OFFSET(InputPriceData!D$15,CalculationsAndCharts!$A191+$A$11,IF($C$7,8,0),1,1) -> 16.65 | F191: =OFFSET(InputPriceData!E$15,CalculationsAndCharts!$A191+$A$11,IF($C$7,8,0),1,1) -> 15.99 | G191: =OFFSET(InputPriceData!F$15,CalculationsAndCharts!$A191+$A$11,IF($C$7,8,0),1,1) -> 16.08 | H191: 15.2 | I191: 19.29 | S191: 4.09
A192: 160 | B192: =OFFSET(InputPriceData!B$15,CalculationsAndCharts!$A192+$A$11,0,1,1) -> 2013-08-29 | C192: =OFFSET(InputPriceData!G$15,CalculationsAndCharts!$A192+$A$11,IF($C$7,8,0),1,1) -> 7645000 | D192: =OFFSET(InputPriceData!C$15,CalculationsAndCharts!$A192+$A$11,IF($C$7,8,0),1,1) -> 15.95 | E192: =OFFSET(InputPriceData!D$15,CalculationsAndCharts!$A192+$A$11,IF($C$7,8,0),1,1) -> 16.31 | F192: =OFFSET(InputPriceData!E$15,CalculationsAndCharts!$A192+$A$11,IF($C$7,8,0),1,1) -> 15.64 | G192: =OFFSET(InputPriceData!F$15,CalculationsAndCharts!$A192+$A$11,IF($C$7,8,0),1,1) -> 15.88 | H192: 15.2 | I192: 19.29 | S192: 4.09
A193: 161 | B193: =OFFSET(InputPriceData!B$15,CalculationsAndCharts!$A193+$A$11,0,1,1) -> 2013-08-28 | C193: =OFFSET(InputPriceData!G$15,CalculationsAndCharts!$A193+$A$11,IF($C$7,8,0),1,1) -> 3613100 | D193: =OFFSET(InputPriceData!C$15,CalculationsAndCharts!$A193+$A$11,IF($C$7,8,0),1,1) -> 15.3 | E193: =OFFSET(InputPriceData!D$15,CalculationsAndCharts!$A193+$A$11,IF($C$7,8,0),1,1) -> 15.45 | F193: =OFFSET(InputPriceData!E$15,CalculationsAndCharts!$A193+$A$11,IF($C$7,8,0),1,1) -> 15.2 | G193: =OFFSET(InputPriceData!F$15,CalculationsAndCharts!$A193+$A$11,IF($C$7,8,0),1,1) -> 15.26 | H193: 15.2 | I193: 19.29 | S193: 4.09
A194: 162 | B194: =OFFSET(InputPriceData!B$15,CalculationsAndCharts!$A194+$A$11,0,1,1) -> 2013-08-27 | C194: =OFFSET(InputPriceData!G$15,CalculationsAndCharts!$A194+$A$11,IF($C$7,8,0),1,1) -> 6422300 | D194: =OFFSET(InputPriceData!C$15,CalculationsAndCharts!$A194+$A$11,IF($C$7,8,0),1,1) -> 15.79 | E194: =OFFSET(InputPriceData!D$15,CalculationsAndCharts!$A194+$A$11,IF($C$7,8,0),1,1) -> 15.92 | F194: =OFFSET(InputPriceData!E$15,CalculationsAndCharts!$A194+$A$11,IF($C$7,8,0),1,1) -> 15.25 | G194: =OFFSET(InputPriceData!F$15,CalculationsAndCharts!$A194+$A$11,IF($C$7,8,0),1,1) -> 15.39
A195: 163 | B195: =OFFSET(InputPriceData!B$15,CalculationsAndCharts!$A195+$A$11,0,1,1) -> 2013-08-26 | C195: =OFFSET(InputPriceData!G$15,CalculationsAndCharts!$A195+$A$11,IF($C$7,8,0),1,1) -> 2808200 | D195: =OFFSET(InputPriceData!C$15,CalculationsAndCharts!$A195+$A$11,IF($C$7,8,0),1,1) -> 16.08 | E195: =OFFSET(InputPriceData!D$15,CalculationsAndCharts!$A195+$A$11,IF($C$7,8,0),1,1) -> 16.33 | F195: =OFFSET(InputPriceData!E$15,CalculationsAndCharts!$A195+$A$11,IF($C$7,8,0),1,1) -> 15.95 | G195: =OFFSET(InputPriceData!F$15,CalculationsAndCharts!$A195+$A$11,IF($C$7,8,0),1,1) -> 16.13
A196: 164 | B196: =OFFSET(InputPriceData!B$15,CalculationsAndCharts!$A196+$A$11,0,1,1) -> 2013-08-23 | C196: =OFFSET(InputPriceData!G$15,CalculationsAndCharts!$A196+$A$11,IF($C$7,8,0),1,1) -> 2190400 | D196: =OFFSET(InputPriceData!C$15,CalculationsAndCharts!$A196+$A$11,IF($C$7,8,0),1,1) -> 16.22 | E196: =OFFSET(InputPriceData!D$15,CalculationsAndCharts!$A196+$A$11,IF($C$7,8,0),1,1) -> 16.32 | F196: =OFFSET(InputPriceData!E$15,CalculationsAndCharts!$A196+$A$11,IF($C$7,8,0),1,1) -> 16.02 | G196: =OFFSET(InputPriceData!F$15,CalculationsAndCharts!$A196+$A$11,IF($C$7,8,0),1,1) -> 16.08
A197: 165 | B197: =OFFSET(InputPriceData!B$15,CalculationsAndCharts!$A197+$A$11,0,1,1) -> 2013-08-22 | C197: =OFFSET(InputPriceData!G$15,CalculationsAndCharts!$A197+$A$11,IF($C$7,8,0),1,1) -> 4770200 | D197: =OFFSET(InputPriceData!C$15,CalculationsAndCharts!$A197+$A$11,IF($C$7,8,0),1,1) -> 15.83 | E197: =OFFSET(InputPriceData!D$15,CalculationsAndCharts!$A197+$A$11,IF($C$7,8,0),1,1) -> 16.29 | F197: =OFFSET(InputPriceData!E$15,CalculationsAndCharts!$A197+$A$11,IF($C$7,8,0),1,1) -> 15.82 | G197: =OFFSET(InputPriceData!F$15,CalculationsAndCharts!$A197+$A$11,IF($C$7,8,0),1,1) -> 16.19
A198: 166 | B198: =OFFSET(InputPriceData!B$15,CalculationsAndCharts!$A198+$A$11,0,1,1) -> 2013-08-21 | C198: =OFFSET(InputPriceData!G$15,CalculationsAndCharts!$A198+$A$11,IF($C$7,8,0),1,1) -> 4234300 | D198: =OFFSET(InputPriceData!C$15,CalculationsAndCharts!$A198+$A$11,IF($C$7,8,0),1,1) -> 15.72 | E198: =OFFSET(InputPriceData!D$15,CalculationsAndCharts!$A198+$A$11,IF($C$7,8,0),1,1) -> 15.91 | F198: =OFFSET(InputPriceData!E$15,CalculationsAndCharts!$A198+$A$11,IF($C$7,8,0),1,1) -> 15.67 | G198: =OFFSET(InputPriceData!F$15,CalculationsAndCharts!$A198+$A$11,IF($C$7,8,0),1,1) -> 15.73
A199: 167 | B199: =OFFSET(InputPriceData!B$15,CalculationsAndCharts!$A199+$A$11,0,1,1) -> 2013-08-20 | C199: =OFFSET(InputPriceData!G$15,CalculationsAndCharts!$A199+$A$11,IF($C$7,8,0),1,1) -> 6373900 | D199: =OFFSET(InputPriceData!C$15,CalculationsAndCharts!$A199+$A$11,IF($C$7,8,0),1,1) -> 15.56 | E199: =OFFSET(InputPriceData!D$15,CalculationsAndCharts!$A199+$A$11,IF($C$7,8,0),1,1) -> 16.13 | F199: =OFFSET(InputPriceData!E$15,CalculationsAndCharts!$A199+$A$11,IF($C$7,8,0),1,1) -> 15.52 | G199: =OFFSET(InputPriceData!F$15,CalculationsAndCharts!$A199+$A$11,IF($C$7,8,0),1,1) -> 15.72
A200: 168 | B200: =OFFSET(InputPriceData!B$15,CalculationsAndCharts!$A200+$A$11,0,1,1) -> 2013-08-19 | C200: =OFFSET(InputPriceData!G$15,CalculationsAndCharts!$A200+$A$11,IF($C$7,8,0),1,1) -> 6141500 | D200: =OFFSET(InputPriceData!C$15,CalculationsAndCharts!$A200+$A$11,IF($C$7,8,0),1,1) -> 15.89 | E200: =OFFSET(InputPriceData!D$15,CalculationsAndCharts!$A200+$A$11,IF($C$7,8,0),1,1) -> 15.91 | F200: =OFFSET(InputPriceData!E$15,CalculationsAndCharts!$A200+$A$11,IF($C$7,8,0),1,1) -> 15.54 | G200: =OFFSET(InputPriceData!F$15,CalculationsAndCharts!$A200+$A$11,IF($C$7,8,0),1,1) -> 15.56
A201: 169 | B201: =OFFSET(InputPriceData!B$15,CalculationsAndCharts!$A201+$A$11,0,1,1) -> 2013-08-16 | C201: =OFFSET(InputPriceData!G$15,CalculationsAndCharts!$A201+$A$11,IF($C$7,8,0),1,1) -> 8824700 | D201: =OFFSET(InputPriceData!C$15,CalculationsAndCharts!$A201+$A$11,IF($C$7,8,0),1,1) -> 15.62 | E201: =OFFSET(InputPriceData!D$15,CalculationsAndCharts!$A201+$A$11,IF($C$7,8,0),1,1) -> 16.34 | F201: =OFFSET(InputPriceData!E$15,CalculationsAndCharts!$A201+$A$11,IF($C$7,8,0),1,1) -> 15.62 | G201: =OFFSET(InputPriceData!F$15,CalculationsAndCharts!$A201+$A$11,IF($C$7,8,0),1,1) -> 15.93
A202: 170 | B202: =OFFSET(InputPriceData!B$15,CalculationsAndCharts!$A202+$A$11,0,1,1) -> 2013-08-15 | C202: =OFFSET(InputPriceData!G$15,CalculationsAndCharts!$A202+$A$11,IF($C$7,8,0),1,1) -> 10372800 | D202: =OFFSET(InputPriceData!C$15,CalculationsAndCharts!$A202+$A$11,IF($C$7,8,0),1,1) -> 15.89 | E202: =OFFSET(InputPriceData!D$15,CalculationsAndCharts!$A202+$A$11,IF($C$7,8,0),1,1) -> 16.08 | F202: =OFFSET(InputPriceData!E$15,CalculationsAndCharts!$A202+$A$11,IF($C$7,8,0),1,1) -> 15.57 | G202: =OFFSET(InputPriceData!F$15,CalculationsAndCharts!$A202+$A$11,IF($C$7,8,0),1,1) -> 15.64
A203: 171 | B203: =OFFSET(InputPriceData!B$15,CalculationsAndCharts!$A203+$A$11,0,1,1) -> 2013-08-14 | C203: =OFFSET(InputPriceData!G$15,CalculationsAndCharts!$A203+$A$11,IF($C$7,8,0),1,1) -> 28026200 | D203: =OFFSET(InputPriceData!C$15,CalculationsAndCharts!$A203+$A$11,IF($C$7,8,0),1,1) -> 15.97 | E203: =OFFSET(InputPriceData!D$15,CalculationsAndCharts!$A203+$A$11,IF($C$7,8,0),1,1) -> 16.26 | F203: =OFFSET(InputPriceData!E$15,CalculationsAndCharts!$A203+$A$11,IF($C$7,8,0),1,1) -> 15.27 | G203: =OFFSET(InputPriceData!F$15,CalculationsAndCharts!$A203+$A$11,IF($C$7,8,0),1,1) -> 16.09
A204: 172 | B204: =OFFSET(InputPriceData!B$15,CalculationsAndCharts!$A204+$A$11,0,1,1) -> 2013-08-13 | C204: =OFFSET(InputPriceData!G$15,CalculationsAndCharts!$A204+$A$11,IF($C$7,8,0),1,1) -> 78591200 | D204: =OFFSET(InputPriceData!C$15,CalculationsAndCharts!$A204+$A$11,IF($C$7,8,0),1,1) -> 18.77 | E204: =OFFSET(InputPriceData!D$15,CalculationsAndCharts!$A204+$A$11,IF($C$7,8,0),1,1) -> 18.86 | F204: =OFFSET(InputPriceData!E$15,CalculationsAndCharts!$A204+$A$11,IF($C$7,8,0),1,1) -> 16.21 | G204: =OFFSET(InputPriceData!F$15,CalculationsAndCharts!$A204+$A$11,IF($C$7,8,0),1,1) -> 16.28
... 669 more rows

Sheet Follow
A1: Stocks and Indexes I wish to follow
A3: To ease following a stock, enter a Yahoo Finance acceptable symbol in column "A" anywhere below cell "A9".
A4: Thereafter you may doubleclick the cell containing a symbol of interest to initiate data retrieval and charting for that symbol.
A7: Symbol
A8: To | B8: Description | C8: Last Trade as of most recent check
A9: Follow | C9: Date | D9: Time | E9: Open | F9: High | G9: Low | H9: Close | I9: Volume
A10: A | B10: Agilent Technolog (A) -NYSE (Daily) | C10: 2014-08-01 | D10: 16:04:00 | E10: N/A | F10: N/A | G10: N/A | H10: 56.07 | I10: 0
A11: AAL | B11: American Airlines (AAL) -NasdaqNM (Daily) | C11: 2014-11-18 | D11: 13:02:00 | E11: 43.8 | F11: 45 | G11: 43.755 | H11: 44.955 | I11: 5940801 | J11: long up swing since merger
A12: ADM | B12: Archer-Daniels-Mi (ADM) -NYSE (Daily) | C12: 2014-08-18 | D12: 16:00:00 | E12: 49.86 | F12: 50.01 | G12: 49.71 | H12: 49.79 | I12: 2269848
A13: CASY | B13: Caseys General St (CASY) -NasdaqNM (Daily) | C13: 2014-10-03 | D13: 16:00:00 | E13: 72.92 | F13: 73.65 | G13: 72.79 | H13: 73.49 | I13: 182494
A14: CSCO | B14: Cisco Systems, In (CSCO) -NasdaqNM (Daily) | C14: 2014-10-02 | D14: 14:23:00 | E14: 25.08 | F14: 25.11 | G14: 24.75 | H14: 25.025 | I14: 20962772
A15: CVS | B15: CVS Health Corpor (CVS) -NYSE (Daily) | C15: 2014-09-11 | D15: 16:01:00 | E15: 80.76 | F15: 81.22 | G15: 80.75 | H15: 81.09 | I15: 3926300
A16: DIS | B16: Walt Disney Compa (DIS) -NYSE (Daily) | C16: 2014-09-08 | D16: 16:00:00 | E16: 90.75 | F16: 90.84 | G16: 90.16 | H16: 90.56 | I16: 4331230
A17: EMC | B17: EMC Corporation C (EMC) -NYSE (Daily) | C17: 2014-08-06 | D17: 13:31:00 | E17: 29.02 | F17: 29.3 | G17: 28.98 | H17: 29.22 | I17: 10573650
A18: F | B18: Ford Motor Compan (F) -NYSE (Daily) | C18: 2014-10-03 | D18: 16:01:00 | E18: 14.66 | F18: 14.69 | G18: 14.5 | H18: 14.59 | I18: 38177484
A19: HSY | B19: The Hershey Compa (HSY) -NYSE (Daily) | C19: 2014-08-18 | D19: 11:19:00 | E19: 91.45 | F19: 91.87 | G19: 91.45 | H19: 91.49 | I19: 194214
A20: HTLD | B20: Heartland Express (HTLD) -NasdaqNM (Daily) | C20: 2014-08-06 | D20: 13:30:00 | E20: 22.27 | F20: 22.399 | G20: 22.15 | H20: 22.25 | I20: 101609
A21: IBM | B21: International Bus (IBM) -NYSE (Daily) | C21: 2014-08-18 | D21: 11:14:00 | E21: 188.1 | F21: 189.61 | G21: 187.76 | H21: 189.385 | I21: 876250
A22: INTC | B22: Intel Corporation (INTC) -NasdaqNM (Daily) | C22: 2014-10-02 | D22: 14:24:00 | E22: 33.98 | F22: 34 | G22: 33.26 | H22: 33.542 | I22: 22520324
A23: JNJ | B23: Johnson & Johnson (JNJ) -NYSE (Daily) | C23: 2014-10-03 | D23: 16:00:00 | E23: 104.37 | F23: 105.19 | G23: 104.13 | H23: 105.13 | I23: 6856127
A24: LHO | B24: LaSalle Hotel Pro (LHO) -NYSE (Daily) | C24: 2014-09-16 | D24: 16:05:00 | E24: N/A | F24: N/A | G24: N/A | H24: 35.78 | I24: 0
A25: LO | B25: Lorillard, Inc Co (LO) -NYSE (Daily) | C25: 2014-09-11 | D25: 13:52:00 | E25: 59.03 | F25: 59.19 | G25: 58.68 | H25: 59.0102 | I25: 684807
A26: MCD | B26: McDonald's Corpor (MCD) -NYSE (Daily) | C26: 2014-10-03 | D26: 16:01:00 | E26: 95.29 | F26: 95.29 | G26: 94.506 | H26: 94.86 | I26: 3948919 | J26: looks like a Roller
A27: MDT | B27: Medtronic Inc. Co (MDT) -NYSE (Daily) | C27: 2014-08-06 | D27: 13:33:00 | E27: 61.1 | F27: 61.81 | G27: 60.88 | H27: 61.36 | I27: 12242353
A28: MGM | B28: MGM Resorts Inter (MGM) -NYSE (Daily) | C28: 2014-08-29 | D28: 14:55:00 | E28: 24.87 | F28: 24.87 | G28: 24.31 | H28: 24.405 | I28: 3922413
A29: MSFT | B29: Microsoft Corpora (MSFT) -NasdaqNM (Daily) | C29: 2014-10-02 | D29: 14:24:00 | E29: 45.83 | F29: 46.1 | G29: 45.64 | H29: 45.8555 | I29: 16963462
A30: NVS | B30: Novartis AG Commo (NVS) -NYSE (Daily) | C30: 2014-10-03 | D30: 16:04:00 | E30: 91.96 | F30: 92.65 | G30: 91.9 | H30: 92.37 | I30: 1611850 | K30: Aug. 1, 2013
A31: PRU | B31: Prudential Financ (PRU) -NYSE (Daily) | C31: 2014-10-03 | D31: 16:01:00 | E31: 87.07 | F31: 87.67 | G31: 86.505 | H31: 87.04 | I31: 2407618
A32: PSEC | B32: Prospect Capital (PSEC) -NasdaqNM (Daily) | C32: 2014-10-03 | D32: 16:15:00 | E32: 9.8 | F32: 9.81 | G32: 9.72 | H32: 9.8 | I32: 3092925 | J32: Malcom Berko 20140724
A33: RAI | B33: Reynolds American (RAI) -NYSE (Daily) | C33: 2014-09-09 | D33: 11:27:00 | E33: 57.62 | F33: 57.84 | G33: 57.12 | H33: 57.22 | I33: 654534
A34: RPM | B34: RPM International (RPM) -NYSE (Daily) | C34: 2014-10-02 | D34: 14:20:00 | E34: 44.62 | F34: 44.8 | G34: 43.81 | H34: 44.44 | I34: 405688 | J34: Owns Rust-Oleum
A35: RSP | B35: Guggenheim S&P 50 (RSP) -PCX (Daily) | C35: 2014-09-09 | D35: 11:39:00 | E35: 78.05 | F35: 78.13 | G35: 77.65 | H35: 77.8 | I35: 239432
A36: SONC | B36: Sonic Corp. (SONC) -NasdaqNM (Daily) | C36: 2014-09-23 | D36: 16:00:00 | E36: N/A | F36: N/A | G36: N/A | H36: 21.45 | I36: 2760
A37: SWKS | B37: Skyworks Solution (SWKS) -NasdaqNM (Daily) | C37: 2014-09-04 | D37: 15:59:00 | E37: 55.65 | F37: 56.16 | G37: 54.7 | H37: 54.94 | I37: 2596251
A38: TOL | B38: Toll Brothers Inc (TOL) -NYSE (Daily) | C38: 2014-10-02 | D38: 14:22:00 | E38: 31.01 | F38: 31.29 | G38: 30.77 | H38: 31.06 | I38: 2797504
A39: UNP | B39: Union Pacific Cor (UNP) -NYSE (Daily) | C39: 2014-09-09 | D39: 11:38:00 | E39: 107.49 | F39: 107.68 | G39: 107.2 | H39: 107.57 | I39: 421378
A40: VZ | B40: Verizon Communica (VZ) -NYSE (Daily) | C40: 2014-09-16 | D40: 16:00:00 | E40: N/A | F40: N/A | G40: N/A | H40: 48.96 | I40: 3698
A41: WAG | B41: Walgreen Co. Comm (WAG) -NYSE (Daily) | C41: 2014-08-04 | D41: 09:30:00 | E41: 71.03 | F41: 71.05 | G41: 70.95 | H41: 71.01 | I41: 65283
A42: WMT | B42: Wal-Mart Stores, (WMT) -NYSE (Daily) | C42: 2014-09-08 | D42: 16:01:00 | E42: 77.13 | F42: 77.32 | G42: 76.43 | H42: 76.53 | I42: 5946869
A44: SPY | B44: SPDR S&P 500 (SPY) -PCX (Daily) | C44: 2014-08-27 | D44: 16:00:00 | E44: 200.43 | F44: 200.57 | G44: 199.94 | H44: 200.25 | I44: 47873708
A45: ^GSPC | B45: S&P 500 (^GSPC) -SNP (Daily) | C45: 2014-07-21 | D45: 16:32:00 | E45: 1976.93 | F45: 1976.93 | G45: 1965.77 | H45: 1973.63 | I45: 397417600
A46: ^VIX | B46: VOLATILITY S&P 50 (^VIX) -WCB (Daily) | C46: 2014-08-01 | D46: 13:11:00 | E46: 16.67 | F46: 17.57 | G46: 15.52 | H46: 17.35 | I46: 0
A48: ACAD | B48: ACADIA Pharmaceut (ACAD) -NasdaqNM (Daily) | C48: 2014-07-21 | D48: 16:00:00 | E48: 20.13 | F48: 20.55 | G48: 19.8101 | H48: 20.31 | I48: 691016
A49: CLDX | B49: Celldex Therapeut (CLDX) -NasdaqNM (Daily) | C49: 2014-07-21 | D49: 16:00:00 | E49: 12.7 | F49: 13.19 | G49: 12.46 | H49: 13 | I49: 1468100 | K49: Signal sent out Nov 28 2012 for event that would occur 12/8
A50: ICPT | B50: Intercept Pharmac (ICPT) -NasdaqNM (Daily) | C50: 2014-07-21 | D50: 16:00:00 | E50: 215.97 | F50: 218.43 | G50: 213.05 | H50: 218.14 | I50: 191276
A51: INO | B51: Inovio Pharmaceut (INO) -AMEX (Daily) | C51: 2014-07-21 | D51: 16:00:00 | E51: 10.3 | F51: 11.08 | G51: 10.1 | H51: 11.01 | I51: 1800796
A52: JCP | B52: J.C. Penney Compa (JCP) -NYSE (Daily) | C52: 2014-08-28 | D52: 16:01:00 | E52: 10.97 | F52: 10.98 | G52: 10.7 | H52: 10.85 | I52: 20566166
A53: LCI | B53: Lannett Co Inc Co (LCI) -NYSE (Daily) | C53: 2014-07-21 | D53: 16:02:00 | E53: 38.09 | F53: 38.803 | G53: 36.5101 | H53: 37.76 | I53: 611367
A54: NPSP | B54: NPS Pharmaceutica (NPSP) -NasdaqNM (Daily) | C54: 2014-07-21 | D54: 15:59:00 | E54: 28.75 | F54: 29.43 | G54: 28.31 | H54: 29.29 | I54: 1126758 | K54: Apr 2 2013
A55: PBYI | B55: Puma Biotechnolog (PBYI) -NYSE (Daily) | C55: 2014-07-21 | D55: 16:02:00 | E55: 58.27 | F55: 59.46 | G55: 57.39 | H55: 58.98 | I55: 348030
